Workbook

Sheet Inicio
C65531: Formula Hoy() | D65531: =+TODAY() -> 2026-04-09
C65532: Fecha Caducidad | D65532: 2026-06-30 | E65532: =+D65532-D65531 -> 82

Sheet Calculo (hidden)
B1: RENTAS ASEGURADAS FONDITEL
B3: CALCULO DE RENTAS MENSUALES VITALICIAS
I4: 0.01
B5: METER DATOS | E5: RESULTADOS OBTENIDOS | I5: 0.0008
B6: Apellidos | C6: aaaa
B7: Nombre | C7: aaaa | K7: Interes Año | L7: Interes Mes | M7: FactActualiz
B8: F. Efecto: | C8: 2023-04-18 | H8: G. Interna | I8: 0.01 | K8: =+VLOOKUP(C15+C19,B23:C28,2) -> 0.02496 | L8: =+(1+K8)^(1/12)-1 -> 0.00205657748 | M8: =1/(1+L8) -> 0.9979476434
B9: F. Inicio Renta: | C9: 2023-04-18 | E9: Resultados Opción 1) | H9: Comision | I9: 0.0008 | J9: =+(1+I9)^(1/12)-1 -> 6.664223471e-05 | K9: =+(1+K8)*(1-I9)-1 -> 0.024140032 | L9: =+(1+L8)*(1-J9)-1 -> 0.001989798191 | M9: =1/(1+L9) -> 0.9980141532
B10: F. Nacimiento: | C10: 1978-09-05 | E10: Renta mensual: | F10: =+C17/(O13+T13) -> 933.3667289
B11: F. Conyuge: | C11: 1993-01-23 | E11: Renta Anual | F11: =+F10*12 -> 11200.40075 | W11: Renta Unitaria | X11: Reserva | Y11: Renta | Z11: Renta Unitaria | AB11: Renta Unitaria | AE11: Renta Total
B12: Sexo: | C12: 1 | E12: Resultados Opción 2) | H12: Fecha de Calculo | I12: Periodo | J12: Edad | K12: Edad Cony | L12: Px | M12: Py | N12: Renta x | O12: Reserva x | P12: Comision | Q12: Renta y | R12: Reserva y | S12: Reserva xy | T12: Reversion | U12: Comision y | V12: Comision xy | W12: Decreciente | X12: Antares | Y12: Decreciente | Z12: Reversion Decreciente | AA12: Reseva y | AB12: Conjunta Decreciente | AC12: Reserva xy | AD12: Reversion | AE12: Antares | AF12: Prov Titular | AG12: Prov Rev | AH12: Prov Ambos | AI12: Prov Final | AJ12: Comision | AK12: Renta Fonditel
B13: Reversion Renta | C13: 0 | E13: Prima Unica: | F13: =+F10*(O13+T13) -> 100000 | H13: =+DATE(YEAR(C8),MONTH(C8),1) -> 2023-04-01 | I13: 1 | J13: =+IF(I13="","",ROUND((YEAR($H13)-YEAR($C$10)+(MONTH($H13)-MONTH($C$10))/12+(DAY($H13)-DAY($C$10))/365)*365,0)/365) -> 44.57260274 | K13: =+IF(J13="","",ROUND((YEAR($H13)-YEAR($C$11)+(MONTH($H13)-MONTH($C$11))/12+(DAY($H13)-DAY($C$11))/365)*365,0)/365) -> 30.1890411 | L13: =+IF(I13="",0,VLOOKUP(J13,TB_GEN,3+$C$12)) -> 0.9999342812 | M13: =+IF(I13="",0,VLOOKUP(K13,TB_GEN,7+$F$18)) -> 0.9999912146 | N13: =+IF(I13="",0,IF(H13<DATE(YEAR($C$9),MONTH($C$9),1),0,(1+$C$14)^(YEAR(H13)-YEAR($C$9)))) -> 1 | O13: =+(O14*$L13+N13*$L13/(1-$I$8))*$M$9 -> 107.1390236 | P13: =+IF(O13=0,0,O13/L13*(1+$L$8)*$J$9) -> 0.007155138115 | Q13: =+N13*$C$13 -> 0 | R13: =+(R14*$M13+Q13*$M13/(1-$I$8))*$M$9 -> 0 | S13: =+(S14*L13*$M13+Q13*L13*$M13/(1-$I$8))*$M$9 -> 0 | T13: =+R13-S13 -> 0 | U13: =+IF(R13=0,0,R13/M13*(1+$L$8)*$J$9) -> 0 | V13: =+IF(S13=0,0,S13/(L13*M13)*(1+$L$8)*$J$9) -> 0 | W13: =+IF(P13=0,0,N13+P13*(1-$I$8)) -> 1.007083587 | X13: =+(W13/(1-$I$8)+X14)*L13*$M$8 -> 107.1390236 | Y13: =+W13*$F$10 -> 939.978313 | Z13: =+Q13+U13*(1-$I$8) -> 0 | AA13: =+(AA14+Z13/(1-$I$8))*M13*$M$8 -> 0 | AB13: =+Q13+V13*(1-$I$8) -> 0 | AC13: =+(AC14+AB13/(1-$I$8))*L13*M13*$M$8 -> 0 | AD13: =+AA13-AC13 -> 0 | AE13: =+W13*$C$18+(Z13-AB13)*$C$18 -> 939.978313 | AF13: =+$C$18*O13*0.99/L13*(1+$L$8) -> 99210.12114 | AG13: =+$C$18*R13*0.99/M13*(1+$L$8) -> 0 | AH13: =+$C$18*S13*0.99/(M13*L13)*(1+$L$8) -> 0 | AI13: =+AF13+AG13-AH13 -> 99210.12114 | AJ13: =+AI13*$J$9 -> 6.611584178 | AK13: =+AE13-AJ13 -> 933.3667289
B14: Crecimiento | C14: 0 | H14: =+IF(I14="","",DATE(YEAR(H13),MONTH(H13)+1,1)) -> 2023-05-01 | I14: =+IF(OR(I13="",I13=$C$19+$C$15),"",I13+1) -> 2 | J14: =+IF(I14="","",ROUND((YEAR(H14)-YEAR($C$10)+(MONTH(H14)-MONTH($C$10))/12+(DAY(H14)-DAY($C$10))/365)*365,0)/365) -> 44.65479452 | K14: 30.2739726 | L14: =+IF(I14="",0,VLOOKUP(J14,TB_GEN,3+$C$12)) -> 0.9999342812 | M14: =+IF(I14="",0,VLOOKUP(K14,TB_GEN,7+$F$18)) -> 0.9999912146 | N14: =+IF(I14="",0,IF(H14<DATE(YEAR($C$9),MONTH($C$9),1),0,(1+$C$14)^(YEAR(H14)-YEAR($C$9)))) -> 1 | O14: =+(O15*L14+N14*L14/(1-$I$8))*$M$9 -> 106.3491632 | P14: 0.007102388328 | Q14: 0 | R14: =+(R15*$M14+Q14*$M14/(1-$I$8))*$M$9 -> 0 | S14: =+(S15*L14*$M14+Q14*L14*$M14/(1-$I$8))*$M$9 -> 0 | T14: =+R14-S14 -> 0 | U14: =+IF(R14=0,0,R14/M14*(1+$L$8)*$J$9) -> 0 | V14: =+IF(S14=0,0,S14/(L14*M14)*(1+$L$8)*$J$9) -> 0 | W14: 1.007031364 | X14: 106.3491632 | Y14: 939.9295705 | Z14: =+Q14+U14*(1-$I$8) -> 0 | AA14: 0 | AB14: =+Q14+V14*(1-$I$8) -> 0 | AC14: 0 | AD14: =+AA14-AC14 -> 0 | AE14: =+W14*$C$18+(Z14-AB14)*$C$18 -> 939.9295705 | AF14: =+$C$18*O14*0.99/L14*(1+$L$8) -> 98478.71488 | AG14: =+$C$18*R14*0.99/M14*(1+$L$8) -> 0 | AH14: =+$C$18*S14*0.99/(M14*L14)*(1+$L$8) -> 0 | AI14: =+AF14+AG14-AH14 -> 98478.71488 | AJ14: =+AI14*$J$9 -> 6.562841631 | AK14: =+AE14-AJ14 -> 933.3667289
B15: Diferimiento Renta en meses (0 para inmediatas) | C15: =+DAYS360(DATE(YEAR(C8),MONTH(C8),1),DATE(YEAR(C9),MONTH(C9),1))/30 -> 0 | H15: 2023-06-01 | I15: =+IF(OR(I14="",I14=$C$19+$C$15),"",I14+1) -> 3 | J15: 44.73972603 | K15: 30.35616438 | L15: =+IF(I15="",0,VLOOKUP(J15,TB_GEN,3+$C$12)) -> 0.9999342812 | M15: =+IF(I15="",0,VLOOKUP(K15,TB_GEN,7+$F$18)) -> 0.9999912146 | N15: 1 | O15: 105.557679 | P15: 0.007049530106 | Q15: 0 | R15: 0 | S15: 0 | T15: 0 | U15: 0 | V15: 0 | W15: 1.006979035 | X15: 105.557679 | Y15: 939.8807278 | Z15: 0 | AA15: 0 | AB15: 0 | AC15: 0 | AD15: =+AA15-AC15 -> 0 | AE15: =+W15*$C$18+(Z15-AB15)*$C$18 -> 939.8807278 | AF15: 97745.80511 | AG15: 0 | AH15: 0 | AI15: 97745.80511 | AJ15: 6.513998886 | AK15: 933.3667289
B16: Elegir una Opción (1 ó 2) | E16: Apellidos Conyuge: | H16: 2023-07-01 | I16: 4 | J16: 44.82191781 | K16: 30.44109589 | L16: 0.9999342812 | M16: =+IF(I16="",0,VLOOKUP(K16,TB_GEN,7+$F$18)) -> 0.9999912146 | N16: 1 | O16: 104.7645679 | P16: 0.006996563225 | Q16: 0 | R16: 0 | S16: 0 | T16: 0 | U16: 0 | V16: 0 | W16: 1.006926598 | X16: 104.7645679 | Y16: 939.8317846 | Z16: 0 | AA16: 0 | AB16: 0 | AC16: 0 | AD16: =+AA16-AC16 -> 0 | AE16: 939.8317846 | AF16: 97011.38874 | AG16: 0 | AH16: 0 | AI16: 97011.38874 | AJ16: 6.465055738 | AK16: 933.3667289
B17: 1)Prima Unica: | C17: 100000 | E17: Nombre Nombre: | H17: 2023-08-01 | I17: 5 | J17: 44.90684932 | K17: 30.52328767 | L17: 0.9999342812 | M17: 0.9999912146 | N17: 1 | O17: 103.9698263 | P17: 0.006943487464 | Q17: 0 | R17: 0 | S17: 0 | T17: 0 | U17: 0 | V17: 0 | W17: 1.006874053 | X17: 103.9698263 | Y17: 939.7827409 | Z17: 0 | AA17: 0 | AB17: 0 | AC17: 0 | AD17: 0 | AE17: 939.7827409 | AF17: 96275.46266 | AG17: 0 | AH17: 0 | AI17: 96275.46266 | AJ17: 6.416011979 | AK17: 933.3667289
B18: 2)Renta Mensual: | C18: =+F10 -> 933.3667289 | E18: Sexo Conyuge: | F18: 2 | H18: 2023-09-01 | I18: 6 | J18: 44.9890411 | K18: 30.60547945 | L18: 0.9999342812 | M18: 0.9999912146 | N18: 1 | O18: 103.1734511 | P18: 0.006890302597 | Q18: 0 | R18: 0 | S18: 0 | T18: 0 | U18: 0 | V18: 0 | W18: 1.0068214 | X18: 103.1734511 | Y18: 939.7335963 | Z18: 0 | AA18: 0 | AB18: 0 | AC18: 0 | AD18: 0 | AE18: 939.7335963 | AF18: 95538.02377 | AG18: 0 | AH18: 0 | AI18: 95538.02377 | AJ18: 6.366867404 | AK18: 933.3667289
B19: Duración Renta en meses | C19: 120 | E19: F. Fin Renta: | F19: =+EOMONTH(C9,C19-1) -> 2033-03-31 | H19: 2023-10-01 | I19: 7 | J19: 45.07123288 | K19: 30.69041096 | L19: 0.9999272577 | M19: 0.9999912146 | N19: 1 | O19: 102.3754388 | P19: 0.006837056424 | Q19: 0 | R19: 0 | S19: 0 | T19: 0 | U19: 0 | V19: 0 | W19: 1.006768686 | X19: 102.3754388 | Y19: 939.6843951 | Z19: 0 | AA19: 0 | AB19: 0 | AC19: 0 | AD19: 0 | AE19: 939.6843951 | AF19: 94799.73484 | AG19: 0 | AH19: 0 | AI19: 94799.73484 | AJ19: 6.317666179 | AK19: 933.3667289
H20: 2023-11-01 | I20: 8 | J20: 45.15616438 | K20: 30.77260274 | L20: 0.9999272577 | M20: 0.9999912146 | N20: 1 | O20: 101.5765067 | P20: 0.00678370042 | Q20: 0 | R20: 0 | S20: 0 | T20: 0 | U20: 0 | V20: 0 | W20: 1.006715863 | X20: 101.5765067 | Y20: 939.6350923 | Z20: 0 | AA20: 0 | AB20: 0 | AC20: 0 | AD20: 0 | AE20: 939.6350923 | AF20: 94059.92304 | AG20: 0 | AH20: 0 | AI20: 94059.92304 | AJ20: 6.268363468 | AK20: 933.3667289
B21: TIPO DE INTERES VIGENTES | H21: 2023-12-01 | I21: 9 | J21: 45.23835616 | K21: 30.85753425 | L21: 0.9999272577 | M21: 0.9999912146 | N21: 1 | O21: 100.7759266 | P21: 0.00673023436 | Q21: 0 | R21: 0 | S21: 0 | T21: 0 | U21: 0 | V21: 0 | W21: 1.006662932 | X21: 100.7759266 | Y21: 939.5856879 | Z21: 0 | AA21: 0 | AB21: 0 | AC21: 0 | AD21: 0 | AE21: 939.5856879 | AF21: 93318.58524 | AG21: 0 | AH21: 0 | AI21: 93318.58524 | AJ21: 6.21895906 | AK21: 933.3667289
B22: Duracion Meses | C22: Interes | H22: 2024-01-01 | I22: 10 | J22: 45.32328767 | K22: 30.93972603 | L22: 0.9999272577 | M22: 0.9999912146 | N22: 1 | O22: 99.97369509 | P22: 0.006676658015 | Q22: 0 | R22: 0 | S22: 0 | T22: 0 | U22: 0 | V22: 0 | W22: 1.006609891 | X22: 99.97369509 | Y22: 939.5361816 | Z22: 0 | AA22: 0 | AB22: 0 | AC22: 0 | AD22: 0 | AE22: 939.5361816 | AF22: 92575.71829 | AG22: 0 | AH22: 0 | AI22: 92575.71829 | AJ22: 6.169452747 | AK22: 933.3667289
B23: 0 | C23: 0.022296 | H23: 2024-02-01 | I23: 11 | J23: 45.40547945 | K23: 31.02191781 | L23: 0.9999272577 | M23: 0.9999908785 | N23: 1 | O23: 99.16980888 | P23: 0.006622971159 | Q23: 0 | R23: 0 | S23: 0 | T23: 0 | U23: 0 | V23: 0 | W23: 1.006556741 | X23: 99.16980888 | Y23: 939.4865732 | Z23: 0 | AA23: 0 | AB23: 0 | AC23: 0 | AD23: 0 | AE23: 939.4865732 | AF23: 91831.31904 | AG23: 0 | AH23: 0 | AI23: 91831.31904 | AJ23: 6.119844317 | AK23: 933.3667289
B24: 13 | C24: 0.023024 | H24: 2024-03-01 | I24: 12 | J24: 45.49041096 | K24: 31.10684932 | L24: 0.9999272577 | M24: 0.9999908785 | N24: 1 | O24: 98.36426449 | P24: 0.006569173564 | Q24: 0 | R24: 0 | S24: 0 | T24: 0 | U24: 0 | V24: 0 | W24: 1.006503482 | X24: 98.36426449 | Y24: 939.4368624 | Z24: 0 | AA24: 0 | AB24: 0 | AC24: 0 | AD24: 0 | AE24: 939.4368624 | AF24: 91085.38432 | AG24: 0 | AH24: 0 | AI24: 91085.38432 | AJ24: 6.070133561 | AK24: 933.3667289
B25: 37 | C25: 0.023512 | H25: 2024-04-01 | I25: 13 | J25: 45.57260274 | K25: 31.1890411 | L25: 0.9999272577 | M25: 0.9999908785 | N25: 1 | O25: 97.55705852 | P25: 0.006515265001 | Q25: 0 | R25: 0 | S25: 0 | T25: 0 | U25: 0 | V25: 0 | W25: 1.006450112 | X25: 97.55705852 | Y25: 939.3870491 | Z25: 0 | AA25: 0 | AB25: 0 | AC25: 0 | AD25: 0 | AE25: 939.3870491 | AF25: 90337.91097 | AG25: 0 | AH25: 0 | AI25: 90337.91097 | AJ25: 6.020320266 | AK25: 933.3667289
B26: 60 | C26: 0.023704 | H26: 2024-05-01 | I26: 14 | J26: 45.65479452 | K26: 31.2739726 | L26: 0.9999272577 | M26: 0.9999908785 | N26: 1 | O26: 96.74818753 | P26: 0.006461245242 | Q26: 0 | R26: 0 | S26: 0 | T26: 0 | U26: 0 | V26: 0 | W26: 1.006396633 | X26: 96.74818753 | Y26: 939.3371331 | Z26: 0 | AA26: 0 | AB26: 0 | AC26: 0 | AD26: 0 | AE26: 939.3371331 | AF26: 89588.89581 | AG26: 0 | AH26: 0 | AI26: 89588.89581 | AJ26: 5.970404222 | AK26: 933.3667289
B27: 97 | C27: 0.02496 | H27: 2024-06-01 | I27: 15 | J27: 45.73972603 | K27: 31.35616438 | L27: 0.9999272577 | M27: 0.9999908785 | N27: 1 | O27: 95.93764809 | P27: 0.006407114056 | Q27: 0 | R27: 0 | S27: 0 | T27: 0 | U27: 0 | V27: 0 | W27: 1.006343043 | X27: 95.93764809 | Y27: 939.2871141 | Z27: 0 | AA27: 0 | AB27: 0 | AC27: 0 | AD27: 0 | AE27: 939.2871141 | AF27: 88838.33567 | AG27: 0 | AH27: 0 | AI27: 88838.33567 | AJ27: 5.920385217 | AK27: 933.3667289
B28: 181 | C28: 0.026648 | H28: 2024-07-01 | I28: 16 | J28: 45.82191781 | K28: 31.44109589 | L28: 0.9999272577 | M28: 0.9999908785 | N28: 1 | O28: 95.12543675 | P28: 0.006352871214 | Q28: 0 | R28: 0 | S28: 0 | T28: 0 | U28: 0 | V28: 0 | W28: 1.006289343 | X28: 95.12543675 | Y28: 939.2369919 | Z28: 0 | AA28: 0 | AB28: 0 | AC28: 0 | AD28: 0 | AE28: 939.2369919 | AF28: 88086.22735 | AG28: 0 | AH28: 0 | AI28: 88086.22735 | AJ28: 5.870263038 | AK28: 933.3667289
H29: 2024-08-01 | I29: 17 | J29: 45.90684932 | K29: 31.52328767 | L29: 0.9999272577 | M29: 0.9999908785 | N29: 1 | O29: 94.31155008 | P29: 0.006298516487 | Q29: 0 | R29: 0 | S29: 0 | T29: 0 | U29: 0 | V29: 0 | W29: 1.006235531 | X29: 94.31155008 | Y29: 939.1867663 | Z29: 0 | AA29: 0 | AB29: 0 | AC29: 0 | AD29: 0 | AE29: 939.1867663 | AF29: 87332.56767 | AG29: 0 | AH29: 0 | AI29: 87332.56767 | AJ29: 5.820037472 | AK29: 933.3667289
H30: 2024-09-01 | I30: 18 | J30: 45.9890411 | K30: 31.60547945 | L30: 0.9999272577 | M30: 0.9999908785 | N30: 1 | O30: 93.49598461 | P30: 0.006244049642 | Q30: 0 | R30: 0 | S30: 0 | T30: 0 | U30: 0 | V30: 0 | W30: 1.006181609 | X30: 93.49598461 | Y30: 939.1364372 | Z30: 0 | AA30: 0 | AB30: 0 | AC30: 0 | AD30: 0 | AE30: 939.1364372 | AF30: 86577.35342 | AG30: 0 | AH30: 0 | AI30: 86577.35342 | AJ30: 5.769708307 | AK30: 933.3667289
H31: 2024-10-01 | I31: 19 | J31: 46.07123288 | K31: 31.69041096 | L31: 0.9999192856 | M31: 0.9999908785 | N31: 1 | O31: 92.67873688 | P31: 0.006189519796 | Q31: 0 | R31: 0 | S31: 0 | T31: 0 | U31: 0 | V31: 0 | W31: 1.006127625 | X31: 92.67873688 | Y31: 939.0860498 | Z31: 0 | AA31: 0 | AB31: 0 | AC31: 0 | AD31: 0 | AE31: 939.0860498 | AF31: 85821.26562 | AG31: 0 | AH31: 0 | AI31: 85821.26562 | AJ31: 5.719320927 | AK31: 933.3667289
H32: 2024-11-01 | I32: 20 | J32: 46.15616438 | K32: 31.77260274 | L32: 0.9999192856 | M32: 0.9999908785 | N32: 1 | O32: 91.86054385 | P32: 0.006134877036 | Q32: 0 | R32: 0 | S32: 0 | T32: 0 | U32: 0 | V32: 0 | W32: 1.006073528 | X32: 91.86054385 | Y32: 939.0355581 | Z32: 0 | AA32: 0 | AB32: 0 | AC32: 0 | AD32: 0 | AE32: 939.0355581 | AF32: 85063.61221 | AG32: 0 | AH32: 0 | AI32: 85063.61221 | AJ32: 5.66882921 | AK32: 933.3667289
H33: 2024-12-01 | I33: 21 | J33: 46.23835616 | K33: 31.85753425 | L33: 0.9999192856 | M33: 0.9999908785 | N33: 1 | O33: 91.0406566 | P33: 0.006080121128 | Q33: 0 | R33: 0 | S33: 0 | T33: 0 | U33: 0 | V33: 0 | W33: 1.00601932 | X33: 91.0406566 | Y33: 938.9849618 | Z33: 0 | AA33: 0 | AB33: 0 | AC33: 0 | AD33: 0 | AE33: 938.9849618 | AF33: 84304.38993 | AG33: 0 | AH33: 0 | AI33: 84304.38993 | AJ33: 5.618232941 | AK33: 933.3667289
H34: 2025-01-01 | I34: 22 | J34: 46.32328767 | K34: 31.93972603 | L34: 0.9999192856 | M34: 0.9999908785 | N34: 1 | O34: 90.21907163 | P34: 0.006025251839 | Q34: 0 | R34: 0 | S34: 0 | T34: 0 | U34: 0 | V34: 0 | W34: 1.005964999 | X34: 90.21907163 | Y34: 938.9342608 | Z34: 0 | AA34: 0 | AB34: 0 | AC34: 0 | AD34: 0 | AE34: 938.9342608 | AF34: 83543.59556 | AG34: 0 | AH34: 0 | AI34: 83543.59556 | AJ34: 5.567531903 | AK34: 933.3667289
H35: 2025-02-01 | I35: 23 | J35: 46.40547945 | K35: 32.02191781 | L35: 0.9999192856 | M35: 0.9999904173 | N35: 1 | O35: 89.39578542 | P35: 0.005970268933 | Q35: 0 | R35: 0 | S35: 0 | T35: 0 | U35: 0 | V35: 0 | W35: 1.005910566 | X35: 89.39578542 | Y35: 938.8834548 | Z35: 0 | AA35: 0 | AB35: 0 | AC35: 0 | AD35: 0 | AE35: 938.8834548 | AF35: 82781.22582 | AG35: 0 | AH35: 0 | AI35: 82781.22582 | AJ35: 5.51672588 | AK35: 933.3667289
H36: 2025-03-01 | I36: 24 | J36: 46.49041096 | K36: 32.10684932 | L36: 0.9999192856 | M36: 0.9999904173 | N36: 1 | O36: 88.57079445 | P36: 0.005915172174 | Q36: 0 | R36: 0 | S36: 0 | T36: 0 | U36: 0 | V36: 0 | W36: 1.00585602 | X36: 88.57079445 | Y36: 938.8325435 | Z36: 0 | AA36: 0 | AB36: 0 | AC36: 0 | AD36: 0 | AE36: 938.8325435 | AF36: 82017.27745 | AG36: 0 | AH36: 0 | AI36: 82017.27745 | AJ36: 5.465814654 | AK36: 933.3667289
H37: 2025-04-01 | I37: 25 | J37: 46.57260274 | K37: 32.1890411 | L37: 0.9999192856 | M37: 0.9999904173 | N37: 1 | O37: 87.74409518 | P37: 0.005859961329 | Q37: 0 | R37: 0 | S37: 0 | T37: 0 | U37: 0 | V37: 0 | W37: 1.005801362 | X37: 87.74409518 | Y37: 938.7815269 | Z37: 0 | AA37: 0 | AB37: 0 | AC37: 0 | AD37: 0 | AE37: 938.7815269 | AF37: 81251.7472 | AG37: 0 | AH37: 0 | AI37: 81251.7472 | AJ37: 5.414798007 | AK37: 933.3667289
H38: 2025-05-01 | I38: 26 | J38: 46.65479452 | K38: 32.2739726 | L38: 0.9999192856 | M38: 0.9999904173 | N38: 1 | O38: 86.91568409 | P38: 0.005804636159 | Q38: 0 | R38: 0 | S38: 0 | T38: 0 | U38: 0 | V38: 0 | W38: 1.00574659 | X38: 86.91568409 | Y38: 938.7304046 | Z38: 0 | AA38: 0 | AB38: 0 | AC38: 0 | AD38: 0 | AE38: 938.7304046 | AF38: 80484.63177 | AG38: 0 | AH38: 0 | AI38: 80484.63177 | AJ38: 5.363675721 | AK38: 933.3667289
H39: 2025-06-01 | I39: 27 | J39: 46.73972603 | K39: 32.35616438 | L39: 0.9999192856 | M39: 0.9999904173 | N39: 1 | O39: 86.08555762 | P39: 0.005749196428 | Q39: 0 | R39: 0 | S39: 0 | T39: 0 | U39: 0 | V39: 0 | W39: 1.005691704 | X39: 86.08555762 | Y39: 938.6791764 | Z39: 0 | AA39: 0 | AB39: 0 | AC39: 0 | AD39: 0 | AE39: 938.6791764 | AF39: 79715.9279 | AG39: 0 | AH39: 0 | AI39: 79715.9279 | AJ39: 5.312447577 | AK39: 933.3667289
H40: 2025-07-01 | I40: 28 | J40: 46.82191781 | K40: 32.44109589 | L40: 0.9999192856 | M40: 0.9999904173 | N40: 1 | O40: 85.25371223 | P40: 0.005693641899 | Q40: 0 | R40: 0 | S40: 0 | T40: 0 | U40: 0 | V40: 0 | W40: 1.005636705 | X40: 85.25371223 | Y40: 938.6278422 | Z40: 0 | AA40: 0 | AB40: 0 | AC40: 0 | AD40: 0 | AE40: 938.6278422 | AF40: 78945.63228 | AG40: 0 | AH40: 0 | AI40: 78945.63228 | AJ40: 5.261113356 | AK40: 933.3667289
H41: 2025-08-01 | I41: 29 | J41: 46.90684932 | K41: 32.52328767 | L41: 0.9999192856 | M41: 0.9999904173 | N41: 1 | O41: 84.42014435 | P41: 0.005637972335 | Q41: 0 | R41: 0 | S41: 0 | T41: 0 | U41: 0 | V41: 0 | W41: 1.005581593 | X41: 84.42014435 | Y41: 938.5764017 | Z41: 0 | AA41: 0 | AB41: 0 | AC41: 0 | AD41: 0 | AE41: 938.5764017 | AF41: 78173.74163 | AG41: 0 | AH41: 0 | AI41: 78173.74163 | AJ41: 5.209672838 | AK41: 933.3667289
H42: 2025-09-01 | I42: 30 | J42: 46.9890411 | K42: 32.60547945 | L42: 0.9999192856 | M42: 0.9999904173 | N42: 1 | O42: 83.58485042 | P42: 0.005582187497 | Q42: 0 | R42: 0 | S42: 0 | T42: 0 | U42: 0 | V42: 0 | W42: 1.005526366 | X42: 83.58485042 | Y42: 938.5248547 | Z42: 0 | AA42: 0 | AB42: 0 | AC42: 0 | AD42: 0 | AE42: 938.5248547 | AF42: 77400.25265 | AG42: 0 | AH42: 0 | AI42: 77400.25265 | AJ42: 5.158125803 | AK42: 933.3667289
H43: 2025-10-01 | I43: 31 | J43: 47.07123288 | K43: 32.69041096 | L43: 0.9999102752 | M43: 0.9999904173 | N43: 1 | O43: 82.74782686 | P43: 0.005526336945 | Q43: 0 | R43: 0 | S43: 0 | T43: 0 | U43: 0 | V43: 0 | W43: 1.005471074 | X43: 82.74782686 | Y43: 938.4732469 | Z43: 0 | AA43: 0 | AB43: 0 | AC43: 0 | AD43: 0 | AE43: 938.4732469 | AF43: 76625.8525 | AG43: 0 | AH43: 0 | AI43: 76625.8525 | AJ43: 5.106518047 | AK43: 933.3667289
H44: 2025-11-01 | I44: 32 | J44: 47.15616438 | K44: 32.77260274 | L44: 0.9999102752 | M44: 0.9999904173 | N44: 1 | O44: 81.9098173 | P44: 0.00547037024 | Q44: 0 | R44: 0 | S44: 0 | T44: 0 | U44: 0 | V44: 0 | W44: 1.005415667 | X44: 81.9098173 | Y44: 938.4215318 | Z44: 0 | AA44: 0 | AB44: 0 | AC44: 0 | AD44: 0 | AE44: 938.4215318 | AF44: 75849.84182 | AG44: 0 | AH44: 0 | AI44: 75849.84182 | AJ44: 5.054802961 | AK44: 933.3667289
H45: 2025-12-01 | I45: 33 | J45: 47.23835616 | K45: 32.85753425 | L45: 0.9999102752 | M45: 0.9999904173 | N45: 1 | O45: 81.07006491 | P45: 0.005414287141 | Q45: 0 | R45: 0 | S45: 0 | T45: 0 | U45: 0 | V45: 0 | W45: 1.005360144 | X45: 81.07006491 | Y45: 938.3697092 | Z45: 0 | AA45: 0 | AB45: 0 | AC45: 0 | AD45: 0 | AE45: 938.3697092 | AF45: 75072.21726 | AG45: 0 | AH45: 0 | AI45: 75072.21726 | AJ45: 5.002980323 | AK45: 933.3667289
H46: 2026-01-01 | I46: 34 | J46: 47.32328767 | K46: 32.93972603 | L46: 0.9999102752 | M46: 0.9999904173 | N46: 1 | O46: 80.22856609 | P46: 0.005358087405 | Q46: 0 | R46: 0 | S46: 0 | T46: 0 | U46: 0 | V46: 0 | W46: 1.005304507 | X46: 80.22856609 | Y46: 938.3177788 | Z46: 0 | AA46: 0 | AB46: 0 | AC46: 0 | AD46: 0 | AE46: 938.3177788 | AF46: 74292.97547 | AG46: 0 | AH46: 0 | AI46: 74292.97547 | AJ46: 4.951049909 | AK46: 933.3667289
H47: 2026-02-01 | I47: 35 | J47: 47.40547945 | K47: 33.02191781 | L47: 0.9999102752 | M47: 0.9999898328 | N47: 1 | O47: 79.3853172 | P47: 0.005301770789 | Q47: 0 | R47: 0 | S47: 0 | T47: 0 | U47: 0 | V47: 0 | W47: 1.005248753 | X47: 79.3853172 | Y47: 938.2657404 | Z47: 0 | AA47: 0 | AB47: 0 | AC47: 0 | AD47: 0 | AE47: 938.2657404 | AF47: 73512.11309 | AG47: 0 | AH47: 0 | AI47: 73512.11309 | AJ47: 4.899011494 | AK47: 933.3667289
H48: 2026-03-01 | I48: 36 | J48: 47.49041096 | K48: 33.10684932 | L48: 0.9999102752 | M48: 0.9999898328 | N48: 1 | O48: 78.54031459 | P48: 0.005245337052 | Q48: 0 | R48: 0 | S48: 0 | T48: 0 | U48: 0 | V48: 0 | W48: 1.005192884 | X48: 78.54031459 | Y48: 938.2135937 | Z48: 0 | AA48: 0 | AB48: 0 | AC48: 0 | AD48: 0 | AE48: 938.2135937 | AF48: 72729.62674 | AG48: 0 | AH48: 0 | AI48: 72729.62674 | AJ48: 4.846864855 | AK48: 933.3667289
H49: 2026-04-01 | I49: 37 | J49: 47.57260274 | K49: 33.1890411 | L49: 0.9999102752 | M49: 0.9999898328 | N49: 1 | O49: 77.69355462 | P49: 0.005188785949 | Q49: 0 | R49: 0 | S49: 0 | T49: 0 | U49: 0 | V49: 0 | W49: 1.005136898 | X49: 77.69355462 | Y49: 938.1613386 | Z49: 0 | AA49: 0 | AB49: 0 | AC49: 0 | AD49: 0 | AE49: 938.1613386 | AF49: 71945.51304 | AG49: 0 | AH49: 0 | AI49: 71945.51304 | AJ49: 4.794609766 | AK49: 933.3667289
H50: 2026-05-01 | I50: 38 | J50: 47.65479452 | K50: 33.2739726 | L50: 0.9999102752 | M50: 0.9999898328 | N50: 1 | O50: 76.84503364 | P50: 0.005132117236 | Q50: 0 | R50: 0 | S50: 0 | T50: 0 | U50: 0 | V50: 0 | W50: 1.005080796 | X50: 76.84503364 | Y50: 938.1089749 | Z50: 0 | AA50: 0 | AB50: 0 | AC50: 0 | AD50: 0 | AE50: 938.1089749 | AF50: 71159.76861 | AG50: 0 | AH50: 0 | AI50: 71159.76861 | AJ50: 4.742246002 | AK50: 933.3667289
H51: 2026-06-01 | I51: 39 | J51: 47.73972603 | K51: 33.35616438 | L51: 0.9999102752 | M51: 0.9999898328 | N51: 1 | O51: 75.99474798 | P51: 0.005075330668 | Q51: 0 | R51: 0 | S51: 0 | T51: 0 | U51: 0 | V51: 0 | W51: 1.005024577 | X51: 75.99474798 | Y51: 938.0565022 | Z51: 0 | AA51: 0 | AB51: 0 | AC51: 0 | AD51: 0 | AE51: 938.0565022 | AF51: 70372.39007 | AG51: 0 | AH51: 0 | AI51: 70372.39007 | AJ51: 4.689773336 | AK51: 933.3667289
H52: 2026-07-01 | I52: 40 | J52: 47.82191781 | K52: 33.44109589 | L52: 0.9999102752 | M52: 0.9999898328 | N52: 1 | O52: 75.14269397 | P52: 0.005018426001 | Q52: 0 | R52: 0 | S52: 0 | T52: 0 | U52: 0 | V52: 0 | W52: 1.004968242 | X52: 75.14269397 | Y52: 938.0039204 | Z52: 0 | AA52: 0 | AB52: 0 | AC52: 0 | AD52: 0 | AE52: 938.0039204 | AF52: 69583.374 | AG52: 0 | AH52: 0 | AI52: 69583.374 | AJ52: 4.637191542 | AK52: 933.3667289
H53: 2026-08-01 | I53: 41 | J53: 47.90684932 | K53: 33.52328767 | L53: 0.9999102752 | M53: 0.9999898328 | N53: 1 | O53: 74.28886794 | P53: 0.004961402989 | Q53: 0 | R53: 0 | S53: 0 | T53: 0 | U53: 0 | V53: 0 | W53: 1.004911789 | X53: 74.28886794 | Y53: 937.9512293 | Z53: 0 | AA53: 0 | AB53: 0 | AC53: 0 | AD53: 0 | AE53: 937.9512293 | AF53: 68792.71702 | AG53: 0 | AH53: 0 | AI53: 68792.71702 | AJ53: 4.584500394 | AK53: 933.3667289
H54: 2026-09-01 | I54: 42 | J54: 47.9890411 | K54: 33.60547945 | L54: 0.9999102752 | M54: 0.9999898328 | N54: 1 | O54: 73.4332662 | P54: 0.004904261385 | Q54: 0 | R54: 0 | S54: 0 | T54: 0 | U54: 0 | V54: 0 | W54: 1.004855219 | X54: 73.4332662 | Y54: 937.8984285 | Z54: 0 | AA54: 0 | AB54: 0 | AC54: 0 | AD54: 0 | AE54: 937.8984285 | AF54: 68000.41569 | AG54: 0 | AH54: 0 | AI54: 68000.41569 | AJ54: 4.531699663 | AK54: 933.3667289
H55: 2026-10-01 | I55: 43 | J55: 48.07123288 | K55: 33.69041096 | L55: 0.9999001121 | M55: 0.9999898328 | N55: 1 | O55: 72.57588505 | P55: 0.00484705021 | Q55: 0 | R55: 0 | S55: 0 | T55: 0 | U55: 0 | V55: 0 | W55: 1.00479858 | X55: 72.57588505 | Y55: 937.8455635 | Z55: 0 | AA55: 0 | AB55: 0 | AC55: 0 | AD55: 0 | AE55: 937.8455635 | AF55: 67207.14971 | AG55: 0 | AH55: 0 | AI55: 67207.14971 | AJ55: 4.478834645 | AK55: 933.3667289
H56: 2026-11-01 | I56: 44 | J56: 48.15616438 | K56: 33.77260274 | L56: 0.9999001121 | M56: 0.9999898328 | N56: 1 | O56: 71.71746001 | P56: 0.004789719469 | Q56: 0 | R56: 0 | S56: 0 | T56: 0 | U56: 0 | V56: 0 | W56: 1.004741822 | X56: 71.71746001 | Y56: 937.792588 | Z56: 0 | AA56: 0 | AB56: 0 | AC56: 0 | AD56: 0 | AE56: 937.792588 | AF56: 66412.22588 | AG56: 0 | AH56: 0 | AI56: 66412.22588 | AJ56: 4.425859145 | AK56: 933.3667289
H57: 2026-12-01 | I57: 45 | J57: 48.23835616 | K57: 33.85753425 | L57: 0.9999001121 | M57: 0.9999898328 | N57: 1 | O57: 70.85724096 | P57: 0.004732268913 | Q57: 0 | R57: 0 | S57: 0 | T57: 0 | U57: 0 | V57: 0 | W57: 1.004684946 | X57: 70.85724096 | Y57: 937.7395018 | Z57: 0 | AA57: 0 | AB57: 0 | AC57: 0 | AD57: 0 | AE57: 937.7395018 | AF57: 65615.64075 | AG57: 0 | AH57: 0 | AI57: 65615.64075 | AJ57: 4.372772932 | AK57: 933.3667289
H58: 2027-01-01 | I58: 46 | J58: 48.32328767 | K58: 33.93972603 | L58: 0.9999001121 | M58: 0.9999898328 | N58: 1 | O58: 69.99522413 | P58: 0.004674698291 | Q58: 0 | R58: 0 | S58: 0 | T58: 0 | U58: 0 | V58: 0 | W58: 1.004627951 | X58: 69.99522413 | Y58: 937.6863046 | Z58: 0 | AA58: 0 | AB58: 0 | AC58: 0 | AD58: 0 | AE58: 937.6863046 | AF58: 64817.39084 | AG58: 0 | AH58: 0 | AI58: 64817.39084 | AJ58: 4.319575774 | AK58: 933.3667289
H59: 2027-02-01 | I59: 47 | J59: 48.40547945 | K59: 34.02191781 | L59: 0.9999001121 | M59: 0.999989079 | N59: 1 | O59: 69.13140578 | P59: 0.004617007353 | Q59: 0 | R59: 0 | S59: 0 | T59: 0 | U59: 0 | V59: 0 | W59: 1.004570837 | X59: 69.13140578 | Y59: 937.6329963 | Z59: 0 | AA59: 0 | AB59: 0 | AC59: 0 | AD59: 0 | AE59: 937.6329963 | AF59: 64017.47267 | AG59: 0 | AH59: 0 | AI59: 64017.47267 | AJ59: 4.266267439 | AK59: 933.3667289
H60: 2027-03-01 | I60: 48 | J60: 48.49041096 | K60: 34.10684932 | L60: 0.9999001121 | M60: 0.999989079 | N60: 1 | O60: 68.26578214 | P60: 0.004559195846 | Q60: 0 | R60: 0 | S60: 0 | T60: 0 | U60: 0 | V60: 0 | W60: 1.004513604 | X60: 68.26578214 | Y60: 937.5795766 | Z60: 0 | AA60: 0 | AB60: 0 | AC60: 0 | AD60: 0 | AE60: 937.5795766 | AF60: 63215.88276 | AG60: 0 | AH60: 0 | AI60: 63215.88276 | AJ60: 4.212847696 | AK60: 933.3667289
H61: 2027-04-01 | I61: 49 | J61: 48.57260274 | K61: 34.1890411 | L61: 0.9999001121 | M61: 0.999989079 | N61: 1 | O61: 67.39834944 | P61: 0.00450126352 | Q61: 0 | R61: 0 | S61: 0 | T61: 0 | U61: 0 | V61: 0 | W61: 1.004456251 | X61: 67.39834944 | Y61: 937.5260452 | Z61: 0 | AA61: 0 | AB61: 0 | AC61: 0 | AD61: 0 | AE61: 937.5260452 | AF61: 62412.61761 | AG61: 0 | AH61: 0 | AI61: 62412.61761 | AJ61: 4.159316311 | AK61: 933.3667289
H62: 2027-05-01 | I62: 50 | J62: 48.65479452 | K62: 34.2739726 | L62: 0.9999001121 | M62: 0.999989079 | N62: 1 | O62: 66.5291039 | P62: 0.004443210121 | Q62: 0 | R62: 0 | S62: 0 | T62: 0 | U62: 0 | V62: 0 | W62: 1.004398778 | X62: 66.5291039 | Y62: 937.4724019 | Z62: 0 | AA62: 0 | AB62: 0 | AC62: 0 | AD62: 0 | AE62: 937.4724019 | AF62: 61607.67371 | AG62: 0 | AH62: 0 | AI62: 61607.67371 | AJ62: 4.105673051 | AK62: 933.3667289
H63: 2027-06-01 | I63: 51 | J63: 48.73972603 | K63: 34.35616438 | L63: 0.9999001121 | M63: 0.999989079 | N63: 1 | O63: 65.65804172 | P63: 0.004385035397 | Q63: 0 | R63: 0 | S63: 0 | T63: 0 | U63: 0 | V63: 0 | W63: 1.004341185 | X63: 65.65804172 | Y63: 937.4186466 | Z63: 0 | AA63: 0 | AB63: 0 | AC63: 0 | AD63: 0 | AE63: 937.4186466 | AF63: 60801.04757 | AG63: 0 | AH63: 0 | AI63: 60801.04757 | AJ63: 4.051917683 | AK63: 933.3667289
H64: 2027-07-01 | I64: 52 | J64: 48.82191781 | K64: 34.44109589 | L64: 0.9999001121 | M64: 0.999989079 | N64: 1 | O64: 64.78515912 | P64: 0.004326739093 | Q64: 0 | R64: 0 | S64: 0 | T64: 0 | U64: 0 | V64: 0 | W64: 1.004283472 | X64: 64.78515912 | Y64: 937.3647788 | Z64: 0 | AA64: 0 | AB64: 0 | AC64: 0 | AD64: 0 | AE64: 937.3647788 | AF64: 59992.73567 | AG64: 0 | AH64: 0 | AI64: 59992.73567 | AJ64: 3.998049971 | AK64: 933.3667289
H65: 2027-08-01 | I65: 53 | J65: 48.90684932 | K65: 34.52328767 | L65: 0.9999001121 | M65: 0.999989079 | N65: 1 | O65: 63.91045228 | P65: 0.004268320957 | Q65: 0 | R65: 0 | S65: 0 | T65: 0 | U65: 0 | V65: 0 | W65: 1.004225638 | X65: 63.91045228 | Y65: 937.3107986 | Z65: 0 | AA65: 0 | AB65: 0 | AC65: 0 | AD65: 0 | AE65: 937.3107986 | AF65: 59182.73448 | AG65: 0 | AH65: 0 | AI65: 59182.73448 | AJ65: 3.944069682 | AK65: 933.3667289
H66: 2027-09-01 | I66: 54 | J66: 48.9890411 | K66: 34.60547945 | L66: 0.9999001121 | M66: 0.999989079 | N66: 1 | O66: 63.0339174 | P66: 0.004209780733 | Q66: 0 | R66: 0 | S66: 0 | T66: 0 | U66: 0 | V66: 0 | W66: 1.004167683 | X66: 63.0339174 | Y66: 937.2567055 | Z66: 0 | AA66: 0 | AB66: 0 | AC66: 0 | AD66: 0 | AE66: 937.2567055 | AF66: 58371.04047 | AG66: 0 | AH66: 0 | AI66: 58371.04047 | AJ66: 3.889976579 | AK66: 933.3667289
H67: 2027-10-01 | I67: 55 | J67: 49.07123288 | K67: 34.69041096 | L67: 0.9998889819 | M67: 0.999989079 | N67: 1 | O67: 62.15555065 | P67: 0.004151164373 | Q67: 0 | R67: 0 | S67: 0 | T67: 0 | U67: 0 | V67: 0 | W67: 1.004109653 | X67: 62.15555065 | Y67: 937.202542 | Z67: 0 | AA67: 0 | AB67: 0 | AC67: 0 | AD67: 0 | AE67: 937.202542 | AF67: 57558.2908 | AG67: 0 | AH67: 0 | AI67: 57558.2908 | AJ67: 3.835813125 | AK67: 933.3667289
H68: 2027-11-01 | I68: 56 | J68: 49.15616438 | K68: 34.77260274 | L68: 0.9998889819 | M68: 0.999989079 | N68: 1 | O68: 61.27604153 | P68: 0.004092424858 | Q68: 0 | R68: 0 | S68: 0 | T68: 0 | U68: 0 | V68: 0 | W68: 1.004051501 | X68: 61.27604153 | Y68: 937.1482647 | Z68: 0 | AA68: 0 | AB68: 0 | AC68: 0 | AD68: 0 | AE68: 937.1482647 | AF68: 56743.83351 | AG68: 0 | AH68: 0 | AI68: 56743.83351 | AJ68: 3.781535871 | AK68: 933.3667289
H69: 2027-12-01 | I69: 57 | J69: 49.23835616 | K69: 34.85753425 | L69: 0.9998889819 | M69: 0.999989079 | N69: 1 | O69: 60.39468452 | P69: 0.004033561928 | Q69: 0 | R69: 0 | S69: 0 | T69: 0 | U69: 0 | V69: 0 | W69: 1.003993226 | X69: 60.39468452 | Y69: 937.0938734 | Z69: 0 | AA69: 0 | AB69: 0 | AC69: 0 | AD69: 0 | AE69: 937.0938734 | AF69: 55927.665 | AG69: 0 | AH69: 0 | AI69: 55927.665 | AJ69: 3.727144578 | AK69: 933.3667289
H70: 2028-01-01 | I70: 58 | J70: 49.32328767 | K70: 34.93972603 | L70: 0.9998889819 | M70: 0.999989079 | N70: 1 | O70: 59.51147574 | P70: 0.003974575324 | Q70: 0 | R70: 0 | S70: 0 | T70: 0 | U70: 0 | V70: 0 | W70: 1.00393483 | X70: 59.51147574 | Y70: 937.0393679 | Z70: 0 | AA70: 0 | AB70: 0 | AC70: 0 | AD70: 0 | AE70: 937.0393679 | AF70: 55109.78168 | AG70: 0 | AH70: 0 | AI70: 55109.78168 | AJ70: 3.672639005 | AK70: 933.3667289
H71: 2028-02-01 | I71: 59 | J71: 49.40547945 | K71: 35.02191781 | L71: 0.9998889819 | M71: 0.9999881571 | N71: 1 | O71: 58.62641129 | P71: 0.003915464787 | Q71: 0 | R71: 0 | S71: 0 | T71: 0 | U71: 0 | V71: 0 | W71: 1.00387631 | X71: 58.62641129 | Y71: 936.9847478 | Z71: 0 | AA71: 0 | AB71: 0 | AC71: 0 | AD71: 0 | AE71: 936.9847478 | AF71: 54290.17995 | AG71: 0 | AH71: 0 | AI71: 54290.17995 | AJ71: 3.618018914 | AK71: 933.3667289
H72: 2028-03-01 | I72: 60 | J72: 49.49041096 | K72: 35.10684932 | L72: 0.9998889819 | M72: 0.9999881571 | N72: 1 | O72: 57.73948727 | P72: 0.003856230055 | Q72: 0 | R72: 0 | S72: 0 | T72: 0 | U72: 0 | V72: 0 | W72: 1.003817668 | X72: 57.73948727 | Y72: 936.9300129 | Z72: 0 | AA72: 0 | AB72: 0 | AC72: 0 | AD72: 0 | AE72: 936.9300129 | AF72: 53468.85619 | AG72: 0 | AH72: 0 | AI72: 53468.85619 | AJ72: 3.563284064 | AK72: 933.3667289
H73: 2028-04-01 | I73: 61 | J73: 49.57260274 | K73: 35.1890411 | L73: 0.9998889819 | M73: 0.9999881571 | N73: 1 | O73: 56.85069979 | P73: 0.003796870868 | Q73: 0 | R73: 0 | S73: 0 | T73: 0 | U73: 0 | V73: 0 | W73: 1.003758902 | X73: 56.85069979 | Y73: 936.8751631 | Z73: 0 | AA73: 0 | AB73: 0 | AC73: 0 | AD73: 0 | AE73: 936.8751631 | AF73: 52645.80679 | AG73: 0 | AH73: 0 | AI73: 52645.80679 | AJ73: 3.508434213 | AK73: 933.3667289
H74: 2028-05-01 | I74: 62 | J74: 49.65479452 | K74: 35.2739726 | L74: 0.9998889819 | M74: 0.9999881571 | N74: 1 | O74: 55.96004492 | P74: 0.003737386965 | Q74: 0 | R74: 0 | S74: 0 | T74: 0 | U74: 0 | V74: 0 | W74: 1.003700013 | X74: 55.96004492 | Y74: 936.820198 | Z74: 0 | AA74: 0 | AB74: 0 | AC74: 0 | AD74: 0 | AE74: 936.820198 | AF74: 51821.02813 | AG74: 0 | AH74: 0 | AI74: 51821.02813 | AJ74: 3.453469119 | AK74: 933.3667289
H75: 2028-06-01 | I75: 63 | J75: 49.73972603 | K75: 35.35616438 | L75: 0.9998889819 | M75: 0.9999881571 | N75: 1 | O75: 55.06751873 | P75: 0.003677778083 | Q75: 0 | R75: 0 | S75: 0 | T75: 0 | U75: 0 | V75: 0 | W75: 1.003641 | X75: 55.06751873 | Y75: 936.7651174 | Z75: 0 | AA75: 0 | AB75: 0 | AC75: 0 | AD75: 0 | AE75: 936.7651174 | AF75: 50994.51656 | AG75: 0 | AH75: 0 | AI75: 50994.51656 | AJ75: 3.398388541 | AK75: 933.3667289
H76: 2028-07-01 | I76: 64 | J76: 49.82191781 | K76: 35.44109589 | L76: 0.9998889819 | M76: 0.9999881571 | N76: 1 | O76: 54.17311731 | P76: 0.003618043959 | Q76: 0 | R76: 0 | S76: 0 | T76: 0 | U76: 0 | V76: 0 | W76: 1.003581864 | X76: 54.17311731 | Y76: 936.7099211 | Z76: 0 | AA76: 0 | AB76: 0 | AC76: 0 | AD76: 0 | AE76: 936.7099211 | AF76: 50166.26845 | AG76: 0 | AH76: 0 | AI76: 50166.26845 | AJ76: 3.343192237 | AK76: 933.3667289
H77: 2028-08-01 | I77: 65 | J77: 49.90684932 | K77: =+IF(J77="","",ROUND((YEAR($H77)-YEAR($C$11)+(MONTH($H77)-MONTH($C$11))/12+(DAY($H77)-DAY($C$11))/365)*365,0)/365) -> 35.52328767 | L77: 0.9998889819 | M77: 0.9999881571 | N77: 1 | O77: 53.2768367 | P77: =+IF(O77=0,0,O77/L77*(1+$L$8)*$J$9) -> 0.003558184332 | Q77: =+N77*$C$13 -> 0 | R77: 0 | S77: 0 | T77: 0 | U77: 0 | V77: 0 | W77: =+IF(P77=0,0,N77+P77*(1-$I$8)) -> 1.003522602 | X77: =+(W77/(1-$I$8)+X78)*L77*$M$8 -> 53.2768367 | Y77: =+W77*$F$10 -> 936.6546088 | Z77: 0 | AA77: =+(AA78+Z77/(1-$I$8))*M77*$M$8 -> 0 | AB77: 0 | AC77: =+(AC78+AB77/(1-$I$8))*L77*M77*$M$8 -> 0 | AD77: 0 | AE77: 936.6546088 | AF77: 49336.28015 | AG77: 0 | AH77: 0 | AI77: 49336.28015 | AJ77: 3.287879962 | AK77: 933.3667289
H78: =+IF(I78="","",DATE(YEAR(H77),MONTH(H77)+1,1)) -> 2028-09-01 | I78: 66 | J78: =+IF(I78="","",ROUND((YEAR(H78)-YEAR($C$10)+(MONTH(H78)-MONTH($C$10))/12+(DAY(H78)-DAY($C$10))/365)*365,0)/365) -> 49.9890411 | K78: 35.60547945 | L78: 0.9998889819 | M78: 0.9999881571 | N78: =+IF(I78="",0,IF(H78<DATE(YEAR($C$9),MONTH($C$9),1),0,(1+$C$14)^(YEAR(H78)-YEAR($C$9)))) -> 1 | O78: =+(O79*L78+N78*L78/(1-$I$8))*$M$9 -> 52.37867297 | P78: 0.003498198936 | Q78: 0 | R78: =+(R79*$M78+Q78*$M78/(1-$I$8))*$M$9 -> 0 | S78: =+(S79*L78*$M78+Q78*L78*$M78/(1-$I$8))*$M$9 -> 0 | T78: =+R78-S78 -> 0 | U78: =+IF(R78=0,0,R78/M78*(1+$L$8)*$J$9) -> 0 | V78: =+IF(S78=0,0,S78/(L78*M78)*(1+$L$8)*$J$9) -> 0 | W78: 1.003463217 | X78: 52.37867297 | Y78: 936.5991803 | Z78: =+Q78+U78*(1-$I$8) -> 0 | AA78: 0 | AB78: =+Q78+V78*(1-$I$8) -> 0 | AC78: 0 | AD78: 0 | AE78: 936.5991803 | AF78: =+$C$18*O78*0.99/L78*(1+$L$8) -> 48504.54801 | AG78: =+$C$18*R78*0.99/M78*(1+$L$8) -> 0 | AH78: =+$C$18*S78*0.99/(M78*L78)*(1+$L$8) -> 0 | AI78: =+AF78+AG78-AH78 -> 48504.54801 | AJ78: =+AI78*$J$9 -> 3.232451473 | AK78: =+AE78-AJ78 -> 933.3667289
H79: 2028-10-01 | I79: =+IF(OR(I78="",I78=$C$19+$C$15),"",I78+1) -> 67 | J79: 50.07123288 | K79: 35.69041096 | L79: =+IF(I79="",0,VLOOKUP(J79,TB_GEN,3+$C$12)) -> 0.9998769366 | M79: 0.9999881571 | N79: 1 | O79: 51.47862215 | P79: 0.003438128926 | Q79: 0 | R79: 0 | S79: 0 | T79: 0 | U79: 0 | V79: 0 | W79: 1.003403748 | X79: 51.47862215 | Y79: 936.5436737 | Z79: 0 | AA79: 0 | AB79: 0 | AC79: 0 | AD79: 0 | AE79: =+W79*$C$18+(Z79-AB79)*$C$18 -> 936.5436737 | AF79: 47671.64263 | AG79: 0 | AH79: 0 | AI79: 47671.64263 | AJ79: 3.176944797 | AK79: 933.3667289
H80: 2028-11-01 | I80: 68 | J80: 50.15616438 | K80: 35.77260274 | L80: 0.9998769366 | M80: =+IF(I80="",0,VLOOKUP(K80,TB_GEN,7+$F$18)) -> 0.9999881571 | N80: 1 | O80: 50.57730173 | P80: 0.00337793198 | Q80: 0 | R80: 0 | S80: 0 | T80: 0 | U80: 0 | V80: 0 | W80: 1.003344153 | X80: 50.57730173 | Y80: 936.4880497 | Z80: 0 | AA80: 0 | AB80: 0 | AC80: 0 | AD80: =+AA80-AC80 -> 0 | AE80: 936.4880497 | AF80: 46836.97723 | AG80: 0 | AH80: 0 | AI80: 46836.97723 | AJ80: 3.12132083 | AK80: 933.3667289
H81: 2028-12-01 | I81: 69 | J81: 50.23835616 | K81: 35.85753425 | L81: 0.9998769366 | M81: 0.9999881571 | N81: 1 | O81: 49.67407671 | P81: 0.003317607831 | Q81: 0 | R81: 0 | S81: 0 | T81: 0 | U81: 0 | V81: 0 | W81: 1.003284432 | X81: 49.67407671 | Y81: 936.4323082 | Z81: 0 | AA81: 0 | AB81: 0 | AC81: 0 | AD81: 0 | AE81: 936.4323082 | AF81: 46000.54807 | AG81: 0 | AH81: 0 | AI81: 46000.54807 | AJ81: 3.065579322 | AK81: 933.3667289
H82: 2029-01-01 | I82: 70 | J82: 50.32328767 | K82: 35.93972603 | L82: 0.9998769366 | M82: 0.9999881571 | N82: 1 | O82: 48.76894306 | P82: 0.00325715621 | Q82: 0 | R82: 0 | S82: 0 | T82: 0 | U82: 0 | V82: 0 | W82: 1.003224585 | X82: 48.76894306 | Y82: 936.3764489 | Z82: 0 | AA82: 0 | AB82: 0 | AC82: 0 | AD82: 0 | AE82: 936.3764489 | AF82: 45162.35144 | AG82: 0 | AH82: 0 | AI82: 45162.35144 | AJ82: 3.009720025 | AK82: 933.3667289
H83: 2029-02-01 | I83: 71 | J83: 50.40547945 | K83: 36.02191781 | L83: 0.9998769366 | M83: 0.999987069 | N83: 1 | O83: 47.86189676 | P83: 0.003196576847 | Q83: 0 | R83: 0 | S83: 0 | T83: 0 | U83: 0 | V83: 0 | W83: 1.003164611 | X83: 47.86189676 | Y83: 936.3204716 | Z83: 0 | AA83: 0 | AB83: 0 | AC83: 0 | AD83: 0 | AE83: 936.3204716 | AF83: 44322.3836 | AG83: 0 | AH83: 0 | AI83: 44322.3836 | AJ83: 2.953742691 | AK83: 933.3667289
H84: 2029-03-01 | I84: 72 | J84: 50.49041096 | K84: 36.10684932 | L84: 0.9998769366 | M84: 0.999987069 | N84: 1 | O84: 46.95293376 | P84: 0.003135869473 | Q84: 0 | R84: 0 | S84: 0 | T84: 0 | U84: 0 | V84: 0 | W84: 1.003104511 | X84: 46.95293376 | Y84: 936.2643759 | Z84: 0 | AA84: 0 | AB84: 0 | AC84: 0 | AD84: 0 | AE84: 936.2643759 | AF84: 43480.64081 | AG84: 0 | AH84: 0 | AI84: 43480.64081 | AJ84: 2.89764707 | AK84: 933.3667289
H85: 2029-04-01 | I85: 73 | J85: 50.57260274 | K85: 36.1890411 | L85: 0.9998769366 | M85: 0.999987069 | N85: 1 | O85: 46.04205001 | P85: 0.003075033817 | Q85: 0 | R85: 0 | S85: 0 | T85: 0 | U85: 0 | V85: 0 | W85: 1.003044283 | X85: 46.04205001 | Y85: 936.2081618 | Z85: 0 | AA85: 0 | AB85: 0 | AC85: 0 | AD85: 0 | AE85: 936.2081618 | AF85: 42637.1193 | AG85: 0 | AH85: 0 | AI85: 42637.1193 | AJ85: 2.841432912 | AK85: 933.3667289
H86: 2029-05-01 | I86: 74 | J86: 50.65479452 | K86: 36.2739726 | L86: 0.9998769366 | M86: 0.999987069 | N86: 1 | O86: 45.12924145 | P86: 0.003014069607 | Q86: 0 | R86: 0 | S86: 0 | T86: 0 | U86: 0 | V86: 0 | W86: 1.002983929 | X86: 45.12924145 | Y86: 936.1518288 | Z86: 0 | AA86: 0 | AB86: 0 | AC86: 0 | AD86: 0 | AE86: 936.1518288 | AF86: 41791.81534 | AG86: 0 | AH86: 0 | AI86: 41791.81534 | AJ86: 2.785099967 | AK86: 933.3667289
H87: 2029-06-01 | I87: 75 | J87: 50.73972603 | K87: 36.35616438 | L87: 0.9998769366 | M87: 0.999987069 | N87: 1 | O87: 44.21450401 | P87: 0.002952976573 | Q87: 0 | R87: 0 | S87: 0 | T87: 0 | U87: 0 | V87: 0 | W87: 1.002923447 | X87: 44.21450401 | Y87: 936.0953769 | Z87: 0 | AA87: 0 | AB87: 0 | AC87: 0 | AD87: 0 | AE87: 936.0953769 | AF87: 40944.72515 | AG87: 0 | AH87: 0 | AI87: 40944.72515 | AJ87: 2.728647983 | AK87: 933.3667289
H88: 2029-07-01 | I88: 76 | J88: 50.82191781 | K88: 36.44109589 | L88: 0.9998769366 | M88: 0.999987069 | N88: 1 | O88: 43.29783363 | P88: 0.002891754441 | Q88: 0 | R88: 0 | S88: 0 | T88: 0 | U88: 0 | V88: 0 | W88: 1.002862837 | X88: 43.29783363 | Y88: 936.0388056 | Z88: 0 | AA88: 0 | AB88: 0 | AC88: 0 | AD88: 0 | AE88: 936.0388056 | AF88: 40095.84495 | AG88: 0 | AH88: 0 | AI88: 40095.84495 | AJ88: 2.67207671 | AK88: 933.3667289
H89: 2029-08-01 | I89: 77 | J89: 50.90684932 | K89: 36.52328767 | L89: 0.9998769366 | M89: 0.999987069 | N89: 1 | O89: 42.37922621 | P89: 0.00283040294 | Q89: 0 | R89: 0 | S89: 0 | T89: 0 | U89: 0 | V89: 0 | W89: 1.002802099 | X89: 42.37922621 | Y89: 935.9821148 | Z89: 0 | AA89: 0 | AB89: 0 | AC89: 0 | AD89: 0 | AE89: 935.9821148 | AF89: 39245.17096 | AG89: 0 | AH89: 0 | AI89: 39245.17096 | AJ89: 2.615385894 | AK89: 933.3667289
H90: 2029-09-01 | I90: 78 | J90: 50.9890411 | K90: 36.60547945 | L90: 0.9998769366 | M90: 0.999987069 | N90: 1 | O90: 41.45867766 | P90: 0.002768921796 | Q90: 0 | R90: 0 | S90: 0 | T90: 0 | U90: 0 | V90: 0 | W90: 1.002741233 | X90: 41.45867766 | Y90: 935.9253042 | Z90: 0 | AA90: 0 | AB90: 0 | AC90: 0 | AD90: 0 | AE90: 935.9253042 | AF90: 38392.6994 | AG90: 0 | AH90: 0 | AI90: 38392.6994 | AJ90: 2.558575284 | AK90: 933.3667289
H91: 2029-10-01 | I91: 79 | J91: 51.07123288 | K91: 36.69041096 | L91: 0.9998642495 | M91: 0.999987069 | N91: 1 | O91: 40.53618388 | P91: 0.002707345087 | Q91: 0 | R91: 0 | S91: 0 | T91: 0 | U91: 0 | V91: 0 | W91: 1.002680272 | X91: 40.53618388 | Y91: 935.8684052 | Z91: 0 | AA91: 0 | AB91: 0 | AC91: 0 | AD91: 0 | AE91: 935.8684052 | AF91: 37538.90277 | AG91: 0 | AH91: 0 | AI91: 37538.90277 | AJ91: 2.501676369 | AK91: 933.3667289
H92: 2029-11-01 | I92: 80 | J92: 51.15616438 | K92: 36.77260274 | L92: 0.9998642495 | M92: 0.999987069 | N92: 1 | O92: 39.6122562 | P92: 0.002645637476 | Q92: 0 | R92: 0 | S92: 0 | T92: 0 | U92: 0 | V92: 0 | W92: 1.002619181 | X92: 39.6122562 | Y92: 935.8113854 | Z92: 0 | AA92: 0 | AB92: 0 | AC92: 0 | AD92: 0 | AE92: 935.8113854 | AF92: 36683.29112 | AG92: 0 | AH92: 0 | AI92: 36683.29112 | AJ92: 2.444656497 | AK92: 933.3667289
H93: 2029-12-01 | I93: 81 | J93: 51.23835616 | K93: 36.85753425 | L93: 0.9998642495 | M93: 0.999987069 | N93: 1 | O93: 38.6863644 | P93: 0.002583798685 | Q93: 0 | R93: 0 | S93: 0 | T93: 0 | U93: 0 | V93: 0 | W93: 1.002557961 | X93: 38.6863644 | Y93: 935.7542443 | Z93: 0 | AA93: 0 | AB93: 0 | AC93: 0 | AD93: 0 | AE93: 935.7542443 | AF93: 35825.86058 | AG93: 0 | AH93: 0 | AI93: 35825.86058 | AJ93: 2.387515409 | AK93: 933.3667289
H94: 2030-01-01 | I94: 82 | J94: 51.32328767 | K94: 36.93972603 | L94: 0.9998642495 | M94: 0.999987069 | N94: 1 | O94: 37.7585043 | P94: 0.002521828434 | Q94: 0 | R94: 0 | S94: 0 | T94: 0 | U94: 0 | V94: 0 | W94: 1.00249661 | X94: 37.7585043 | Y94: 935.6969817 | Z94: 0 | AA94: 0 | AB94: 0 | AC94: 0 | AD94: 0 | AE94: 935.6969817 | AF94: 34966.60727 | AG94: 0 | AH94: 0 | AI94: 34966.60727 | AJ94: 2.330252849 | AK94: 933.3667289
H95: 2030-02-01 | I95: 83 | J95: 51.40547945 | K95: 37.02191781 | L95: 0.9998642495 | M95: 0.9999857787 | N95: 1 | O95: 36.82867173 | P95: 0.002459726445 | Q95: 0 | R95: 0 | S95: 0 | T95: 0 | U95: 0 | V95: 0 | W95: 1.002435129 | X95: 36.82867173 | Y95: 935.6395974 | Z95: 0 | AA95: 0 | AB95: 0 | AC95: 0 | AD95: 0 | AE95: 935.6395974 | AF95: 34105.52734 | AG95: 0 | AH95: 0 | AI95: 34105.52734 | AJ95: 2.272868558 | AK95: 933.3667289
H96: 2030-03-01 | I96: 84 | J96: 51.49041096 | K96: 37.10684932 | L96: 0.9998642495 | M96: 0.9999857787 | N96: 1 | O96: 35.89686248 | P96: 0.002397492437 | Q96: 0 | R96: 0 | S96: 0 | T96: 0 | U96: 0 | V96: 0 | W96: 1.002373518 | X96: 35.89686248 | Y96: 935.5820911 | Z96: 0 | AA96: 0 | AB96: 0 | AC96: 0 | AD96: 0 | AE96: 935.5820911 | AF96: 33242.61689 | AG96: 0 | AH96: 0 | AI96: 33242.61689 | AJ96: 2.215362277 | AK96: 933.3667289
H97: 2030-04-01 | I97: 85 | J97: 51.57260274 | K97: 37.1890411 | L97: 0.9998642495 | M97: 0.9999857787 | N97: 1 | O97: 34.96307236 | P97: 0.00233512613 | Q97: 0 | R97: 0 | S97: 0 | T97: 0 | U97: 0 | V97: 0 | W97: 1.002311775 | X97: 34.96307236 | Y97: 935.5244626 | Z97: 0 | AA97: 0 | AB97: 0 | AC97: 0 | AD97: 0 | AE97: 935.5244626 | AF97: 32377.87203 | AG97: 0 | AH97: 0 | AI97: 32377.87203 | AJ97: 2.157733747 | AK97: 933.3667289
H98: 2030-05-01 | I98: 86 | J98: 51.65479452 | K98: 37.2739726 | L98: 0.9998642495 | M98: 0.9999857787 | N98: 1 | O98: 34.02729715 | P98: 0.002272627242 | Q98: 0 | R98: 0 | S98: 0 | T98: 0 | U98: 0 | V98: 0 | W98: 1.002249901 | X98: 34.02729715 | Y98: 935.4667116 | Z98: 0 | AA98: 0 | AB98: 0 | AC98: 0 | AD98: 0 | AE98: 935.4667116 | AF98: 31511.28886 | AG98: 0 | AH98: 0 | AI98: 31511.28886 | AJ98: 2.099982708 | AK98: 933.3667289
H99: 2030-06-01 | I99: 87 | J99: 51.73972603 | K99: 37.35616438 | L99: 0.9998642495 | M99: 0.9999857787 | N99: 1 | O99: 33.08953264 | P99: 0.002209995492 | Q99: 0 | R99: 0 | S99: 0 | T99: 0 | U99: 0 | V99: 0 | W99: 1.002187896 | X99: 33.08953264 | Y99: 935.4088378 | Z99: 0 | AA99: 0 | AB99: 0 | AC99: 0 | AD99: 0 | AE99: 935.4088378 | AF99: 30642.86348 | AG99: 0 | AH99: 0 | AI99: 30642.86348 | AJ99: 2.0421089 | AK99: 933.3667289
H100: 2030-07-01 | I100: 88 | J100: 51.82191781 | K100: 37.44109589 | L100: 0.9998642495 | M100: 0.9999857787 | N100: 1 | O100: 32.14977459 | P100: 0.002147230596 | Q100: 0 | R100: 0 | S100: 0 | T100: 0 | U100: 0 | V100: 0 | W100: 1.002125758 | X100: 32.14977459 | Y100: 935.3508409 | Z100: 0 | AA100: 0 | AB100: 0 | AC100: 0 | AD100: 0 | AE100: 935.3508409 | AF100: 29772.59197 | AG100: 0 | AH100: 0 | AI100: 29772.59197 | AJ100: 1.984112062 | AK100: 933.3667289
H101: 2030-08-01 | I101: 89 | J101: 51.90684932 | K101: 37.52328767 | L101: 0.9998642495 | M101: 0.9999857787 | N101: 1 | O101: 31.20801877 | P101: 0.002084332273 | Q101: 0 | R101: 0 | S101: 0 | T101: 0 | U101: 0 | V101: 0 | W101: 1.002063489 | X101: 31.20801877 | Y101: 935.2927208 | Z101: 0 | AA101: 0 | AB101: 0 | AC101: 0 | AD101: 0 | AE101: 935.2927208 | AF101: 28900.4704 | AG101: 0 | AH101: 0 | AI101: 28900.4704 | AJ101: 1.925991932 | AK101: 933.3667289
H102: 2030-09-01 | I102: 90 | J102: 51.9890411 | K102: 37.60547945 | L102: 0.9998642495 | M102: 0.9999857787 | N102: 1 | O102: 30.26426093 | P102: 0.002021300238 | Q102: 0 | R102: 0 | S102: 0 | T102: 0 | U102: 0 | V102: 0 | W102: 1.002001087 | X102: 30.26426093 | Y102: 935.2344771 | Z102: 0 | AA102: 0 | AB102: 0 | AC102: 0 | AD102: 0 | AE102: 935.2344771 | AF102: 28026.49485 | AG102: 0 | AH102: 0 | AI102: 28026.49485 | AJ102: 1.867748248 | AK102: 933.3667289
H103: 2030-10-01 | I103: 91 | J103: 52.07123288 | K103: 37.69041096 | L103: 0.9998511895 | M103: 0.9999857787 | N103: 1 | O103: 29.31849681 | P103: 0.001958159785 | Q103: 0 | R103: 0 | S103: 0 | T103: 0 | U103: 0 | V103: 0 | W103: 1.001938578 | X103: 29.31849681 | Y103: 935.1761333 | Z103: 0 | AA103: 0 | AB103: 0 | AC103: 0 | AD103: 0 | AE103: 935.1761333 | AF103: 27151.016 | AG103: 0 | AH103: 0 | AI103: 27151.016 | AJ103: 1.809404381 | AK103: 933.3667289
H104: 2030-11-01 | I104: 92 | J104: 52.15616438 | K104: 37.77260274 | L104: 0.9998511895 | M104: 0.9999857787 | N104: 1 | O104: 28.37110593 | P104: 0.001894884278 | Q104: 0 | R104: 0 | S104: 0 | T104: 0 | U104: 0 | V104: 0 | W104: 1.001875935 | X104: 28.37110593 | Y104: 935.1176646 | Z104: 0 | AA104: 0 | AB104: 0 | AC104: 0 | AD104: 0 | AE104: 935.1176646 | AF104: 26273.66457 | AG104: 0 | AH104: 0 | AI104: 26273.66457 | AJ104: 1.750935721 | AK104: 933.3667289
H105: 2030-12-01 | I105: 93 | J105: 52.23835616 | K105: 37.85753425 | L105: 0.9998511895 | M105: 0.9999857787 | N105: 1 | O105: 27.42168864 | P105: 0.00183147343 | Q105: 0 | R105: 0 | S105: 0 | T105: 0 | U105: 0 | V105: 0 | W105: 1.001813159 | X105: 27.42168864 | Y105: 935.0590709 | Z105: 0 | AA105: 0 | AB105: 0 | AC105: 0 | AD105: 0 | AE105: 935.0590709 | AF105: 25394.43655 | AG105: 0 | AH105: 0 | AI105: 25394.43655 | AJ105: 1.692342001 | AK105: 933.3667289
H106: 2031-01-01 | I106: 94 | J106: 52.32328767 | K106: 37.93972603 | L106: 0.9998511895 | M106: 0.9999857787 | N106: 1 | O106: 26.47024062 | P106: 0.001767926951 | Q106: 0 | R106: 0 | S106: 0 | T106: 0 | U106: 0 | V106: 0 | W106: 1.001750248 | X106: 26.47024062 | Y106: 935.0003518 | Z106: 0 | AA106: 0 | AB106: 0 | AC106: 0 | AD106: 0 | AE106: 935.0003518 | AF106: 24513.32793 | AG106: 0 | AH106: 0 | AI106: 24513.32793 | AJ106: 1.633622953 | AK106: 933.3667289
H107: 2031-02-01 | I107: 95 | J107: 52.40547945 | K107: 38.02191781 | L107: 0.9998511895 | M107: 0.9999843404 | N107: 1 | O107: 25.51675752 | P107: 0.001704244551 | Q107: 0 | R107: 0 | S107: 0 | T107: 0 | U107: 0 | V107: 0 | W107: 1.001687202 | X107: 25.51675752 | Y107: 934.9415072 | Z107: 0 | AA107: 0 | AB107: 0 | AC107: 0 | AD107: 0 | AE107: 934.9415072 | AF107: 23630.33468 | AG107: 0 | AH107: 0 | AI107: 23630.33468 | AJ107: 1.57477831 | AK107: 933.3667289
H108: 2031-03-01 | I108: 96 | J108: 52.49041096 | K108: 38.10684932 | L108: 0.9998511895 | M108: 0.9999843404 | N108: 1 | O108: 24.561235 | P108: 0.001640425938 | Q108: 0 | R108: 0 | S108: 0 | T108: 0 | U108: 0 | V108: 0 | W108: 1.001624022 | X108: 24.561235 | Y108: 934.8825367 | Z108: 0 | AA108: 0 | AB108: 0 | AC108: 0 | AD108: 0 | AE108: 934.8825367 | AF108: 22745.45277 | AG108: 0 | AH108: 0 | AI108: 22745.45277 | AJ108: 1.515807802 | AK108: 933.3667289
H109: 2031-04-01 | I109: 97 | J109: 52.57260274 | K109: 38.1890411 | L109: 0.9998511895 | M109: 0.9999843404 | N109: 1 | O109: 23.60366867 | P109: 0.001576470822 | Q109: 0 | R109: 0 | S109: 0 | T109: 0 | U109: 0 | V109: 0 | W109: 1.001560706 | X109: 23.60366867 | Y109: 934.82344 | Z109: 0 | AA109: 0 | AB109: 0 | AC109: 0 | AD109: 0 | AE109: 934.82344 | AF109: 21858.67816 | AG109: 0 | AH109: 0 | AI109: 21858.67816 | AJ109: 1.45671116 | AK109: 933.3667289
H110: 2031-05-01 | I110: 98 | J110: 52.65479452 | K110: 38.2739726 | L110: 0.9998511895 | M110: 0.9999843404 | N110: 1 | O110: 22.64405419 | P110: 0.001512378911 | Q110: 0 | R110: 0 | S110: 0 | T110: 0 | U110: 0 | V110: 0 | W110: 1.001497255 | X110: 22.64405419 | Y110: 934.764217 | Z110: 0 | AA110: 0 | AB110: 0 | AC110: 0 | AD110: 0 | AE110: 934.764217 | AF110: 20970.0068 | AG110: 0 | AH110: 0 | AI110: 20970.0068 | AJ110: 1.397488115 | AK110: 933.3667289
H111: 2031-06-01 | I111: 99 | J111: 52.73972603 | K111: 38.35616438 | L111: 0.9998511895 | M111: 0.9999843404 | N111: 1 | O111: 21.68238716 | P111: 0.001448149912 | Q111: 0 | R111: 0 | S111: 0 | T111: 0 | U111: 0 | V111: 0 | W111: 1.001433668 | X111: 21.68238716 | Y111: 934.7048673 | Z111: 0 | AA111: 0 | AB111: 0 | AC111: 0 | AD111: 0 | AE111: 934.7048673 | AF111: 20079.43465 | AG111: 0 | AH111: 0 | AI111: 20079.43465 | AJ111: 1.338138397 | AK111: 933.3667289
H112: 2031-07-01 | I112: 100 | J112: 52.82191781 | K112: 38.44109589 | L112: 0.9998511895 | M112: 0.9999843404 | N112: 1 | O112: 20.71866319 | P112: 0.001383783531 | Q112: 0 | R112: 0 | S112: 0 | T112: 0 | U112: 0 | V112: 0 | W112: 1.001369946 | X112: 20.71866319 | Y112: 934.6453906 | Z112: 0 | AA112: 0 | AB112: 0 | AC112: 0 | AD112: 0 | AE112: 934.6453906 | AF112: 19186.95762 | AG112: 0 | AH112: 0 | AI112: 19186.95762 | AJ112: 1.278661733 | AK112: 933.3667289
H113: 2031-08-01 | I113: 101 | J113: 52.90684932 | K113: 38.52328767 | L113: 0.9998511895 | M113: 0.9999843404 | N113: 1 | O113: 19.75287789 | P113: 0.001319279476 | Q113: 0 | R113: 0 | S113: 0 | T113: 0 | U113: 0 | V113: 0 | W113: 1.001306087 | X113: 19.75287789 | Y113: 934.5857867 | Z113: 0 | AA113: 0 | AB113: 0 | AC113: 0 | AD113: 0 | AE113: 934.5857867 | AF113: 18292.57165 | AG113: 0 | AH113: 0 | AI113: 18292.57165 | AJ113: 1.219057853 | AK113: 933.3667289
H114: 2031-09-01 | I114: 102 | J114: 52.9890411 | K114: 38.60547945 | L114: 0.9998511895 | M114: 0.9999843404 | N114: 1 | O114: 18.78502684 | P114: 0.001254637451 | Q114: 0 | R114: 0 | S114: 0 | T114: 0 | U114: 0 | V114: 0 | W114: 1.001242091 | X114: 18.78502684 | Y114: 934.5260554 | Z114: 0 | AA114: 0 | AB114: 0 | AC114: 0 | AD114: 0 | AE114: 934.5260554 | AF114: 17396.27265 | AG114: 0 | AH114: 0 | AI114: 17396.27265 | AJ114: 1.159326485 | AK114: 933.3667289
H115: 2031-10-01 | I115: 103 | J115: 53.07123288 | K115: 38.69041096 | L115: 0.9998380933 | M115: 0.9999843404 | N115: 1 | O115: 17.81510563 | P115: 0.001189872747 | Q115: 0 | R115: 0 | S115: 0 | T115: 0 | U115: 0 | V115: 0 | W115: 1.001177974 | X115: 17.81510563 | Y115: 934.4662106 | Z115: 0 | AA115: 0 | AB115: 0 | AC115: 0 | AD115: 0 | AE115: 934.4662106 | AF115: 16498.27264 | AG115: 0 | AH115: 0 | AI115: 16498.27264 | AJ115: 1.099481757 | AK115: 933.3667289
H116: 2031-11-01 | I116: 104 | J116: 53.15616438 | K116: 38.77260274 | L116: 0.9998380933 | M116: 0.9999843404 | N116: 1 | O116: 16.84334368 | P116: 0.001124968666 | Q116: 0 | R116: 0 | S116: 0 | T116: 0 | U116: 0 | V116: 0 | W116: 1.001113719 | X116: 16.84334368 | Y116: 934.4062371 | Z116: 0 | AA116: 0 | AB116: 0 | AC116: 0 | AD116: 0 | AE116: 934.4062371 | AF116: 15598.34008 | AG116: 0 | AH116: 0 | AI116: 15598.34008 | AJ116: 1.03950824 | AK116: 933.3667289
H117: 2031-12-01 | I117: 105 | J117: 53.23835616 | K117: 38.85753425 | L117: 0.9998380933 | M117: 0.9999843404 | N117: 1 | O117: 15.86949044 | P117: 0.001059924907 | Q117: 0 | R117: 0 | S117: 0 | T117: 0 | U117: 0 | V117: 0 | W117: 1.001049326 | X117: 15.86949044 | Y117: 934.3461345 | Z117: 0 | AA117: 0 | AB117: 0 | AC117: 0 | AD117: 0 | AE117: 934.3461345 | AF117: 14696.47081 | AG117: 0 | AH117: 0 | AI117: 14696.47081 | AJ117: 0.9794056573 | AK117: 933.3667289
H118: 2032-01-01 | I118: 106 | J118: 53.32328767 | K118: 38.93972603 | L118: 0.9998380933 | M118: 0.9999843404 | N118: 1 | O118: 14.89354142 | P118: 0.0009947411714 | Q118: 0 | R118: 0 | S118: 0 | T118: 0 | U118: 0 | V118: 0 | W118: 1.000984794 | X118: 14.89354142 | Y118: 934.2859026 | Z118: 0 | AA118: 0 | AB118: 0 | AC118: 0 | AD118: 0 | AE118: 934.2859026 | AF118: 13792.66068 | AG118: 0 | AH118: 0 | AI118: 13792.66068 | AJ118: 0.9191737301 | AK118: 933.3667289
H119: 2032-02-01 | I119: 107 | J119: 53.40547945 | K119: 39.02191781 | L119: 0.9998380933 | M119: 0.9999827288 | N119: 1 | O119: 13.91549211 | P119: 0.0009294171565 | Q119: 0 | R119: 0 | S119: 0 | T119: 0 | U119: 0 | V119: 0 | W119: 1.000920123 | X119: 13.91549211 | Y119: 934.2255411 | Z119: 0 | AA119: 0 | AB119: 0 | AC119: 0 | AD119: 0 | AE119: 934.2255411 | AF119: 12886.90549 | AG119: 0 | AH119: 0 | AI119: 12886.90549 | AJ119: 0.8588121807 | AK119: 933.3667289
H120: 2032-03-01 | I120: 108 | J120: 53.49041096 | K120: 39.10684932 | L120: 0.9998380933 | M120: 0.9999827288 | N120: 1 | O120: 12.93533798 | P120: 0.0008639525609 | Q120: 0 | R120: 0 | S120: 0 | T120: 0 | U120: 0 | V120: 0 | W120: 1.000855313 | X120: 12.93533798 | Y120: 934.1650496 | Z120: 0 | AA120: 0 | AB120: 0 | AC120: 0 | AD120: 0 | AE120: 934.1650496 | AF120: 11979.20108 | AG120: 0 | AH120: 0 | AI120: 11979.20108 | AJ120: 0.7983207299 | AK120: 933.3667289
H121: 2032-04-01 | I121: 109 | J121: 53.57260274 | K121: 39.1890411 | L121: 0.9998380933 | M121: 0.9999827288 | N121: 1 | O121: 11.9530745 | P121: 0.000798347082 | Q121: 0 | R121: 0 | S121: 0 | T121: 0 | U121: 0 | V121: 0 | W121: 1.000790364 | X121: 11.9530745 | Y121: 934.104428 | Z121: 0 | AA121: 0 | AB121: 0 | AC121: 0 | AD121: 0 | AE121: 934.104428 | AF121: 11069.54323 | AG121: 0 | AH121: 0 | AI121: 11069.54323 | AJ121: 0.7376990984 | AK121: 933.3667289
H122: 2032-05-01 | I122: 110 | J122: 53.65479452 | K122: 39.2739726 | L122: 0.9998380933 | M122: 0.9999827288 | N122: 1 | O122: 10.96869715 | P122: 0.0007326004166 | Q122: 0 | R122: 0 | S122: 0 | T122: 0 | U122: 0 | V122: 0 | W122: 1.000725274 | X122: 10.96869715 | Y122: 934.0436759 | Z122: 0 | AA122: 0 | AB122: 0 | AC122: 0 | AD122: 0 | AE122: 934.0436759 | AF122: 10157.92776 | AG122: 0 | AH122: 0 | AI122: 10157.92776 | AJ122: 0.6769470058 | AK122: 933.3667289
H123: 2032-06-01 | I123: 111 | J123: 53.73972603 | K123: 39.35616438 | L123: 0.9998380933 | M123: 0.9999827288 | N123: 1 | O123: 9.982201358 | P123: 0.0006667122608 | Q123: 0 | R123: 0 | S123: 0 | T123: 0 | U123: 0 | V123: 0 | W123: 1.000660045 | X123: 9.982201358 | Y123: 933.982793 | Z123: 0 | AA123: 0 | AB123: 0 | AC123: 0 | AD123: 0 | AE123: 933.982793 | AF123: 9244.350437 | AG123: 0 | AH123: 0 | AI123: 9244.350437 | AJ123: 0.6160641715 | AK123: 933.3667289
H124: 2032-07-01 | I124: 112 | J124: 53.82191781 | K124: 39.44109589 | L124: 0.9998380933 | M124: 0.9999827288 | N124: 1 | O124: 8.993582578 | P124: 0.0006006823102 | Q124: 0 | R124: 0 | S124: 0 | T124: 0 | U124: 0 | V124: 0 | W124: 1.000594675 | X124: 8.993582578 | Y124: 933.9217792 | Z124: 0 | AA124: 0 | AB124: 0 | AC124: 0 | AD124: 0 | AE124: 933.9217792 | AF124: 8328.807048 | AG124: 0 | AH124: 0 | AI124: 8328.807048 | AJ124: 0.5550503142 | AK124: 933.3667289
H125: 2032-08-01 | I125: 113 | J125: 53.90684932 | K125: 39.52328767 | L125: 0.9998380933 | M125: 0.9999827288 | N125: 1 | O125: 8.002836237 | P125: 0.0005345102597 | Q125: 0 | R125: 0 | S125: 0 | T125: 0 | U125: 0 | V125: 0 | W125: 1.000529165 | X125: 8.002836237 | Y125: 933.860634 | Z125: 0 | AA125: 0 | AB125: 0 | AC125: 0 | AD125: 0 | AE125: 933.860634 | AF125: 7411.293362 | AG125: 0 | AH125: 0 | AI125: 7411.293362 | AJ125: 0.4939051517 | AK125: 933.3667289
H126: 2032-09-01 | I126: 114 | J126: 53.9890411 | K126: 39.60547945 | L126: 0.9998380933 | M126: 0.9999827288 | N126: 1 | O126: 7.009957757 | P126: 0.0004681958033 | Q126: 0 | R126: 0 | S126: 0 | T126: 0 | U126: 0 | V126: 0 | W126: 1.000463514 | X126: 7.009957757 | Y126: 933.7993573 | Z126: 0 | AA126: 0 | AB126: 0 | AC126: 0 | AD126: 0 | AE126: 933.7993573 | AF126: 6491.805136 | AG126: 0 | AH126: 0 | AI126: 6491.805136 | AJ126: 0.4326284016 | AK126: 933.3667289
H127: 2032-10-01 | I127: 115 | J127: 54.07123288 | K127: 39.69041096 | L127: 0.9998250283 | M127: 0.9999827288 | N127: 1 | O127: 6.014942549 | P127: 0.0004017438844 | Q127: 0 | R127: 0 | S127: 0 | T127: 0 | U127: 0 | V127: 0 | W127: 1.000397726 | X127: 6.014942549 | Y127: 933.7379535 | Z127: 0 | AA127: 0 | AB127: 0 | AC127: 0 | AD127: 0 | AE127: 933.7379535 | AF127: 5570.410913 | AG127: 0 | AH127: 0 | AI127: 5570.410913 | AJ127: 0.3712246315 | AK127: 933.3667289
H128: 2032-11-01 | I128: 116 | J128: 54.15616438 | K128: 39.77260274 | L128: 0.9998250283 | M128: 0.9999827288 | N128: 1 | O128: 5.017864785 | P128: 0.0003351480872 | Q128: 0 | R128: 0 | S128: 0 | T128: 0 | U128: 0 | V128: 0 | W128: 1.000331797 | X128: 5.017864785 | Y128: 933.6764168 | Z128: 0 | AA128: 0 | AB128: 0 | AC128: 0 | AD128: 0 | AE128: 933.6764168 | AF128: 4647.021734 | AG128: 0 | AH128: 0 | AI128: 4647.021734 | AJ128: 0.3096879131 | AK128: 933.3667289
H129: 2032-12-01 | I129: 117 | J129: 54.23835616 | K129: 39.85753425 | L129: 0.9998250283 | M129: 0.9999827288 | N129: 1 | O129: 4.018628198 | P129: 0.0002684081002 | Q129: 0 | R129: 0 | S129: 0 | T129: 0 | U129: 0 | V129: 0 | W129: 1.000265724 | X129: 4.018628198 | Y129: 933.6147468 | Z129: 0 | AA129: 0 | AB129: 0 | AC129: 0 | AD129: 0 | AE129: 933.6147468 | AF129: 3721.63328 | AG129: 0 | AH129: 0 | AI129: 3721.63328 | AJ129: 0.2480179585 | AK129: 933.3667289
H130: 2033-01-01 | I130: 118 | J130: 54.32328767 | K130: 39.93972603 | L130: 0.9998250283 | M130: 0.9999827288 | N130: 1 | O130: 3.017228116 | P130: 0.0002015236111 | Q130: 0 | R130: 0 | S130: 0 | T130: 0 | U130: 0 | V130: 0 | W130: 1.000199508 | X130: 3.017228116 | Y130: 933.5529434 | Z130: 0 | AA130: 0 | AB130: 0 | AC130: 0 | AD130: 0 | AE130: 933.5529434 | AF130: 2794.241222 | AG130: 0 | AH130: 0 | AI130: 2794.241222 | AJ130: 0.1862144794 | AK130: 933.3667289
H131: 2033-02-01 | I131: 119 | J131: 54.40547945 | K131: 40.02191781 | L131: 0.9998250283 | M131: 0.9999809613 | N131: 1 | O131: 2.013659853 | P131: 0.0001344943072 | Q131: 0 | R131: 0 | S131: 0 | T131: 0 | U131: 0 | V131: 0 | W131: 1.000133149 | X131: 2.013659853 | Y131: 933.4910061 | Z131: 0 | AA131: 0 | AB131: 0 | AC131: 0 | AD131: 0 | AE131: 933.4910061 | AF131: 1864.841223 | AG131: 0 | AH131: 0 | AI131: 1864.841223 | AJ131: 0.1242771865 | AK131: 933.3667289
H132: 2033-03-01 | I132: 120 | J132: 54.49041096 | K132: 40.10684932 | L132: 0.9998250283 | M132: 0.9999809613 | N132: 1 | O132: 1.007918716 | P132: 6.731987494e-05 | Q132: 0 | R132: 0 | S132: 0 | T132: 0 | U132: 0 | V132: 0 | W132: 1.000066647 | X132: 1.007918716 | Y132: 933.4289347 | Z132: 0 | AA132: 0 | AB132: 0 | AC132: 0 | AD132: 0 | AE132: 933.4289347 | AF132: 933.4289347 | AG132: 0 | AH132: 0 | AI132: 933.4289347 | AJ132: 0.06220579015 | AK132: 933.3667289
L133: 0 | M133: 0 | N133: 0 | O133: 0 | P133: 0 | Q133: 0 | R133: 0 | S133: 0 | T133: 0 | U133: 0 | V133: 0 | W133: 0 | X133: 0 | Y133: 0 | Z133: 0 | AA133: 0 | AB133: 0 | AC133: 0 | AD133: 0 | AE133: 0
L134: 0 | M134: 0 | N134: 0 | O134: 0 | P134: 0 | Q134: 0 | R134: 0 | S134: 0 | T134: 0 | U134: 0 | V134: 0 | W134: 0 | X134: 0 | Y134: 0 | Z134: 0 | AA134: 0 | AB134: 0 | AC134: 0 | AD134: 0 | AE134: 0
L135: 0 | M135: 0 | N135: 0 | O135: 0 | P135: 0 | Q135: 0 | R135: 0 | S135: 0 | T135: 0 | U135: 0 | V135: 0 | W135: 0 | X135: 0 | Y135: 0 | Z135: 0 | AA135: 0 | AB135: 0 | AC135: 0 | AD135: 0 | AE135: 0
L136: 0 | M136: 0 | N136: 0 | O136: 0 | P136: 0 | Q136: 0 | R136: 0 | S136: 0 | T136: 0 | U136: 0 | V136: 0 | W136: 0 | X136: 0 | Y136: 0 | Z136: 0 | AA136: 0 | AB136: 0 | AC136: 0 | AD136: 0 | AE136: 0
L137: 0 | M137: 0 | N137: 0 | O137: 0 | P137: 0 | Q137: 0 | R137: 0 | S137: 0 | T137: 0 | U137: 0 | V137: 0 | W137: 0 | X137: 0 | Y137: 0 | Z137: 0 | AA137: 0 | AB137: 0 | AC137: 0 | AD137: 0 | AE137: 0
L138: 0 | M138: 0 | N138: 0 | O138: 0 | P138: 0 | Q138: 0 | R138: 0 | S138: 0 | T138: 0 | U138: 0 | V138: 0 | W138: 0 | X138: 0 | Y138: 0 | Z138: 0 | AA138: 0 | AB138: 0 | AC138: 0 | AD138: 0 | AE138: 0
L139: 0 | M139: 0 | N139: 0 | O139: 0 | P139: 0 | Q139: 0 | R139: 0 | S139: 0 | T139: 0 | U139: 0 | V139: 0 | W139: 0 | X139: 0 | Y139: 0 | Z139: 0 | AA139: 0 | AB139: 0 | AC139: 0 | AD139: 0 | AE139: 0
L140: 0 | M140: 0 | N140: 0 | O140: 0 | P140: 0 | Q140: 0 | R140: 0 | S140: 0 | T140: 0 | U140: 0 | V140: 0 | W140: 0 | X140: 0 | Y140: 0 | Z140: 0 | AA140: 0 | AB140: 0 | AC140: 0 | AD140: 0 | AE140: 0
K141: =+IF(J141="","",ROUND((YEAR($H141)-YEAR($C$11)+(MONTH($H141)-MONTH($C$11))/12+(DAY($H141)-DAY($C$11))/365)*365,0)/365) ->  | L141: 0 | M141: 0 | N141: 0 | O141: 0 | P141: =+IF(O141=0,0,O141/L141*(1+$L$8)*$J$9) -> 0 | Q141: =+N141*$C$13 -> 0 | R141: 0 | S141: 0 | T141: 0 | U141: 0 | V141: 0 | W141: =+IF(P141=0,0,N141+P141*(1-$I$8)) -> 0 | X141: =+(W141/(1-$I$8)+X142)*L141*$M$8 -> 0 | Y141: =+W141*$F$10 -> 0 | Z141: 0 | AA141: =+(AA142+Z141/(1-$I$8))*M141*$M$8 -> 0 | AB141: 0 | AC141: =+(AC142+AB141/(1-$I$8))*L141*M141*$M$8 -> 0 | AD141: 0 | AE141: 0
H142: =+IF(I142="","",DATE(YEAR(H141),MONTH(H141)+1,1)) ->  | J142: =+IF(I142="","",ROUND((YEAR(H142)-YEAR($C$10)+(MONTH(H142)-MONTH($C$10))/12+(DAY(H142)-DAY($C$10))/365)*365,0)/365) ->  | L142: 0 | M142: 0 | N142: =+IF(I142="",0,IF(H142<DATE(YEAR($C$9),MONTH($C$9),1),0,(1+$C$14)^(YEAR(H142)-YEAR($C$9)))) -> 0 | O142: =+(O143*L142+N142*L142/(1-$I$8))*$M$9 -> 0 | P142: 0 | Q142: 0 | R142: =+(R143*$M142+Q142*$M142/(1-$I$8))*$M$9 -> 0 | S142: =+(S143*L142*$M142+Q142*L142*$M142/(1-$I$8))*$M$9 -> 0 | T142: =+R142-S142 -> 0 | U142: =+IF(R142=0,0,R142/M142*(1+$L$8)*$J$9) -> 0 | V142: =+IF(S142=0,0,S142/(L142*M142)*(1+$L$8)*$J$9) -> 0 | W142: 0 | X142: 0 | Y142: 0 | Z142: =+Q142+U142*(1-$I$8) -> 0 | AA142: 0 | AB142: =+Q142+V142*(1-$I$8) -> 0 | AC142: 0 | AD142: 0 | AE142: 0 | AF142: =+$C$18*O142*0.99/L142*(1+$L$8) ->  | AG142: =+$C$18*R142*0.99/M142*(1+$L$8) ->  | AH142: =+$C$18*S142*0.99/(M142*L142)*(1+$L$8) ->  | AI142: =+AF142+AG142-AH142 ->  | AJ142: =+AI142*$J$9 ->  | AK142: =+AE142-AJ142 -> 
I143: =+IF(OR(I142="",I142=$C$19+$C$15),"",I142+1) ->  | L143: =+IF(I143="",0,VLOOKUP(J143,TB_GEN,3+$C$12)) -> 0 | M143: 0 | N143: 0 | O143: 0 | P143: 0 | Q143: 0 | R143: 0 | S143: 0 | T143: 0 | U143: 0 | V143: 0 | W143: 0 | X143: 0 | Y143: 0 | Z143: 0 | AA143: 0 | AB143: 0 | AC143: 0 | AD143: 0 | AE143: =+W143*$C$18+(Z143-AB143)*$C$18 -> 0
L144: 0 | M144: =+IF(I144="",0,VLOOKUP(K144,TB_GEN,7+$F$18)) -> 0 | N144: 0 | O144: 0 | P144: 0 | Q144: 0 | R144: 0 | S144: 0 | T144: 0 | U144: 0 | V144: 0 | W144: 0 | X144: 0 | Y144: 0 | Z144: 0 | AA144: 0 | AB144: 0 | AC144: 0 | AD144: =+AA144-AC144 -> 0 | AE144: 0
L145: 0 | M145: 0 | N145: 0 | O145: 0 | P145: 0 | Q145: 0 | R145: 0 | S145: 0 | T145: 0 | U145: 0 | V145: 0 | W145: 0 | X145: 0 | Y145: 0 | Z145: 0 | AA145: 0 | AB145: 0 | AC145: 0 | AD145: 0 | AE145: 0
L146: 0 | M146: 0 | N146: 0 | O146: 0 | P146: 0 | Q146: 0 | R146: 0 | S146: 0 | T146: 0 | U146: 0 | V146: 0 | W146: 0 | X146: 0 | Y146: 0 | Z146: 0 | AA146: 0 | AB146: 0 | AC146: 0 | AD146: 0 | AE146: 0
L147: 0 | M147: 0 | N147: 0 | O147: 0 | P147: 0 | Q147: 0 | R147: 0 | S147: 0 | T147: 0 | U147: 0 | V147: 0 | W147: 0 | X147: 0 | Y147: 0 | Z147: 0 | AA147: 0 | AB147: 0 | AC147: 0 | AD147: 0 | AE147: 0
L148: 0 | M148: 0 | N148: 0 | O148: 0 | P148: 0 | Q148: 0 | R148: 0 | S148: 0 | T148: 0 | U148: 0 | V148: 0 | W148: 0 | X148: 0 | Y148: 0 | Z148: 0 | AA148: 0 | AB148: 0 | AC148: 0 | AD148: 0 | AE148: 0
L149: 0 | M149: 0 | N149: 0 | O149: 0 | P149: 0 | Q149: 0 | R149: 0 | S149: 0 | T149: 0 | U149: 0 | V149: 0 | W149: 0 | X149: 0 | Y149: 0 | Z149: 0 | AA149: 0 | AB149: 0 | AC149: 0 | AD149: 0 | AE149: 0
L150: 0 | M150: 0 | N150: 0 | O150: 0 | P150: 0 | Q150: 0 | R150: 0 | S150: 0 | T150: 0 | U150: 0 | V150: 0 | W150: 0 | X150: 0 | Y150: 0 | Z150: 0 | AA150: 0 | AB150: 0 | AC150: 0 | AD150: 0 | AE150: 0
L151: 0 | M151: 0 | N151: 0 | O151: 0 | P151: 0 | Q151: 0 | R151: 0 | S151: 0 | T151: 0 | U151: 0 | V151: 0 | W151: 0 | X151: 0 | Y151: 0 | Z151: 0 | AA151: 0 | AB151: 0 | AC151: 0 | AD151: 0 | AE151: 0
L152: 0 | M152: 0 | N152: 0 | O152: 0 | P152: 0 | Q152: 0 | R152: 0 | S152: 0 | T152: 0 | U152: 0 | V152: 0 | W152: 0 | X152: 0 | Y152: 0 | Z152: 0 | AA152: 0 | AB152: 0 | AC152: 0 | AD152: 0 | AE152: 0
L153: 0 | M153: 0 | N153: 0 | O153: 0 | P153: 0 | Q153: 0 | R153: 0 | S153: 0 | T153: 0 | U153: 0 | V153: 0 | W153: 0 | X153: 0 | Y153: 0 | Z153: 0 | AA153: 0 | AB153: 0 | AC153: 0 | AD153: 0 | AE153: 0
L154: 0 | M154: 0 | N154: 0 | O154: 0 | P154: 0 | Q154: 0 | R154: 0 | S154: 0 | T154: 0 | U154: 0 | V154: 0 | W154: 0 | X154: 0 | Y154: 0 | Z154: 0 | AA154: 0 | AB154: 0 | AC154: 0 | AD154: 0 | AE154: 0
L155: 0 | M155: 0 | N155: 0 | O155: 0 | P155: 0 | Q155: 0 | R155: 0 | S155: 0 | T155: 0 | U155: 0 | V155: 0 | W155: 0 | X155: 0 | Y155: 0 | Z155: 0 | AA155: 0 | AB155: 0 | AC155: 0 | AD155: 0 | AE155: 0
L156: 0 | M156: 0 | N156: 0 | O156: 0 | P156: 0 | Q156: 0 | R156: 0 | S156: 0 | T156: 0 | U156: 0 | V156: 0 | W156: 0 | X156: 0 | Y156: 0 | Z156: 0 | AA156: 0 | AB156: 0 | AC156: 0 | AD156: 0 | AE156: 0
L157: 0 | M157: 0 | N157: 0 | O157: 0 | P157: 0 | Q157: 0 | R157: 0 | S157: 0 | T157: 0 | U157: 0 | V157: 0 | W157: 0 | X157: 0 | Y157: 0 | Z157: 0 | AA157: 0 | AB157: 0 | AC157: 0 | AD157: 0 | AE157: 0
L158: 0 | M158: 0 | N158: 0 | O158: 0 | P158: 0 | Q158: 0 | R158: 0 | S158: 0 | T158: 0 | U158: 0 | V158: 0 | W158: 0 | X158: 0 | Y158: 0 | Z158: 0 | AA158: 0 | AB158: 0 | AC158: 0 | AD158: 0 | AE158: 0
L159: 0 | M159: 0 | N159: 0 | O159: 0 | P159: 0 | Q159: 0 | R159: 0 | S159: 0 | T159: 0 | U159: 0 | V159: 0 | W159: 0 | X159: 0 | Y159: 0 | Z159: 0 | AA159: 0 | AB159: 0 | AC159: 0 | AD159: 0 | AE159: 0
L160: 0 | M160: 0 | N160: 0 | O160: 0 | P160: 0 | Q160: 0 | R160: 0 | S160: 0 | T160: 0 | U160: 0 | V160: 0 | W160: 0 | X160: 0 | Y160: 0 | Z160: 0 | AA160: 0 | AB160: 0 | AC160: 0 | AD160: 0 | AE160: 0
L161: 0 | M161: 0 | N161: 0 | O161: 0 | P161: 0 | Q161: 0 | R161: 0 | S161: 0 | T161: 0 | U161: 0 | V161: 0 | W161: 0 | X161: 0 | Y161: 0 | Z161: 0 | AA161: 0 | AB161: 0 | AC161: 0 | AD161: 0 | AE161: 0
L162: 0 | M162: 0 | N162: 0 | O162: 0 | P162: 0 | Q162: 0 | R162: 0 | S162: 0 | T162: 0 | U162: 0 | V162: 0 | W162: 0 | X162: 0 | Y162: 0 | Z162: 0 | AA162: 0 | AB162: 0 | AC162: 0 | AD162: 0 | AE162: 0
L163: 0 | M163: 0 | N163: 0 | O163: 0 | P163: 0 | Q163: 0 | R163: 0 | S163: 0 | T163: 0 | U163: 0 | V163: 0 | W163: 0 | X163: 0 | Y163: 0 | Z163: 0 | AA163: 0 | AB163: 0 | AC163: 0 | AD163: 0 | AE163: 0
L164: 0 | M164: 0 | N164: 0 | O164: 0 | P164: 0 | Q164: 0 | R164: 0 | S164: 0 | T164: 0 | U164: 0 | V164: 0 | W164: 0 | X164: 0 | Y164: 0 | Z164: 0 | AA164: 0 | AB164: 0 | AC164: 0 | AD164: 0 | AE164: 0
L165: 0 | M165: 0 | N165: 0 | O165: 0 | P165: 0 | Q165: 0 | R165: 0 | S165: 0 | T165: 0 | U165: 0 | V165: 0 | W165: 0 | X165: 0 | Y165: 0 | Z165: 0 | AA165: 0 | AB165: 0 | AC165: 0 | AD165: 0 | AE165: 0
L166: 0 | M166: 0 | N166: 0 | O166: 0 | P166: 0 | Q166: 0 | R166: 0 | S166: 0 | T166: 0 | U166: 0 | V166: 0 | W166: 0 | X166: 0 | Y166: 0 | Z166: 0 | AA166: 0 | AB166: 0 | AC166: 0 | AD166: 0 | AE166: 0
L167: 0 | M167: 0 | N167: 0 | O167: 0 | P167: 0 | Q167: 0 | R167: 0 | S167: 0 | T167: 0 | U167: 0 | V167: 0 | W167: 0 | X167: 0 | Y167: 0 | Z167: 0 | AA167: 0 | AB167: 0 | AC167: 0 | AD167: 0 | AE167: 0
L168: 0 | M168: 0 | N168: 0 | O168: 0 | P168: 0 | Q168: 0 | R168: 0 | S168: 0 | T168: 0 | U168: 0 | V168: 0 | W168: 0 | X168: 0 | Y168: 0 | Z168: 0 | AA168: 0 | AB168: 0 | AC168: 0 | AD168: 0 | AE168: 0
L169: 0 | M169: 0 | N169: 0 | O169: 0 | P169: 0 | Q169: 0 | R169: 0 | S169: 0 | T169: 0 | U169: 0 | V169: 0 | W169: 0 | X169: 0 | Y169: 0 | Z169: 0 | AA169: 0 | AB169: 0 | AC169: 0 | AD169: 0 | AE169: 0
L170: 0 | M170: 0 | N170: 0 | O170: 0 | P170: 0 | Q170: 0 | R170: 0 | S170: 0 | T170: 0 | U170: 0 | V170: 0 | W170: 0 | X170: 0 | Y170: 0 | Z170: 0 | AA170: 0 | AB170: 0 | AC170: 0 | AD170: 0 | AE170: 0
L171: 0 | M171: 0 | N171: 0 | O171: 0 | P171: 0 | Q171: 0 | R171: 0 | S171: 0 | T171: 0 | U171: 0 | V171: 0 | W171: 0 | X171: 0 | Y171: 0 | Z171: 0 | AA171: 0 | AB171: 0 | AC171: 0 | AD171: 0 | AE171: 0
L172: 0 | M172: 0 | N172: 0 | O172: 0 | P172: 0 | Q172: 0 | R172: 0 | S172: 0 | T172: 0 | U172: 0 | V172: 0 | W172: 0 | X172: 0 | Y172: 0 | Z172: 0 | AA172: 0 | AB172: 0 | AC172: 0 | AD172: 0 | AE172: 0
L173: 0 | M173: 0 | N173: 0 | O173: 0 | P173: 0 | Q173: 0 | R173: 0 | S173: 0 | T173: 0 | U173: 0 | V173: 0 | W173: 0 | X173: 0 | Y173: 0 | Z173: 0 | AA173: 0 | AB173: 0 | AC173: 0 | AD173: 0 | AE173: 0
L174: 0 | M174: 0 | N174: 0 | O174: 0 | P174: 0 | Q174: 0 | R174: 0 | S174: 0 | T174: 0 | U174: 0 | V174: 0 | W174: 0 | X174: 0 | Y174: 0 | Z174: 0 | AA174: 0 | AB174: 0 | AC174: 0 | AD174: 0 | AE174: 0
L175: 0 | M175: 0 | N175: 0 | O175: 0 | P175: 0 | Q175: 0 | R175: 0 | S175: 0 | T175: 0 | U175: 0 | V175: 0 | W175: 0 | X175: 0 | Y175: 0 | Z175: 0 | AA175: 0 | AB175: 0 | AC175: 0 | AD175: 0 | AE175: 0
L176: 0 | M176: 0 | N176: 0 | O176: 0 | P176: 0 | Q176: 0 | R176: 0 | S176: 0 | T176: 0 | U176: 0 | V176: 0 | W176: 0 | X176: 0 | Y176: 0 | Z176: 0 | AA176: 0 | AB176: 0 | AC176: 0 | AD176: 0 | AE176: 0
L177: 0 | M177: 0 | N177: 0 | O177: 0 | P177: 0 | Q177: 0 | R177: 0 | S177: 0 | T177: 0 | U177: 0 | V177: 0 | W177: 0 | X177: 0 | Y177: 0 | Z177: 0 | AA177: 0 | AB177: 0 | AC177: 0 | AD177: 0 | AE177: 0
L178: 0 | M178: 0 | N178: 0 | O178: 0 | P178: 0 | Q178: 0 | R178: 0 | S178: 0 | T178: 0 | U178: 0 | V178: 0 | W178: 0 | X178: 0 | Y178: 0 | Z178: 0 | AA178: 0 | AB178: 0 | AC178: 0 | AD178: 0 | AE178: 0
L179: 0 | M179: 0 | N179: 0 | O179: 0 | P179: 0 | Q179: 0 | R179: 0 | S179: 0 | T179: 0 | U179: 0 | V179: 0 | W179: 0 | X179: 0 | Y179: 0 | Z179: 0 | AA179: 0 | AB179: 0 | AC179: 0 | AD179: 0 | AE179: 0
L180: 0 | M180: 0 | N180: 0 | O180: 0 | P180: 0 | Q180: 0 | R180: 0 | S180: 0 | T180: 0 | U180: 0 | V180: 0 | W180: 0 | X180: 0 | Y180: 0 | Z180: 0 | AA180: 0 | AB180: 0 | AC180: 0 | AD180: 0 | AE180: 0
L181: 0 | M181: 0 | N181: 0 | O181: 0 | P181: 0 | Q181: 0 | R181: 0 | S181: 0 | T181: 0 | U181: 0 | V181: 0 | W181: 0 | X181: 0 | Y181: 0 | Z181: 0 | AA181: 0 | AB181: 0 | AC181: 0 | AD181: 0 | AE181: 0
L182: 0 | M182: 0 | N182: 0 | O182: 0 | P182: 0 | Q182: 0 | R182: 0 | S182: 0 | T182: 0 | U182: 0 | V182: 0 | W182: 0 | X182: 0 | Y182: 0 | Z182: 0 | AA182: 0 | AB182: 0 | AC182: 0 | AD182: 0 | AE182: 0
L183: 0 | M183: 0 | N183: 0 | O183: 0 | P183: 0 | Q183: 0 | R183: 0 | S183: 0 | T183: 0 | U183: 0 | V183: 0 | W183: 0 | X183: 0 | Y183: 0 | Z183: 0 | AA183: 0 | AB183: 0 | AC183: 0 | AD183: 0 | AE183: 0
L184: 0 | M184: 0 | N184: 0 | O184: 0 | P184: 0 | Q184: 0 | R184: 0 | S184: 0 | T184: 0 | U184: 0 | V184: 0 | W184: 0 | X184: 0 | Y184: 0 | Z184: 0 | AA184: 0 | AB184: 0 | AC184: 0 | AD184: 0 | AE184: 0
L185: 0 | M185: 0 | N185: 0 | O185: 0 | P185: 0 | Q185: 0 | R185: 0 | S185: 0 | T185: 0 | U185: 0 | V185: 0 | W185: 0 | X185: 0 | Y185: 0 | Z185: 0 | AA185: 0 | AB185: 0 | AC185: 0 | AD185: 0 | AE185: 0
L186: 0 | M186: 0 | N186: 0 | O186: 0 | P186: 0 | Q186: 0 | R186: 0 | S186: 0 | T186: 0 | U186: 0 | V186: 0 | W186: 0 | X186: 0 | Y186: 0 | Z186: 0 | AA186: 0 | AB186: 0 | AC186: 0 | AD186: 0 | AE186: 0
L187: 0 | M187: 0 | N187: 0 | O187: 0 | P187: 0 | Q187: 0 | R187: 0 | S187: 0 | T187: 0 | U187: 0 | V187: 0 | W187: 0 | X187: 0 | Y187: 0 | Z187: 0 | AA187: 0 | AB187: 0 | AC187: 0 | AD187: 0 | AE187: 0
L188: 0 | M188: 0 | N188: 0 | O188: 0 | P188: 0 | Q188: 0 | R188: 0 | S188: 0 | T188: 0 | U188: 0 | V188: 0 | W188: 0 | X188: 0 | Y188: 0 | Z188: 0 | AA188: 0 | AB188: 0 | AC188: 0 | AD188: 0 | AE188: 0
L189: 0 | M189: 0 | N189: 0 | O189: 0 | P189: 0 | Q189: 0 | R189: 0 | S189: 0 | T189: 0 | U189: 0 | V189: 0 | W189: 0 | X189: 0 | Y189: 0 | Z189: 0 | AA189: 0 | AB189: 0 | AC189: 0 | AD189: 0 | AE189: 0
L190: 0 | M190: 0 | N190: 0 | O190: 0 | P190: 0 | Q190: 0 | R190: 0 | S190: 0 | T190: 0 | U190: 0 | V190: 0 | W190: 0 | X190: 0 | Y190: 0 | Z190: 0 | AA190: 0 | AB190: 0 | AC190: 0 | AD190: 0 | AE190: 0
L191: 0 | M191: 0 | N191: 0 | O191: 0 | P191: 0 | Q191: 0 | R191: 0 | S191: 0 | T191: 0 | U191: 0 | V191: 0 | W191: 0 | X191: 0 | Y191: 0 | Z191: 0 | AA191: 0 | AB191: 0 | AC191: 0 | AD191: 0 | AE191: 0
L192: 0 | M192: 0 | N192: 0 | O192: 0 | P192: 0 | Q192: 0 | R192: 0 | S192: 0 | T192: 0 | U192: 0 | V192: 0 | W192: 0 | X192: 0 | Y192: 0 | Z192: 0 | AA192: 0 | AB192: 0 | AC192: 0 | AD192: 0 | AE192: 0
L193: 0 | M193: 0 | N193: 0 | O193: 0 | P193: 0 | Q193: 0 | R193: 0 | S193: 0 | T193: 0 | U193: 0 | V193: 0 | W193: 0 | X193: 0 | Y193: 0 | Z193: 0 | AA193: 0 | AB193: 0 | AC193: 0 | AD193: 0 | AE193: 0
L194: 0 | M194: 0 | N194: 0 | O194: 0 | P194: 0 | Q194: 0 | R194: 0 | S194: 0 | T194: 0 | U194: 0 | V194: 0 | W194: 0 | X194: 0 | Y194: 0 | Z194: 0 | AA194: 0 | AB194: 0 | AC194: 0 | AD194: 0 | AE194: 0
L195: 0 | M195: 0 | N195: 0 | O195: 0 | P195: 0 | Q195: 0 | R195: 0 | S195: 0 | T195: 0 | U195: 0 | V195: 0 | W195: 0 | X195: 0 | Y195: 0 | Z195: 0 | AA195: 0 | AB195: 0 | AC195: 0 | AD195: 0 | AE195: 0
L196: 0 | M196: 0 | N196: 0 | O196: 0 | P196: 0 | Q196: 0 | R196: 0 | S196: 0 | T196: 0 | U196: 0 | V196: 0 | W196: 0 | X196: 0 | Y196: 0 | Z196: 0 | AA196: 0 | AB196: 0 | AC196: 0 | AD196: 0 | AE196: 0
L197: 0 | M197: 0 | N197: 0 | O197: 0 | P197: 0 | Q197: 0 | R197: 0 | S197: 0 | T197: 0 | U197: 0 | V197: 0 | W197: 0 | X197: 0 | Y197: 0 | Z197: 0 | AA197: 0 | AB197: 0 | AC197: 0 | AD197: 0 | AE197: 0
L198: 0 | M198: 0 | N198: 0 | O198: 0 | P198: 0 | Q198: 0 | R198: 0 | S198: 0 | T198: 0 | U198: 0 | V198: 0 | W198: 0 | X198: 0 | Y198: 0 | Z198: 0 | AA198: 0 | AB198: 0 | AC198: 0 | AD198: 0 | AE198: 0
L199: 0 | M199: 0 | N199: 0 | O199: 0 | P199: 0 | Q199: 0 | R199: 0 | S199: 0 | T199: 0 | U199: 0 | V199: 0 | W199: 0 | X199: 0 | Y199: 0 | Z199: 0 | AA199: 0 | AB199: 0 | AC199: 0 | AD199: 0 | AE199: 0
L200: 0 | M200: 0 | N200: 0 | O200: 0 | P200: 0 | Q200: 0 | R200: 0 | S200: 0 | T200: 0 | U200: 0 | V200: 0 | W200: 0 | X200: 0 | Y200: 0 | Z200: 0 | AA200: 0 | AB200: 0 | AC200: 0 | AD200: 0 | AE200: 0
L201: 0 | M201: 0 | N201: 0 | O201: 0 | P201: 0 | Q201: 0 | R201: 0 | S201: 0 | T201: 0 | U201: 0 | V201: 0 | W201: 0 | X201: 0 | Y201: 0 | Z201: 0 | AA201: 0 | AB201: 0 | AC201: 0 | AD201: 0 | AE201: 0
... 772 more rows

Sheet Solicitud (hidden)
A5: CONFIRMACION DE RENTA
A7: TOMADOR
A9: PLAN DE PENSIONES EMPLEADOS DE TELEFONICA DE ESPAÑA
A11: BENEFICIARIO
A13: PLAN DE PENSIONES EMPLEADOS DE TELEFONICA DE ESPAÑA
A15: DATOS DEL ASEGURADO Y ASEGURADO DE LA REVERSION
B16: Asegurado | F16: Asegurado Reversion
A17: Nombre: | B17: =+IF(Calculo!C7="","",Calculo!C7) -> aaaa | F17: =+IF(Calculo!$F$17="","",Calculo!$F$17) -> 
A18: Apellidos: | B18: =+IF(Calculo!C6="","",Calculo!C6) -> aaaa | F18: =+IF(Calculo!$F$16="","",Calculo!$F$16) -> 
A19: NIF:
A20: Fecha de Nacimiento: | B20: =+Calculo!C10 -> 1978-09-05 | F20: =+IF(E25=0,"",Calculo!C11) -> 
A21: Sexo: | B21: =+IF(Calculo!C12=2,"Mujer","Hombre") -> Hombre | F21: =+IF(E25=0,"",IF(Calculo!F18=1,"Hombre","Mujer")) -> 
A23: RENTA ASEGURADA
A25: Periodicidad del Pago: | B25: Mensual | D25: Reversión: | E25: =+Calculo!C13 -> 0 | G25: Fecha de Primer pago: | H25: =+DATE(YEAR(Calculo!C9),MONTH(Calculo!C9)+1,1-1) -> 2023-04-30 | J25: =+IF(B26="Vitalicia","","Fecha Ultimo Pago:") -> Fecha Ultimo Pago: | L25: =+IF(B26<>"Vitalicia",Calculo!F19,"") -> 2033-03-31
A26: Duración: | B26: =+IF(Calculo!C19<960,Calculo!C19&" Meses","Vitalicia") -> 120 Meses | D26: Fecha de Efecto: | E26: =+DATE(YEAR(Calculo!C8),MONTH(Calculo!C8),1) -> 2023-04-01 | G26: Prima Unica: | H26: =+Calculo!C17 -> 100000
A28: TABLA DE RENTA ASEGURADA
B29: 1 | C29: =+B29+1 -> 2 | D29: 3 | E29: 4 | F29: 5 | G29: 6 | H29: 7 | I29: 8 | J29: 9 | K29: 10 | L29: 11 | M29: 12
B30: Enero | C30: Febrero | D30: Marzo | E30: Abril | F30: Mayo | G30: Junio | H30: Julio | I30: Agosto | J30: Septiembre | K30: Octubre | L30: Noviembre | M30: Diciembre
A31: =+YEAR(E26) -> 2023 | B31: =+IF($A31="","",IF(OR(DATE($A31,Mes,1)<$E$26,DATE($A31,Mes,1)>$L$25),0,VLOOKUP(DATE($A31,Mes,1),Calculo!$H$13:$AE$1273,24,FALSE))) -> 0 | C31: =+IF($A31="","",IF(OR(DATE($A31,Mes,1)<$E$26,DATE($A31,Mes,1)>$L$25),0,VLOOKUP(DATE($A31,Mes,1),Calculo!$H$13:$AE$1273,24,FALSE))) -> 0 | D31: =+IF($A31="","",IF(OR(DATE($A31,Mes,1)<$E$26,DATE($A31,Mes,1)>$L$25),0,VLOOKUP(DATE($A31,Mes,1),Calculo!$H$13:$AE$1273,24,FALSE))) -> 0 | E31: =+IF($A31="","",IF(OR(DATE($A31,Mes,1)<$E$26,DATE($A31,Mes,1)>$L$25),0,VLOOKUP(DATE($A31,Mes,1),Calculo!$H$13:$AE$1273,24,FALSE))) -> 939.978313 | F31: =+IF($A31="","",IF(OR(DATE($A31,Mes,1)<$E$26,DATE($A31,Mes,1)>$L$25),0,VLOOKUP(DATE($A31,Mes,1),Calculo!$H$13:$AE$1273,24,FALSE))) -> 939.9295705 | G31: =+IF($A31="","",IF(OR(DATE($A31,Mes,1)<$E$26,DATE($A31,Mes,1)>$L$25),0,VLOOKUP(DATE($A31,Mes,1),Calculo!$H$13:$AE$1273,24,FALSE))) -> 939.8807278 | H31: =+IF($A31="","",IF(OR(DATE($A31,Mes,1)<$E$26,DATE($A31,Mes,1)>$L$25),0,VLOOKUP(DATE($A31,Mes,1),Calculo!$H$13:$AE$1273,24,FALSE))) -> 939.8317846 | I31: =+IF($A31="","",IF(OR(DATE($A31,Mes,1)<$E$26,DATE($A31,Mes,1)>$L$25),0,VLOOKUP(DATE($A31,Mes,1),Calculo!$H$13:$AE$1273,24,FALSE))) -> 939.7827409 | J31: =+IF($A31="","",IF(OR(DATE($A31,Mes,1)<$E$26,DATE($A31,Mes,1)>$L$25),0,VLOOKUP(DATE($A31,Mes,1),Calculo!$H$13:$AE$1273,24,FALSE))) -> 939.7335963 | K31: =+IF($A31="","",IF(OR(DATE($A31,Mes,1)<$E$26,DATE($A31,Mes,1)>$L$25),0,VLOOKUP(DATE($A31,Mes,1),Calculo!$H$13:$AE$1273,24,FALSE))) -> 939.6843951 | L31: =+IF($A31="","",IF(OR(DATE($A31,Mes,1)<$E$26,DATE($A31,Mes,1)>$L$25),0,VLOOKUP(DATE($A31,Mes,1),Calculo!$H$13:$AE$1273,24,FALSE))) -> 939.6350923 | M31: =+IF($A31="","",IF(OR(DATE($A31,Mes,1)<$E$26,DATE($A31,Mes,1)>$L$25),0,VLOOKUP(DATE($A31,Mes,1),Calculo!$H$13:$AE$1273,24,FALSE))) -> 939.5856879
A32: =+IF(OR(A31="",A31=YEAR(Calculo!$F$19)),"",A31+1) -> 2024 | B32: =+IF($A32="","",IF(OR(DATE($A32,Mes,1)<$E$26,DATE($A32,Mes,1)>$L$25),0,VLOOKUP(DATE($A32,Mes,1),Calculo!$H$13:$AE$1273,24,FALSE))) -> 939.5361816 | C32: =+IF($A32="","",IF(OR(DATE($A32,Mes,1)<$E$26,DATE($A32,Mes,1)>$L$25),0,VLOOKUP(DATE($A32,Mes,1),Calculo!$H$13:$AE$1273,24,FALSE))) -> 939.4865732 | D32: =+IF($A32="","",IF(OR(DATE($A32,Mes,1)<$E$26,DATE($A32,Mes,1)>$L$25),0,VLOOKUP(DATE($A32,Mes,1),Calculo!$H$13:$AE$1273,24,FALSE))) -> 939.4368624 | E32: =+IF($A32="","",IF(OR(DATE($A32,Mes,1)<$E$26,DATE($A32,Mes,1)>$L$25),0,VLOOKUP(DATE($A32,Mes,1),Calculo!$H$13:$AE$1273,24,FALSE))) -> 939.3870491 | F32: =+IF($A32="","",IF(OR(DATE($A32,Mes,1)<$E$26,DATE($A32,Mes,1)>$L$25),0,VLOOKUP(DATE($A32,Mes,1),Calculo!$H$13:$AE$1273,24,FALSE))) -> 939.3371331 | G32: =+IF($A32="","",IF(OR(DATE($A32,Mes,1)<$E$26,DATE($A32,Mes,1)>$L$25),0,VLOOKUP(DATE($A32,Mes,1),Calculo!$H$13:$AE$1273,24,FALSE))) -> 939.2871141 | H32: =+IF($A32="","",IF(OR(DATE($A32,Mes,1)<$E$26,DATE($A32,Mes,1)>$L$25),0,VLOOKUP(DATE($A32,Mes,1),Calculo!$H$13:$AE$1273,24,FALSE))) -> 939.2369919 | I32: =+IF($A32="","",IF(OR(DATE($A32,Mes,1)<$E$26,DATE($A32,Mes,1)>$L$25),0,VLOOKUP(DATE($A32,Mes,1),Calculo!$H$13:$AE$1273,24,FALSE))) -> 939.1867663 | J32: =+IF($A32="","",IF(OR(DATE($A32,Mes,1)<$E$26,DATE($A32,Mes,1)>$L$25),0,VLOOKUP(DATE($A32,Mes,1),Calculo!$H$13:$AE$1273,24,FALSE))) -> 939.1364372 | K32: =+IF($A32="","",IF(OR(DATE($A32,Mes,1)<$E$26,DATE($A32,Mes,1)>$L$25),0,VLOOKUP(DATE($A32,Mes,1),Calculo!$H$13:$AE$1273,24,FALSE))) -> 939.0860498 | L32: =+IF($A32="","",IF(OR(DATE($A32,Mes,1)<$E$26,DATE($A32,Mes,1)>$L$25),0,VLOOKUP(DATE($A32,Mes,1),Calculo!$H$13:$AE$1273,24,FALSE))) -> 939.0355581 | M32: =+IF($A32="","",IF(OR(DATE($A32,Mes,1)<$E$26,DATE($A32,Mes,1)>$L$25),0,VLOOKUP(DATE($A32,Mes,1),Calculo!$H$13:$AE$1273,24,FALSE))) -> 938.9849618
A33: =+IF(OR(A32="",A32=YEAR(Calculo!$F$19)),"",A32+1) -> 2025 | B33: =+IF($A33="","",IF(OR(DATE($A33,Mes,1)<$E$26,DATE($A33,Mes,1)>$L$25),0,VLOOKUP(DATE($A33,Mes,1),Calculo!$H$13:$AE$1273,24,FALSE))) -> 938.9342608 | C33: =+IF($A33="","",IF(OR(DATE($A33,Mes,1)<$E$26,DATE($A33,Mes,1)>$L$25),0,VLOOKUP(DATE($A33,Mes,1),Calculo!$H$13:$AE$1273,24,FALSE))) -> 938.8834548 | D33: =+IF($A33="","",IF(OR(DATE($A33,Mes,1)<$E$26,DATE($A33,Mes,1)>$L$25),0,VLOOKUP(DATE($A33,Mes,1),Calculo!$H$13:$AE$1273,24,FALSE))) -> 938.8325435 | E33: =+IF($A33="","",IF(OR(DATE($A33,Mes,1)<$E$26,DATE($A33,Mes,1)>$L$25),0,VLOOKUP(DATE($A33,Mes,1),Calculo!$H$13:$AE$1273,24,FALSE))) -> 938.7815269 | F33: =+IF($A33="","",IF(OR(DATE($A33,Mes,1)<$E$26,DATE($A33,Mes,1)>$L$25),0,VLOOKUP(DATE($A33,Mes,1),Calculo!$H$13:$AE$1273,24,FALSE))) -> 938.7304046 | G33: =+IF($A33="","",IF(OR(DATE($A33,Mes,1)<$E$26,DATE($A33,Mes,1)>$L$25),0,VLOOKUP(DATE($A33,Mes,1),Calculo!$H$13:$AE$1273,24,FALSE))) -> 938.6791764 | H33: =+IF($A33="","",IF(OR(DATE($A33,Mes,1)<$E$26,DATE($A33,Mes,1)>$L$25),0,VLOOKUP(DATE($A33,Mes,1),Calculo!$H$13:$AE$1273,24,FALSE))) -> 938.6278422 | I33: =+IF($A33="","",IF(OR(DATE($A33,Mes,1)<$E$26,DATE($A33,Mes,1)>$L$25),0,VLOOKUP(DATE($A33,Mes,1),Calculo!$H$13:$AE$1273,24,FALSE))) -> 938.5764017 | J33: =+IF($A33="","",IF(OR(DATE($A33,Mes,1)<$E$26,DATE($A33,Mes,1)>$L$25),0,VLOOKUP(DATE($A33,Mes,1),Calculo!$H$13:$AE$1273,24,FALSE))) -> 938.5248547 | K33: =+IF($A33="","",IF(OR(DATE($A33,Mes,1)<$E$26,DATE($A33,Mes,1)>$L$25),0,VLOOKUP(DATE($A33,Mes,1),Calculo!$H$13:$AE$1273,24,FALSE))) -> 938.4732469 | L33: =+IF($A33="","",IF(OR(DATE($A33,Mes,1)<$E$26,DATE($A33,Mes,1)>$L$25),0,VLOOKUP(DATE($A33,Mes,1),Calculo!$H$13:$AE$1273,24,FALSE))) -> 938.4215318 | M33: =+IF($A33="","",IF(OR(DATE($A33,Mes,1)<$E$26,DATE($A33,Mes,1)>$L$25),0,VLOOKUP(DATE($A33,Mes,1),Calculo!$H$13:$AE$1273,24,FALSE))) -> 938.3697092
A34: =+IF(OR(A33="",A33=YEAR(Calculo!$F$19)),"",A33+1) -> 2026 | B34: =+IF($A34="","",IF(OR(DATE($A34,Mes,1)<$E$26,DATE($A34,Mes,1)>$L$25),0,VLOOKUP(DATE($A34,Mes,1),Calculo!$H$13:$AE$1273,24,FALSE))) -> 938.3177788 | C34: =+IF($A34="","",IF(OR(DATE($A34,Mes,1)<$E$26,DATE($A34,Mes,1)>$L$25),0,VLOOKUP(DATE($A34,Mes,1),Calculo!$H$13:$AE$1273,24,FALSE))) -> 938.2657404 | D34: =+IF($A34="","",IF(OR(DATE($A34,Mes,1)<$E$26,DATE($A34,Mes,1)>$L$25),0,VLOOKUP(DATE($A34,Mes,1),Calculo!$H$13:$AE$1273,24,FALSE))) -> 938.2135937 | E34: =+IF($A34="","",IF(OR(DATE($A34,Mes,1)<$E$26,DATE($A34,Mes,1)>$L$25),0,VLOOKUP(DATE($A34,Mes,1),Calculo!$H$13:$AE$1273,24,FALSE))) -> 938.1613386 | F34: =+IF($A34="","",IF(OR(DATE($A34,Mes,1)<$E$26,DATE($A34,Mes,1)>$L$25),0,VLOOKUP(DATE($A34,Mes,1),Calculo!$H$13:$AE$1273,24,FALSE))) -> 938.1089749 | G34: =+IF($A34="","",IF(OR(DATE($A34,Mes,1)<$E$26,DATE($A34,Mes,1)>$L$25),0,VLOOKUP(DATE($A34,Mes,1),Calculo!$H$13:$AE$1273,24,FALSE))) -> 938.0565022 | H34: =+IF($A34="","",IF(OR(DATE($A34,Mes,1)<$E$26,DATE($A34,Mes,1)>$L$25),0,VLOOKUP(DATE($A34,Mes,1),Calculo!$H$13:$AE$1273,24,FALSE))) -> 938.0039204 | I34: =+IF($A34="","",IF(OR(DATE($A34,Mes,1)<$E$26,DATE($A34,Mes,1)>$L$25),0,VLOOKUP(DATE($A34,Mes,1),Calculo!$H$13:$AE$1273,24,FALSE))) -> 937.9512293 | J34: =+IF($A34="","",IF(OR(DATE($A34,Mes,1)<$E$26,DATE($A34,Mes,1)>$L$25),0,VLOOKUP(DATE($A34,Mes,1),Calculo!$H$13:$AE$1273,24,FALSE))) -> 937.8984285 | K34: =+IF($A34="","",IF(OR(DATE($A34,Mes,1)<$E$26,DATE($A34,Mes,1)>$L$25),0,VLOOKUP(DATE($A34,Mes,1),Calculo!$H$13:$AE$1273,24,FALSE))) -> 937.8455635 | L34: =+IF($A34="","",IF(OR(DATE($A34,Mes,1)<$E$26,DATE($A34,Mes,1)>$L$25),0,VLOOKUP(DATE($A34,Mes,1),Calculo!$H$13:$AE$1273,24,FALSE))) -> 937.792588 | M34: =+IF($A34="","",IF(OR(DATE($A34,Mes,1)<$E$26,DATE($A34,Mes,1)>$L$25),0,VLOOKUP(DATE($A34,Mes,1),Calculo!$H$13:$AE$1273,24,FALSE))) -> 937.7395018
A35: =+IF(OR(A34="",A34=YEAR(Calculo!$F$19)),"",A34+1) -> 2027 | B35: =+IF($A35="","",IF(OR(DATE($A35,Mes,1)<$E$26,DATE($A35,Mes,1)>$L$25),0,VLOOKUP(DATE($A35,Mes,1),Calculo!$H$13:$AE$1273,24,FALSE))) -> 937.6863046 | C35: =+IF($A35="","",IF(OR(DATE($A35,Mes,1)<$E$26,DATE($A35,Mes,1)>$L$25),0,VLOOKUP(DATE($A35,Mes,1),Calculo!$H$13:$AE$1273,24,FALSE))) -> 937.6329963 | D35: =+IF($A35="","",IF(OR(DATE($A35,Mes,1)<$E$26,DATE($A35,Mes,1)>$L$25),0,VLOOKUP(DATE($A35,Mes,1),Calculo!$H$13:$AE$1273,24,FALSE))) -> 937.5795766 | E35: =+IF($A35="","",IF(OR(DATE($A35,Mes,1)<$E$26,DATE($A35,Mes,1)>$L$25),0,VLOOKUP(DATE($A35,Mes,1),Calculo!$H$13:$AE$1273,24,FALSE))) -> 937.5260452 | F35: =+IF($A35="","",IF(OR(DATE($A35,Mes,1)<$E$26,DATE($A35,Mes,1)>$L$25),0,VLOOKUP(DATE($A35,Mes,1),Calculo!$H$13:$AE$1273,24,FALSE))) -> 937.4724019 | G35: =+IF($A35="","",IF(OR(DATE($A35,Mes,1)<$E$26,DATE($A35,Mes,1)>$L$25),0,VLOOKUP(DATE($A35,Mes,1),Calculo!$H$13:$AE$1273,24,FALSE))) -> 937.4186466 | H35: =+IF($A35="","",IF(OR(DATE($A35,Mes,1)<$E$26,DATE($A35,Mes,1)>$L$25),0,VLOOKUP(DATE($A35,Mes,1),Calculo!$H$13:$AE$1273,24,FALSE))) -> 937.3647788 | I35: =+IF($A35="","",IF(OR(DATE($A35,Mes,1)<$E$26,DATE($A35,Mes,1)>$L$25),0,VLOOKUP(DATE($A35,Mes,1),Calculo!$H$13:$AE$1273,24,FALSE))) -> 937.3107986 | J35: =+IF($A35="","",IF(OR(DATE($A35,Mes,1)<$E$26,DATE($A35,Mes,1)>$L$25),0,VLOOKUP(DATE($A35,Mes,1),Calculo!$H$13:$AE$1273,24,FALSE))) -> 937.2567055 | K35: =+IF($A35="","",IF(OR(DATE($A35,Mes,1)<$E$26,DATE($A35,Mes,1)>$L$25),0,VLOOKUP(DATE($A35,Mes,1),Calculo!$H$13:$AE$1273,24,FALSE))) -> 937.202542 | L35: =+IF($A35="","",IF(OR(DATE($A35,Mes,1)<$E$26,DATE($A35,Mes,1)>$L$25),0,VLOOKUP(DATE($A35,Mes,1),Calculo!$H$13:$AE$1273,24,FALSE))) -> 937.1482647 | M35: =+IF($A35="","",IF(OR(DATE($A35,Mes,1)<$E$26,DATE($A35,Mes,1)>$L$25),0,VLOOKUP(DATE($A35,Mes,1),Calculo!$H$13:$AE$1273,24,FALSE))) -> 937.0938734
A36: =+IF(OR(A35="",A35=YEAR(Calculo!$F$19)),"",A35+1) -> 2028 | B36: =+IF($A36="","",IF(OR(DATE($A36,Mes,1)<$E$26,DATE($A36,Mes,1)>$L$25),0,VLOOKUP(DATE($A36,Mes,1),Calculo!$H$13:$AE$1273,24,FALSE))) -> 937.0393679 | C36: =+IF($A36="","",IF(OR(DATE($A36,Mes,1)<$E$26,DATE($A36,Mes,1)>$L$25),0,VLOOKUP(DATE($A36,Mes,1),Calculo!$H$13:$AE$1273,24,FALSE))) -> 936.9847478 | D36: =+IF($A36="","",IF(OR(DATE($A36,Mes,1)<$E$26,DATE($A36,Mes,1)>$L$25),0,VLOOKUP(DATE($A36,Mes,1),Calculo!$H$13:$AE$1273,24,FALSE))) -> 936.9300129 | E36: =+IF($A36="","",IF(OR(DATE($A36,Mes,1)<$E$26,DATE($A36,Mes,1)>$L$25),0,VLOOKUP(DATE($A36,Mes,1),Calculo!$H$13:$AE$1273,24,FALSE))) -> 936.8751631 | F36: =+IF($A36="","",IF(OR(DATE($A36,Mes,1)<$E$26,DATE($A36,Mes,1)>$L$25),0,VLOOKUP(DATE($A36,Mes,1),Calculo!$H$13:$AE$1273,24,FALSE))) -> 936.820198 | G36: =+IF($A36="","",IF(OR(DATE($A36,Mes,1)<$E$26,DATE($A36,Mes,1)>$L$25),0,VLOOKUP(DATE($A36,Mes,1),Calculo!$H$13:$AE$1273,24,FALSE))) -> 936.7651174 | H36: =+IF($A36="","",IF(OR(DATE($A36,Mes,1)<$E$26,DATE($A36,Mes,1)>$L$25),0,VLOOKUP(DATE($A36,Mes,1),Calculo!$H$13:$AE$1273,24,FALSE))) -> 936.7099211 | I36: =+IF($A36="","",IF(OR(DATE($A36,Mes,1)<$E$26,DATE($A36,Mes,1)>$L$25),0,VLOOKUP(DATE($A36,Mes,1),Calculo!$H$13:$AE$1273,24,FALSE))) -> 936.6546088 | J36: =+IF($A36="","",IF(OR(DATE($A36,Mes,1)<$E$26,DATE($A36,Mes,1)>$L$25),0,VLOOKUP(DATE($A36,Mes,1),Calculo!$H$13:$AE$1273,24,FALSE))) -> 936.5991803 | K36: =+IF($A36="","",IF(OR(DATE($A36,Mes,1)<$E$26,DATE($A36,Mes,1)>$L$25),0,VLOOKUP(DATE($A36,Mes,1),Calculo!$H$13:$AE$1273,24,FALSE))) -> 936.5436737 | L36: =+IF($A36="","",IF(OR(DATE($A36,Mes,1)<$E$26,DATE($A36,Mes,1)>$L$25),0,VLOOKUP(DATE($A36,Mes,1),Calculo!$H$13:$AE$1273,24,FALSE))) -> 936.4880497 | M36: =+IF($A36="","",IF(OR(DATE($A36,Mes,1)<$E$26,DATE($A36,Mes,1)>$L$25),0,VLOOKUP(DATE($A36,Mes,1),Calculo!$H$13:$AE$1273,24,FALSE))) -> 936.4323082
A37: =+IF(OR(A36="",A36=YEAR(Calculo!$F$19)),"",A36+1) -> 2029 | B37: =+IF($A37="","",IF(OR(DATE($A37,Mes,1)<$E$26,DATE($A37,Mes,1)>$L$25),0,VLOOKUP(DATE($A37,Mes,1),Calculo!$H$13:$AE$1273,24,FALSE))) -> 936.3764489 | C37: =+IF($A37="","",IF(OR(DATE($A37,Mes,1)<$E$26,DATE($A37,Mes,1)>$L$25),0,VLOOKUP(DATE($A37,Mes,1),Calculo!$H$13:$AE$1273,24,FALSE))) -> 936.3204716 | D37: =+IF($A37="","",IF(OR(DATE($A37,Mes,1)<$E$26,DATE($A37,Mes,1)>$L$25),0,VLOOKUP(DATE($A37,Mes,1),Calculo!$H$13:$AE$1273,24,FALSE))) -> 936.2643759 | E37: =+IF($A37="","",IF(OR(DATE($A37,Mes,1)<$E$26,DATE($A37,Mes,1)>$L$25),0,VLOOKUP(DATE($A37,Mes,1),Calculo!$H$13:$AE$1273,24,FALSE))) -> 936.2081618 | F37: =+IF($A37="","",IF(OR(DATE($A37,Mes,1)<$E$26,DATE($A37,Mes,1)>$L$25),0,VLOOKUP(DATE($A37,Mes,1),Calculo!$H$13:$AE$1273,24,FALSE))) -> 936.1518288 | G37: =+IF($A37="","",IF(OR(DATE($A37,Mes,1)<$E$26,DATE($A37,Mes,1)>$L$25),0,VLOOKUP(DATE($A37,Mes,1),Calculo!$H$13:$AE$1273,24,FALSE))) -> 936.0953769 | H37: =+IF($A37="","",IF(OR(DATE($A37,Mes,1)<$E$26,DATE($A37,Mes,1)>$L$25),0,VLOOKUP(DATE($A37,Mes,1),Calculo!$H$13:$AE$1273,24,FALSE))) -> 936.0388056 | I37: =+IF($A37="","",IF(OR(DATE($A37,Mes,1)<$E$26,DATE($A37,Mes,1)>$L$25),0,VLOOKUP(DATE($A37,Mes,1),Calculo!$H$13:$AE$1273,24,FALSE))) -> 935.9821148 | J37: =+IF($A37="","",IF(OR(DATE($A37,Mes,1)<$E$26,DATE($A37,Mes,1)>$L$25),0,VLOOKUP(DATE($A37,Mes,1),Calculo!$H$13:$AE$1273,24,FALSE))) -> 935.9253042 | K37: =+IF($A37="","",IF(OR(DATE($A37,Mes,1)<$E$26,DATE($A37,Mes,1)>$L$25),0,VLOOKUP(DATE($A37,Mes,1),Calculo!$H$13:$AE$1273,24,FALSE))) -> 935.8684052 | L37: =+IF($A37="","",IF(OR(DATE($A37,Mes,1)<$E$26,DATE($A37,Mes,1)>$L$25),0,VLOOKUP(DATE($A37,Mes,1),Calculo!$H$13:$AE$1273,24,FALSE))) -> 935.8113854 | M37: =+IF($A37="","",IF(OR(DATE($A37,Mes,1)<$E$26,DATE($A37,Mes,1)>$L$25),0,VLOOKUP(DATE($A37,Mes,1),Calculo!$H$13:$AE$1273,24,FALSE))) -> 935.7542443
A38: =+IF(OR(A37="",A37=YEAR(Calculo!$F$19)),"",A37+1) -> 2030 | B38: =+IF($A38="","",IF(OR(DATE($A38,Mes,1)<$E$26,DATE($A38,Mes,1)>$L$25),0,VLOOKUP(DATE($A38,Mes,1),Calculo!$H$13:$AE$1273,24,FALSE))) -> 935.6969817 | C38: =+IF($A38="","",IF(OR(DATE($A38,Mes,1)<$E$26,DATE($A38,Mes,1)>$L$25),0,VLOOKUP(DATE($A38,Mes,1),Calculo!$H$13:$AE$1273,24,FALSE))) -> 935.6395974 | D38: =+IF($A38="","",IF(OR(DATE($A38,Mes,1)<$E$26,DATE($A38,Mes,1)>$L$25),0,VLOOKUP(DATE($A38,Mes,1),Calculo!$H$13:$AE$1273,24,FALSE))) -> 935.5820911 | E38: =+IF($A38="","",IF(OR(DATE($A38,Mes,1)<$E$26,DATE($A38,Mes,1)>$L$25),0,VLOOKUP(DATE($A38,Mes,1),Calculo!$H$13:$AE$1273,24,FALSE))) -> 935.5244626 | F38: =+IF($A38="","",IF(OR(DATE($A38,Mes,1)<$E$26,DATE($A38,Mes,1)>$L$25),0,VLOOKUP(DATE($A38,Mes,1),Calculo!$H$13:$AE$1273,24,FALSE))) -> 935.4667116 | G38: =+IF($A38="","",IF(OR(DATE($A38,Mes,1)<$E$26,DATE($A38,Mes,1)>$L$25),0,VLOOKUP(DATE($A38,Mes,1),Calculo!$H$13:$AE$1273,24,FALSE))) -> 935.4088378 | H38: =+IF($A38="","",IF(OR(DATE($A38,Mes,1)<$E$26,DATE($A38,Mes,1)>$L$25),0,VLOOKUP(DATE($A38,Mes,1),Calculo!$H$13:$AE$1273,24,FALSE))) -> 935.3508409 | I38: =+IF($A38="","",IF(OR(DATE($A38,Mes,1)<$E$26,DATE($A38,Mes,1)>$L$25),0,VLOOKUP(DATE($A38,Mes,1),Calculo!$H$13:$AE$1273,24,FALSE))) -> 935.2927208 | J38: =+IF($A38="","",IF(OR(DATE($A38,Mes,1)<$E$26,DATE($A38,Mes,1)>$L$25),0,VLOOKUP(DATE($A38,Mes,1),Calculo!$H$13:$AE$1273,24,FALSE))) -> 935.2344771 | K38: =+IF($A38="","",IF(OR(DATE($A38,Mes,1)<$E$26,DATE($A38,Mes,1)>$L$25),0,VLOOKUP(DATE($A38,Mes,1),Calculo!$H$13:$AE$1273,24,FALSE))) -> 935.1761333 | L38: =+IF($A38="","",IF(OR(DATE($A38,Mes,1)<$E$26,DATE($A38,Mes,1)>$L$25),0,VLOOKUP(DATE($A38,Mes,1),Calculo!$H$13:$AE$1273,24,FALSE))) -> 935.1176646 | M38: =+IF($A38="","",IF(OR(DATE($A38,Mes,1)<$E$26,DATE($A38,Mes,1)>$L$25),0,VLOOKUP(DATE($A38,Mes,1),Calculo!$H$13:$AE$1273,24,FALSE))) -> 935.0590709
A39: =+IF(OR(A38="",A38=YEAR(Calculo!$F$19)),"",A38+1) -> 2031 | B39: =+IF($A39="","",IF(OR(DATE($A39,Mes,1)<$E$26,DATE($A39,Mes,1)>$L$25),0,VLOOKUP(DATE($A39,Mes,1),Calculo!$H$13:$AE$1273,24,FALSE))) -> 935.0003518 | C39: =+IF($A39="","",IF(OR(DATE($A39,Mes,1)<$E$26,DATE($A39,Mes,1)>$L$25),0,VLOOKUP(DATE($A39,Mes,1),Calculo!$H$13:$AE$1273,24,FALSE))) -> 934.9415072 | D39: =+IF($A39="","",IF(OR(DATE($A39,Mes,1)<$E$26,DATE($A39,Mes,1)>$L$25),0,VLOOKUP(DATE($A39,Mes,1),Calculo!$H$13:$AE$1273,24,FALSE))) -> 934.8825367 | E39: =+IF($A39="","",IF(OR(DATE($A39,Mes,1)<$E$26,DATE($A39,Mes,1)>$L$25),0,VLOOKUP(DATE($A39,Mes,1),Calculo!$H$13:$AE$1273,24,FALSE))) -> 934.82344 | F39: =+IF($A39="","",IF(OR(DATE($A39,Mes,1)<$E$26,DATE($A39,Mes,1)>$L$25),0,VLOOKUP(DATE($A39,Mes,1),Calculo!$H$13:$AE$1273,24,FALSE))) -> 934.764217 | G39: =+IF($A39="","",IF(OR(DATE($A39,Mes,1)<$E$26,DATE($A39,Mes,1)>$L$25),0,VLOOKUP(DATE($A39,Mes,1),Calculo!$H$13:$AE$1273,24,FALSE))) -> 934.7048673 | H39: =+IF($A39="","",IF(OR(DATE($A39,Mes,1)<$E$26,DATE($A39,Mes,1)>$L$25),0,VLOOKUP(DATE($A39,Mes,1),Calculo!$H$13:$AE$1273,24,FALSE))) -> 934.6453906 | I39: =+IF($A39="","",IF(OR(DATE($A39,Mes,1)<$E$26,DATE($A39,Mes,1)>$L$25),0,VLOOKUP(DATE($A39,Mes,1),Calculo!$H$13:$AE$1273,24,FALSE))) -> 934.5857867 | J39: =+IF($A39="","",IF(OR(DATE($A39,Mes,1)<$E$26,DATE($A39,Mes,1)>$L$25),0,VLOOKUP(DATE($A39,Mes,1),Calculo!$H$13:$AE$1273,24,FALSE))) -> 934.5260554 | K39: =+IF($A39="","",IF(OR(DATE($A39,Mes,1)<$E$26,DATE($A39,Mes,1)>$L$25),0,VLOOKUP(DATE($A39,Mes,1),Calculo!$H$13:$AE$1273,24,FALSE))) -> 934.4662106 | L39: =+IF($A39="","",IF(OR(DATE($A39,Mes,1)<$E$26,DATE($A39,Mes,1)>$L$25),0,VLOOKUP(DATE($A39,Mes,1),Calculo!$H$13:$AE$1273,24,FALSE))) -> 934.4062371 | M39: =+IF($A39="","",IF(OR(DATE($A39,Mes,1)<$E$26,DATE($A39,Mes,1)>$L$25),0,VLOOKUP(DATE($A39,Mes,1),Calculo!$H$13:$AE$1273,24,FALSE))) -> 934.3461345
A40: =+IF(OR(A39="",A39=YEAR(Calculo!$F$19)),"",A39+1) -> 2032 | B40: =+IF($A40="","",IF(OR(DATE($A40,Mes,1)<$E$26,DATE($A40,Mes,1)>$L$25),0,VLOOKUP(DATE($A40,Mes,1),Calculo!$H$13:$AE$1273,24,FALSE))) -> 934.2859026 | C40: =+IF($A40="","",IF(OR(DATE($A40,Mes,1)<$E$26,DATE($A40,Mes,1)>$L$25),0,VLOOKUP(DATE($A40,Mes,1),Calculo!$H$13:$AE$1273,24,FALSE))) -> 934.2255411 | D40: =+IF($A40="","",IF(OR(DATE($A40,Mes,1)<$E$26,DATE($A40,Mes,1)>$L$25),0,VLOOKUP(DATE($A40,Mes,1),Calculo!$H$13:$AE$1273,24,FALSE))) -> 934.1650496 | E40: =+IF($A40="","",IF(OR(DATE($A40,Mes,1)<$E$26,DATE($A40,Mes,1)>$L$25),0,VLOOKUP(DATE($A40,Mes,1),Calculo!$H$13:$AE$1273,24,FALSE))) -> 934.104428 | F40: =+IF($A40="","",IF(OR(DATE($A40,Mes,1)<$E$26,DATE($A40,Mes,1)>$L$25),0,VLOOKUP(DATE($A40,Mes,1),Calculo!$H$13:$AE$1273,24,FALSE))) -> 934.0436759 | G40: =+IF($A40="","",IF(OR(DATE($A40,Mes,1)<$E$26,DATE($A40,Mes,1)>$L$25),0,VLOOKUP(DATE($A40,Mes,1),Calculo!$H$13:$AE$1273,24,FALSE))) -> 933.982793 | H40: =+IF($A40="","",IF(OR(DATE($A40,Mes,1)<$E$26,DATE($A40,Mes,1)>$L$25),0,VLOOKUP(DATE($A40,Mes,1),Calculo!$H$13:$AE$1273,24,FALSE))) -> 933.9217792 | I40: =+IF($A40="","",IF(OR(DATE($A40,Mes,1)<$E$26,DATE($A40,Mes,1)>$L$25),0,VLOOKUP(DATE($A40,Mes,1),Calculo!$H$13:$AE$1273,24,FALSE))) -> 933.860634 | J40: =+IF($A40="","",IF(OR(DATE($A40,Mes,1)<$E$26,DATE($A40,Mes,1)>$L$25),0,VLOOKUP(DATE($A40,Mes,1),Calculo!$H$13:$AE$1273,24,FALSE))) -> 933.7993573 | K40: =+IF($A40="","",IF(OR(DATE($A40,Mes,1)<$E$26,DATE($A40,Mes,1)>$L$25),0,VLOOKUP(DATE($A40,Mes,1),Calculo!$H$13:$AE$1273,24,FALSE))) -> 933.7379535 | L40: =+IF($A40="","",IF(OR(DATE($A40,Mes,1)<$E$26,DATE($A40,Mes,1)>$L$25),0,VLOOKUP(DATE($A40,Mes,1),Calculo!$H$13:$AE$1273,24,FALSE))) -> 933.6764168 | M40: =+IF($A40="","",IF(OR(DATE($A40,Mes,1)<$E$26,DATE($A40,Mes,1)>$L$25),0,VLOOKUP(DATE($A40,Mes,1),Calculo!$H$13:$AE$1273,24,FALSE))) -> 933.6147468
A41: =+IF(OR(A40="",A40=YEAR(Calculo!$F$19)),"",A40+1) -> 2033 | B41: =+IF($A41="","",IF(OR(DATE($A41,Mes,1)<$E$26,DATE($A41,Mes,1)>$L$25),0,VLOOKUP(DATE($A41,Mes,1),Calculo!$H$13:$AE$1273,24,FALSE))) -> 933.5529434 | C41: =+IF($A41="","",IF(OR(DATE($A41,Mes,1)<$E$26,DATE($A41,Mes,1)>$L$25),0,VLOOKUP(DATE($A41,Mes,1),Calculo!$H$13:$AE$1273,24,FALSE))) -> 933.4910061 | D41: =+IF($A41="","",IF(OR(DATE($A41,Mes,1)<$E$26,DATE($A41,Mes,1)>$L$25),0,VLOOKUP(DATE($A41,Mes,1),Calculo!$H$13:$AE$1273,24,FALSE))) -> 933.4289347 | E41: =+IF($A41="","",IF(OR(DATE($A41,Mes,1)<$E$26,DATE($A41,Mes,1)>$L$25),0,VLOOKUP(DATE($A41,Mes,1),Calculo!$H$13:$AE$1273,24,FALSE))) -> 0 | F41: =+IF($A41="","",IF(OR(DATE($A41,Mes,1)<$E$26,DATE($A41,Mes,1)>$L$25),0,VLOOKUP(DATE($A41,Mes,1),Calculo!$H$13:$AE$1273,24,FALSE))) -> 0 | G41: =+IF($A41="","",IF(OR(DATE($A41,Mes,1)<$E$26,DATE($A41,Mes,1)>$L$25),0,VLOOKUP(DATE($A41,Mes,1),Calculo!$H$13:$AE$1273,24,FALSE))) -> 0 | H41: =+IF($A41="","",IF(OR(DATE($A41,Mes,1)<$E$26,DATE($A41,Mes,1)>$L$25),0,VLOOKUP(DATE($A41,Mes,1),Calculo!$H$13:$AE$1273,24,FALSE))) -> 0 | I41: =+IF($A41="","",IF(OR(DATE($A41,Mes,1)<$E$26,DATE($A41,Mes,1)>$L$25),0,VLOOKUP(DATE($A41,Mes,1),Calculo!$H$13:$AE$1273,24,FALSE))) -> 0 | J41: =+IF($A41="","",IF(OR(DATE($A41,Mes,1)<$E$26,DATE($A41,Mes,1)>$L$25),0,VLOOKUP(DATE($A41,Mes,1),Calculo!$H$13:$AE$1273,24,FALSE))) -> 0 | K41: =+IF($A41="","",IF(OR(DATE($A41,Mes,1)<$E$26,DATE($A41,Mes,1)>$L$25),0,VLOOKUP(DATE($A41,Mes,1),Calculo!$H$13:$AE$1273,24,FALSE))) -> 0 | L41: =+IF($A41="","",IF(OR(DATE($A41,Mes,1)<$E$26,DATE($A41,Mes,1)>$L$25),0,VLOOKUP(DATE($A41,Mes,1),Calculo!$H$13:$AE$1273,24,FALSE))) -> 0 | M41: =+IF($A41="","",IF(OR(DATE($A41,Mes,1)<$E$26,DATE($A41,Mes,1)>$L$25),0,VLOOKUP(DATE($A41,Mes,1),Calculo!$H$13:$AE$1273,24,FALSE))) -> 0
A42: =+IF(OR(A41="",A41=YEAR(Calculo!$F$19)),"",A41+1) ->  | B42: =+IF($A42="","",IF(OR(DATE($A42,Mes,1)<$E$26,DATE($A42,Mes,1)>$L$25),0,VLOOKUP(DATE($A42,Mes,1),Calculo!$H$13:$AE$1273,24,FALSE))) ->  | C42: =+IF($A42="","",IF(OR(DATE($A42,Mes,1)<$E$26,DATE($A42,Mes,1)>$L$25),0,VLOOKUP(DATE($A42,Mes,1),Calculo!$H$13:$AE$1273,24,FALSE))) ->  | D42: =+IF($A42="","",IF(OR(DATE($A42,Mes,1)<$E$26,DATE($A42,Mes,1)>$L$25),0,VLOOKUP(DATE($A42,Mes,1),Calculo!$H$13:$AE$1273,24,FALSE))) ->  | E42: =+IF($A42="","",IF(OR(DATE($A42,Mes,1)<$E$26,DATE($A42,Mes,1)>$L$25),0,VLOOKUP(DATE($A42,Mes,1),Calculo!$H$13:$AE$1273,24,FALSE))) ->  | F42: =+IF($A42="","",IF(OR(DATE($A42,Mes,1)<$E$26,DATE($A42,Mes,1)>$L$25),0,VLOOKUP(DATE($A42,Mes,1),Calculo!$H$13:$AE$1273,24,FALSE))) ->  | G42: =+IF($A42="","",IF(OR(DATE($A42,Mes,1)<$E$26,DATE($A42,Mes,1)>$L$25),0,VLOOKUP(DATE($A42,Mes,1),Calculo!$H$13:$AE$1273,24,FALSE))) ->  | H42: =+IF($A42="","",IF(OR(DATE($A42,Mes,1)<$E$26,DATE($A42,Mes,1)>$L$25),0,VLOOKUP(DATE($A42,Mes,1),Calculo!$H$13:$AE$1273,24,FALSE))) ->  | I42: =+IF($A42="","",IF(OR(DATE($A42,Mes,1)<$E$26,DATE($A42,Mes,1)>$L$25),0,VLOOKUP(DATE($A42,Mes,1),Calculo!$H$13:$AE$1273,24,FALSE))) ->  | J42: =+IF($A42="","",IF(OR(DATE($A42,Mes,1)<$E$26,DATE($A42,Mes,1)>$L$25),0,VLOOKUP(DATE($A42,Mes,1),Calculo!$H$13:$AE$1273,24,FALSE))) ->  | K42: =+IF($A42="","",IF(OR(DATE($A42,Mes,1)<$E$26,DATE($A42,Mes,1)>$L$25),0,VLOOKUP(DATE($A42,Mes,1),Calculo!$H$13:$AE$1273,24,FALSE))) ->  | L42: =+IF($A42="","",IF(OR(DATE($A42,Mes,1)<$E$26,DATE($A42,Mes,1)>$L$25),0,VLOOKUP(DATE($A42,Mes,1),Calculo!$H$13:$AE$1273,24,FALSE))) ->  | M42: =+IF($A42="","",IF(OR(DATE($A42,Mes,1)<$E$26,DATE($A42,Mes,1)>$L$25),0,VLOOKUP(DATE($A42,Mes,1),Calculo!$H$13:$AE$1273,24,FALSE))) -> 
A43: =+IF(OR(A42="",A42=YEAR(Calculo!$F$19)),"",A42+1) ->  | B43: =+IF($A43="","",IF(OR(DATE($A43,Mes,1)<$E$26,DATE($A43,Mes,1)>$L$25),0,VLOOKUP(DATE($A43,Mes,1),Calculo!$H$13:$AE$1273,24,FALSE))) ->  | C43: =+IF($A43="","",IF(OR(DATE($A43,Mes,1)<$E$26,DATE($A43,Mes,1)>$L$25),0,VLOOKUP(DATE($A43,Mes,1),Calculo!$H$13:$AE$1273,24,FALSE))) ->  | D43: =+IF($A43="","",IF(OR(DATE($A43,Mes,1)<$E$26,DATE($A43,Mes,1)>$L$25),0,VLOOKUP(DATE($A43,Mes,1),Calculo!$H$13:$AE$1273,24,FALSE))) ->  | E43: =+IF($A43="","",IF(OR(DATE($A43,Mes,1)<$E$26,DATE($A43,Mes,1)>$L$25),0,VLOOKUP(DATE($A43,Mes,1),Calculo!$H$13:$AE$1273,24,FALSE))) ->  | F43: =+IF($A43="","",IF(OR(DATE($A43,Mes,1)<$E$26,DATE($A43,Mes,1)>$L$25),0,VLOOKUP(DATE($A43,Mes,1),Calculo!$H$13:$AE$1273,24,FALSE))) ->  | G43: =+IF($A43="","",IF(OR(DATE($A43,Mes,1)<$E$26,DATE($A43,Mes,1)>$L$25),0,VLOOKUP(DATE($A43,Mes,1),Calculo!$H$13:$AE$1273,24,FALSE))) ->  | H43: =+IF($A43="","",IF(OR(DATE($A43,Mes,1)<$E$26,DATE($A43,Mes,1)>$L$25),0,VLOOKUP(DATE($A43,Mes,1),Calculo!$H$13:$AE$1273,24,FALSE))) ->  | I43: =+IF($A43="","",IF(OR(DATE($A43,Mes,1)<$E$26,DATE($A43,Mes,1)>$L$25),0,VLOOKUP(DATE($A43,Mes,1),Calculo!$H$13:$AE$1273,24,FALSE))) ->  | J43: =+IF($A43="","",IF(OR(DATE($A43,Mes,1)<$E$26,DATE($A43,Mes,1)>$L$25),0,VLOOKUP(DATE($A43,Mes,1),Calculo!$H$13:$AE$1273,24,FALSE))) ->  | K43: =+IF($A43="","",IF(OR(DATE($A43,Mes,1)<$E$26,DATE($A43,Mes,1)>$L$25),0,VLOOKUP(DATE($A43,Mes,1),Calculo!$H$13:$AE$1273,24,FALSE))) ->  | L43: =+IF($A43="","",IF(OR(DATE($A43,Mes,1)<$E$26,DATE($A43,Mes,1)>$L$25),0,VLOOKUP(DATE($A43,Mes,1),Calculo!$H$13:$AE$1273,24,FALSE))) ->  | M43: =+IF($A43="","",IF(OR(DATE($A43,Mes,1)<$E$26,DATE($A43,Mes,1)>$L$25),0,VLOOKUP(DATE($A43,Mes,1),Calculo!$H$13:$AE$1273,24,FALSE))) -> 
A44: =+IF(OR(A43="",A43=YEAR(Calculo!$F$19)),"",A43+1) ->  | B44: =+IF($A44="","",IF(OR(DATE($A44,Mes,1)<$E$26,DATE($A44,Mes,1)>$L$25),0,VLOOKUP(DATE($A44,Mes,1),Calculo!$H$13:$AE$1273,24,FALSE))) ->  | C44: =+IF($A44="","",IF(OR(DATE($A44,Mes,1)<$E$26,DATE($A44,Mes,1)>$L$25),0,VLOOKUP(DATE($A44,Mes,1),Calculo!$H$13:$AE$1273,24,FALSE))) ->  | D44: =+IF($A44="","",IF(OR(DATE($A44,Mes,1)<$E$26,DATE($A44,Mes,1)>$L$25),0,VLOOKUP(DATE($A44,Mes,1),Calculo!$H$13:$AE$1273,24,FALSE))) ->  | E44: =+IF($A44="","",IF(OR(DATE($A44,Mes,1)<$E$26,DATE($A44,Mes,1)>$L$25),0,VLOOKUP(DATE($A44,Mes,1),Calculo!$H$13:$AE$1273,24,FALSE))) ->  | F44: =+IF($A44="","",IF(OR(DATE($A44,Mes,1)<$E$26,DATE($A44,Mes,1)>$L$25),0,VLOOKUP(DATE($A44,Mes,1),Calculo!$H$13:$AE$1273,24,FALSE))) ->  | G44: =+IF($A44="","",IF(OR(DATE($A44,Mes,1)<$E$26,DATE($A44,Mes,1)>$L$25),0,VLOOKUP(DATE($A44,Mes,1),Calculo!$H$13:$AE$1273,24,FALSE))) ->  | H44: =+IF($A44="","",IF(OR(DATE($A44,Mes,1)<$E$26,DATE($A44,Mes,1)>$L$25),0,VLOOKUP(DATE($A44,Mes,1),Calculo!$H$13:$AE$1273,24,FALSE))) ->  | I44: =+IF($A44="","",IF(OR(DATE($A44,Mes,1)<$E$26,DATE($A44,Mes,1)>$L$25),0,VLOOKUP(DATE($A44,Mes,1),Calculo!$H$13:$AE$1273,24,FALSE))) ->  | J44: =+IF($A44="","",IF(OR(DATE($A44,Mes,1)<$E$26,DATE($A44,Mes,1)>$L$25),0,VLOOKUP(DATE($A44,Mes,1),Calculo!$H$13:$AE$1273,24,FALSE))) ->  | K44: =+IF($A44="","",IF(OR(DATE($A44,Mes,1)<$E$26,DATE($A44,Mes,1)>$L$25),0,VLOOKUP(DATE($A44,Mes,1),Calculo!$H$13:$AE$1273,24,FALSE))) ->  | L44: =+IF($A44="","",IF(OR(DATE($A44,Mes,1)<$E$26,DATE($A44,Mes,1)>$L$25),0,VLOOKUP(DATE($A44,Mes,1),Calculo!$H$13:$AE$1273,24,FALSE))) ->  | M44: =+IF($A44="","",IF(OR(DATE($A44,Mes,1)<$E$26,DATE($A44,Mes,1)>$L$25),0,VLOOKUP(DATE($A44,Mes,1),Calculo!$H$13:$AE$1273,24,FALSE))) -> 
A45: =+IF(OR(A44="",A44=YEAR(Calculo!$F$19)),"",A44+1) ->  | B45: =+IF($A45="","",IF(OR(DATE($A45,Mes,1)<$E$26,DATE($A45,Mes,1)>$L$25),0,VLOOKUP(DATE($A45,Mes,1),Calculo!$H$13:$AE$1273,24,FALSE))) ->  | C45: =+IF($A45="","",IF(OR(DATE($A45,Mes,1)<$E$26,DATE($A45,Mes,1)>$L$25),0,VLOOKUP(DATE($A45,Mes,1),Calculo!$H$13:$AE$1273,24,FALSE))) ->  | D45: =+IF($A45="","",IF(OR(DATE($A45,Mes,1)<$E$26,DATE($A45,Mes,1)>$L$25),0,VLOOKUP(DATE($A45,Mes,1),Calculo!$H$13:$AE$1273,24,FALSE))) ->  | E45: =+IF($A45="","",IF(OR(DATE($A45,Mes,1)<$E$26,DATE($A45,Mes,1)>$L$25),0,VLOOKUP(DATE($A45,Mes,1),Calculo!$H$13:$AE$1273,24,FALSE))) ->  | F45: =+IF($A45="","",IF(OR(DATE($A45,Mes,1)<$E$26,DATE($A45,Mes,1)>$L$25),0,VLOOKUP(DATE($A45,Mes,1),Calculo!$H$13:$AE$1273,24,FALSE))) ->  | G45: =+IF($A45="","",IF(OR(DATE($A45,Mes,1)<$E$26,DATE($A45,Mes,1)>$L$25),0,VLOOKUP(DATE($A45,Mes,1),Calculo!$H$13:$AE$1273,24,FALSE))) ->  | H45: =+IF($A45="","",IF(OR(DATE($A45,Mes,1)<$E$26,DATE($A45,Mes,1)>$L$25),0,VLOOKUP(DATE($A45,Mes,1),Calculo!$H$13:$AE$1273,24,FALSE))) ->  | I45: =+IF($A45="","",IF(OR(DATE($A45,Mes,1)<$E$26,DATE($A45,Mes,1)>$L$25),0,VLOOKUP(DATE($A45,Mes,1),Calculo!$H$13:$AE$1273,24,FALSE))) ->  | J45: =+IF($A45="","",IF(OR(DATE($A45,Mes,1)<$E$26,DATE($A45,Mes,1)>$L$25),0,VLOOKUP(DATE($A45,Mes,1),Calculo!$H$13:$AE$1273,24,FALSE))) ->  | K45: =+IF($A45="","",IF(OR(DATE($A45,Mes,1)<$E$26,DATE($A45,Mes,1)>$L$25),0,VLOOKUP(DATE($A45,Mes,1),Calculo!$H$13:$AE$1273,24,FALSE))) ->  | L45: =+IF($A45="","",IF(OR(DATE($A45,Mes,1)<$E$26,DATE($A45,Mes,1)>$L$25),0,VLOOKUP(DATE($A45,Mes,1),Calculo!$H$13:$AE$1273,24,FALSE))) ->  | M45: =+IF($A45="","",IF(OR(DATE($A45,Mes,1)<$E$26,DATE($A45,Mes,1)>$L$25),0,VLOOKUP(DATE($A45,Mes,1),Calculo!$H$13:$AE$1273,24,FALSE))) -> 
A46: =+IF(OR(A45="",A45=YEAR(Calculo!$F$19)),"",A45+1) ->  | B46: =+IF($A46="","",IF(OR(DATE($A46,Mes,1)<$E$26,DATE($A46,Mes,1)>$L$25),0,VLOOKUP(DATE($A46,Mes,1),Calculo!$H$13:$AE$1273,24,FALSE))) ->  | C46: =+IF($A46="","",IF(OR(DATE($A46,Mes,1)<$E$26,DATE($A46,Mes,1)>$L$25),0,VLOOKUP(DATE($A46,Mes,1),Calculo!$H$13:$AE$1273,24,FALSE))) ->  | D46: =+IF($A46="","",IF(OR(DATE($A46,Mes,1)<$E$26,DATE($A46,Mes,1)>$L$25),0,VLOOKUP(DATE($A46,Mes,1),Calculo!$H$13:$AE$1273,24,FALSE))) ->  | E46: =+IF($A46="","",IF(OR(DATE($A46,Mes,1)<$E$26,DATE($A46,Mes,1)>$L$25),0,VLOOKUP(DATE($A46,Mes,1),Calculo!$H$13:$AE$1273,24,FALSE))) ->  | F46: =+IF($A46="","",IF(OR(DATE($A46,Mes,1)<$E$26,DATE($A46,Mes,1)>$L$25),0,VLOOKUP(DATE($A46,Mes,1),Calculo!$H$13:$AE$1273,24,FALSE))) ->  | G46: =+IF($A46="","",IF(OR(DATE($A46,Mes,1)<$E$26,DATE($A46,Mes,1)>$L$25),0,VLOOKUP(DATE($A46,Mes,1),Calculo!$H$13:$AE$1273,24,FALSE))) ->  | H46: =+IF($A46="","",IF(OR(DATE($A46,Mes,1)<$E$26,DATE($A46,Mes,1)>$L$25),0,VLOOKUP(DATE($A46,Mes,1),Calculo!$H$13:$AE$1273,24,FALSE))) ->  | I46: =+IF($A46="","",IF(OR(DATE($A46,Mes,1)<$E$26,DATE($A46,Mes,1)>$L$25),0,VLOOKUP(DATE($A46,Mes,1),Calculo!$H$13:$AE$1273,24,FALSE))) ->  | J46: =+IF($A46="","",IF(OR(DATE($A46,Mes,1)<$E$26,DATE($A46,Mes,1)>$L$25),0,VLOOKUP(DATE($A46,Mes,1),Calculo!$H$13:$AE$1273,24,FALSE))) ->  | K46: =+IF($A46="","",IF(OR(DATE($A46,Mes,1)<$E$26,DATE($A46,Mes,1)>$L$25),0,VLOOKUP(DATE($A46,Mes,1),Calculo!$H$13:$AE$1273,24,FALSE))) ->  | L46: =+IF($A46="","",IF(OR(DATE($A46,Mes,1)<$E$26,DATE($A46,Mes,1)>$L$25),0,VLOOKUP(DATE($A46,Mes,1),Calculo!$H$13:$AE$1273,24,FALSE))) ->  | M46: =+IF($A46="","",IF(OR(DATE($A46,Mes,1)<$E$26,DATE($A46,Mes,1)>$L$25),0,VLOOKUP(DATE($A46,Mes,1),Calculo!$H$13:$AE$1273,24,FALSE))) -> 
A47: =+IF(OR(A46="",A46=YEAR(Calculo!$F$19)),"",A46+1) ->  | B47: =+IF($A47="","",IF(OR(DATE($A47,Mes,1)<$E$26,DATE($A47,Mes,1)>$L$25),0,VLOOKUP(DATE($A47,Mes,1),Calculo!$H$13:$AE$1273,24,FALSE))) ->  | C47: =+IF($A47="","",IF(OR(DATE($A47,Mes,1)<$E$26,DATE($A47,Mes,1)>$L$25),0,VLOOKUP(DATE($A47,Mes,1),Calculo!$H$13:$AE$1273,24,FALSE))) ->  | D47: =+IF($A47="","",IF(OR(DATE($A47,Mes,1)<$E$26,DATE($A47,Mes,1)>$L$25),0,VLOOKUP(DATE($A47,Mes,1),Calculo!$H$13:$AE$1273,24,FALSE))) ->  | E47: =+IF($A47="","",IF(OR(DATE($A47,Mes,1)<$E$26,DATE($A47,Mes,1)>$L$25),0,VLOOKUP(DATE($A47,Mes,1),Calculo!$H$13:$AE$1273,24,FALSE))) ->  | F47: =+IF($A47="","",IF(OR(DATE($A47,Mes,1)<$E$26,DATE($A47,Mes,1)>$L$25),0,VLOOKUP(DATE($A47,Mes,1),Calculo!$H$13:$AE$1273,24,FALSE))) ->  | G47: =+IF($A47="","",IF(OR(DATE($A47,Mes,1)<$E$26,DATE($A47,Mes,1)>$L$25),0,VLOOKUP(DATE($A47,Mes,1),Calculo!$H$13:$AE$1273,24,FALSE))) ->  | H47: =+IF($A47="","",IF(OR(DATE($A47,Mes,1)<$E$26,DATE($A47,Mes,1)>$L$25),0,VLOOKUP(DATE($A47,Mes,1),Calculo!$H$13:$AE$1273,24,FALSE))) ->  | I47: =+IF($A47="","",IF(OR(DATE($A47,Mes,1)<$E$26,DATE($A47,Mes,1)>$L$25),0,VLOOKUP(DATE($A47,Mes,1),Calculo!$H$13:$AE$1273,24,FALSE))) ->  | J47: =+IF($A47="","",IF(OR(DATE($A47,Mes,1)<$E$26,DATE($A47,Mes,1)>$L$25),0,VLOOKUP(DATE($A47,Mes,1),Calculo!$H$13:$AE$1273,24,FALSE))) ->  | K47: =+IF($A47="","",IF(OR(DATE($A47,Mes,1)<$E$26,DATE($A47,Mes,1)>$L$25),0,VLOOKUP(DATE($A47,Mes,1),Calculo!$H$13:$AE$1273,24,FALSE))) ->  | L47: =+IF($A47="","",IF(OR(DATE($A47,Mes,1)<$E$26,DATE($A47,Mes,1)>$L$25),0,VLOOKUP(DATE($A47,Mes,1),Calculo!$H$13:$AE$1273,24,FALSE))) ->  | M47: =+IF($A47="","",IF(OR(DATE($A47,Mes,1)<$E$26,DATE($A47,Mes,1)>$L$25),0,VLOOKUP(DATE($A47,Mes,1),Calculo!$H$13:$AE$1273,24,FALSE))) -> 
A48: =+IF(OR(A47="",A47=YEAR(Calculo!$F$19)),"",A47+1) ->  | B48: =+IF($A48="","",IF(OR(DATE($A48,Mes,1)<$E$26,DATE($A48,Mes,1)>$L$25),0,VLOOKUP(DATE($A48,Mes,1),Calculo!$H$13:$AE$1273,24,FALSE))) ->  | C48: =+IF($A48="","",IF(OR(DATE($A48,Mes,1)<$E$26,DATE($A48,Mes,1)>$L$25),0,VLOOKUP(DATE($A48,Mes,1),Calculo!$H$13:$AE$1273,24,FALSE))) ->  | D48: =+IF($A48="","",IF(OR(DATE($A48,Mes,1)<$E$26,DATE($A48,Mes,1)>$L$25),0,VLOOKUP(DATE($A48,Mes,1),Calculo!$H$13:$AE$1273,24,FALSE))) ->  | E48: =+IF($A48="","",IF(OR(DATE($A48,Mes,1)<$E$26,DATE($A48,Mes,1)>$L$25),0,VLOOKUP(DATE($A48,Mes,1),Calculo!$H$13:$AE$1273,24,FALSE))) ->  | F48: =+IF($A48="","",IF(OR(DATE($A48,Mes,1)<$E$26,DATE($A48,Mes,1)>$L$25),0,VLOOKUP(DATE($A48,Mes,1),Calculo!$H$13:$AE$1273,24,FALSE))) ->  | G48: =+IF($A48="","",IF(OR(DATE($A48,Mes,1)<$E$26,DATE($A48,Mes,1)>$L$25),0,VLOOKUP(DATE($A48,Mes,1),Calculo!$H$13:$AE$1273,24,FALSE))) ->  | H48: =+IF($A48="","",IF(OR(DATE($A48,Mes,1)<$E$26,DATE($A48,Mes,1)>$L$25),0,VLOOKUP(DATE($A48,Mes,1),Calculo!$H$13:$AE$1273,24,FALSE))) ->  | I48: =+IF($A48="","",IF(OR(DATE($A48,Mes,1)<$E$26,DATE($A48,Mes,1)>$L$25),0,VLOOKUP(DATE($A48,Mes,1),Calculo!$H$13:$AE$1273,24,FALSE))) ->  | J48: =+IF($A48="","",IF(OR(DATE($A48,Mes,1)<$E$26,DATE($A48,Mes,1)>$L$25),0,VLOOKUP(DATE($A48,Mes,1),Calculo!$H$13:$AE$1273,24,FALSE))) ->  | K48: =+IF($A48="","",IF(OR(DATE($A48,Mes,1)<$E$26,DATE($A48,Mes,1)>$L$25),0,VLOOKUP(DATE($A48,Mes,1),Calculo!$H$13:$AE$1273,24,FALSE))) ->  | L48: =+IF($A48="","",IF(OR(DATE($A48,Mes,1)<$E$26,DATE($A48,Mes,1)>$L$25),0,VLOOKUP(DATE($A48,Mes,1),Calculo!$H$13:$AE$1273,24,FALSE))) ->  | M48: =+IF($A48="","",IF(OR(DATE($A48,Mes,1)<$E$26,DATE($A48,Mes,1)>$L$25),0,VLOOKUP(DATE($A48,Mes,1),Calculo!$H$13:$AE$1273,24,FALSE))) -> 
A49: =+IF(OR(A48="",A48=YEAR(Calculo!$F$19)),"",A48+1) ->  | B49: =+IF($A49="","",IF(OR(DATE($A49,Mes,1)<$E$26,DATE($A49,Mes,1)>$L$25),0,VLOOKUP(DATE($A49,Mes,1),Calculo!$H$13:$AE$1273,24,FALSE))) ->  | C49: =+IF($A49="","",IF(OR(DATE($A49,Mes,1)<$E$26,DATE($A49,Mes,1)>$L$25),0,VLOOKUP(DATE($A49,Mes,1),Calculo!$H$13:$AE$1273,24,FALSE))) ->  | D49: =+IF($A49="","",IF(OR(DATE($A49,Mes,1)<$E$26,DATE($A49,Mes,1)>$L$25),0,VLOOKUP(DATE($A49,Mes,1),Calculo!$H$13:$AE$1273,24,FALSE))) ->  | E49: =+IF($A49="","",IF(OR(DATE($A49,Mes,1)<$E$26,DATE($A49,Mes,1)>$L$25),0,VLOOKUP(DATE($A49,Mes,1),Calculo!$H$13:$AE$1273,24,FALSE))) ->  | F49: =+IF($A49="","",IF(OR(DATE($A49,Mes,1)<$E$26,DATE($A49,Mes,1)>$L$25),0,VLOOKUP(DATE($A49,Mes,1),Calculo!$H$13:$AE$1273,24,FALSE))) ->  | G49: =+IF($A49="","",IF(OR(DATE($A49,Mes,1)<$E$26,DATE($A49,Mes,1)>$L$25),0,VLOOKUP(DATE($A49,Mes,1),Calculo!$H$13:$AE$1273,24,FALSE))) ->  | H49: =+IF($A49="","",IF(OR(DATE($A49,Mes,1)<$E$26,DATE($A49,Mes,1)>$L$25),0,VLOOKUP(DATE($A49,Mes,1),Calculo!$H$13:$AE$1273,24,FALSE))) ->  | I49: =+IF($A49="","",IF(OR(DATE($A49,Mes,1)<$E$26,DATE($A49,Mes,1)>$L$25),0,VLOOKUP(DATE($A49,Mes,1),Calculo!$H$13:$AE$1273,24,FALSE))) ->  | J49: =+IF($A49="","",IF(OR(DATE($A49,Mes,1)<$E$26,DATE($A49,Mes,1)>$L$25),0,VLOOKUP(DATE($A49,Mes,1),Calculo!$H$13:$AE$1273,24,FALSE))) ->  | K49: =+IF($A49="","",IF(OR(DATE($A49,Mes,1)<$E$26,DATE($A49,Mes,1)>$L$25),0,VLOOKUP(DATE($A49,Mes,1),Calculo!$H$13:$AE$1273,24,FALSE))) ->  | L49: =+IF($A49="","",IF(OR(DATE($A49,Mes,1)<$E$26,DATE($A49,Mes,1)>$L$25),0,VLOOKUP(DATE($A49,Mes,1),Calculo!$H$13:$AE$1273,24,FALSE))) ->  | M49: =+IF($A49="","",IF(OR(DATE($A49,Mes,1)<$E$26,DATE($A49,Mes,1)>$L$25),0,VLOOKUP(DATE($A49,Mes,1),Calculo!$H$13:$AE$1273,24,FALSE))) -> 
A50: =+IF(OR(A49="",A49=YEAR(Calculo!$F$19)),"",A49+1) ->  | B50: =+IF($A50="","",IF(OR(DATE($A50,Mes,1)<$E$26,DATE($A50,Mes,1)>$L$25),0,VLOOKUP(DATE($A50,Mes,1),Calculo!$H$13:$AE$1273,24,FALSE))) ->  | C50: =+IF($A50="","",IF(OR(DATE($A50,Mes,1)<$E$26,DATE($A50,Mes,1)>$L$25),0,VLOOKUP(DATE($A50,Mes,1),Calculo!$H$13:$AE$1273,24,FALSE))) ->  | D50: =+IF($A50="","",IF(OR(DATE($A50,Mes,1)<$E$26,DATE($A50,Mes,1)>$L$25),0,VLOOKUP(DATE($A50,Mes,1),Calculo!$H$13:$AE$1273,24,FALSE))) ->  | E50: =+IF($A50="","",IF(OR(DATE($A50,Mes,1)<$E$26,DATE($A50,Mes,1)>$L$25),0,VLOOKUP(DATE($A50,Mes,1),Calculo!$H$13:$AE$1273,24,FALSE))) ->  | F50: =+IF($A50="","",IF(OR(DATE($A50,Mes,1)<$E$26,DATE($A50,Mes,1)>$L$25),0,VLOOKUP(DATE($A50,Mes,1),Calculo!$H$13:$AE$1273,24,FALSE))) ->  | G50: =+IF($A50="","",IF(OR(DATE($A50,Mes,1)<$E$26,DATE($A50,Mes,1)>$L$25),0,VLOOKUP(DATE($A50,Mes,1),Calculo!$H$13:$AE$1273,24,FALSE))) ->  | H50: =+IF($A50="","",IF(OR(DATE($A50,Mes,1)<$E$26,DATE($A50,Mes,1)>$L$25),0,VLOOKUP(DATE($A50,Mes,1),Calculo!$H$13:$AE$1273,24,FALSE))) ->  | I50: =+IF($A50="","",IF(OR(DATE($A50,Mes,1)<$E$26,DATE($A50,Mes,1)>$L$25),0,VLOOKUP(DATE($A50,Mes,1),Calculo!$H$13:$AE$1273,24,FALSE))) ->  | J50: =+IF($A50="","",IF(OR(DATE($A50,Mes,1)<$E$26,DATE($A50,Mes,1)>$L$25),0,VLOOKUP(DATE($A50,Mes,1),Calculo!$H$13:$AE$1273,24,FALSE))) ->  | K50: =+IF($A50="","",IF(OR(DATE($A50,Mes,1)<$E$26,DATE($A50,Mes,1)>$L$25),0,VLOOKUP(DATE($A50,Mes,1),Calculo!$H$13:$AE$1273,24,FALSE))) ->  | L50: =+IF($A50="","",IF(OR(DATE($A50,Mes,1)<$E$26,DATE($A50,Mes,1)>$L$25),0,VLOOKUP(DATE($A50,Mes,1),Calculo!$H$13:$AE$1273,24,FALSE))) ->  | M50: =+IF($A50="","",IF(OR(DATE($A50,Mes,1)<$E$26,DATE($A50,Mes,1)>$L$25),0,VLOOKUP(DATE($A50,Mes,1),Calculo!$H$13:$AE$1273,24,FALSE))) -> 
A51: =+IF(OR(A50="",A50=YEAR(Calculo!$F$19)),"",A50+1) ->  | B51: =+IF($A51="","",IF(OR(DATE($A51,Mes,1)<$E$26,DATE($A51,Mes,1)>$L$25),0,VLOOKUP(DATE($A51,Mes,1),Calculo!$H$13:$AE$1273,24,FALSE))) ->  | C51: =+IF($A51="","",IF(OR(DATE($A51,Mes,1)<$E$26,DATE($A51,Mes,1)>$L$25),0,VLOOKUP(DATE($A51,Mes,1),Calculo!$H$13:$AE$1273,24,FALSE))) ->  | D51: =+IF($A51="","",IF(OR(DATE($A51,Mes,1)<$E$26,DATE($A51,Mes,1)>$L$25),0,VLOOKUP(DATE($A51,Mes,1),Calculo!$H$13:$AE$1273,24,FALSE))) ->  | E51: =+IF($A51="","",IF(OR(DATE($A51,Mes,1)<$E$26,DATE($A51,Mes,1)>$L$25),0,VLOOKUP(DATE($A51,Mes,1),Calculo!$H$13:$AE$1273,24,FALSE))) ->  | F51: =+IF($A51="","",IF(OR(DATE($A51,Mes,1)<$E$26,DATE($A51,Mes,1)>$L$25),0,VLOOKUP(DATE($A51,Mes,1),Calculo!$H$13:$AE$1273,24,FALSE))) ->  | G51: =+IF($A51="","",IF(OR(DATE($A51,Mes,1)<$E$26,DATE($A51,Mes,1)>$L$25),0,VLOOKUP(DATE($A51,Mes,1),Calculo!$H$13:$AE$1273,24,FALSE))) ->  | H51: =+IF($A51="","",IF(OR(DATE($A51,Mes,1)<$E$26,DATE($A51,Mes,1)>$L$25),0,VLOOKUP(DATE($A51,Mes,1),Calculo!$H$13:$AE$1273,24,FALSE))) ->  | I51: =+IF($A51="","",IF(OR(DATE($A51,Mes,1)<$E$26,DATE($A51,Mes,1)>$L$25),0,VLOOKUP(DATE($A51,Mes,1),Calculo!$H$13:$AE$1273,24,FALSE))) ->  | J51: =+IF($A51="","",IF(OR(DATE($A51,Mes,1)<$E$26,DATE($A51,Mes,1)>$L$25),0,VLOOKUP(DATE($A51,Mes,1),Calculo!$H$13:$AE$1273,24,FALSE))) ->  | K51: =+IF($A51="","",IF(OR(DATE($A51,Mes,1)<$E$26,DATE($A51,Mes,1)>$L$25),0,VLOOKUP(DATE($A51,Mes,1),Calculo!$H$13:$AE$1273,24,FALSE))) ->  | L51: =+IF($A51="","",IF(OR(DATE($A51,Mes,1)<$E$26,DATE($A51,Mes,1)>$L$25),0,VLOOKUP(DATE($A51,Mes,1),Calculo!$H$13:$AE$1273,24,FALSE))) ->  | M51: =+IF($A51="","",IF(OR(DATE($A51,Mes,1)<$E$26,DATE($A51,Mes,1)>$L$25),0,VLOOKUP(DATE($A51,Mes,1),Calculo!$H$13:$AE$1273,24,FALSE))) -> 
A52: =+IF(OR(A51="",A51=YEAR(Calculo!$F$19)),"",A51+1) ->  | B52: =+IF($A52="","",IF(OR(DATE($A52,Mes,1)<$E$26,DATE($A52,Mes,1)>$L$25),0,VLOOKUP(DATE($A52,Mes,1),Calculo!$H$13:$AE$1273,24,FALSE))) ->  | C52: =+IF($A52="","",IF(OR(DATE($A52,Mes,1)<$E$26,DATE($A52,Mes,1)>$L$25),0,VLOOKUP(DATE($A52,Mes,1),Calculo!$H$13:$AE$1273,24,FALSE))) ->  | D52: =+IF($A52="","",IF(OR(DATE($A52,Mes,1)<$E$26,DATE($A52,Mes,1)>$L$25),0,VLOOKUP(DATE($A52,Mes,1),Calculo!$H$13:$AE$1273,24,FALSE))) ->  | E52: =+IF($A52="","",IF(OR(DATE($A52,Mes,1)<$E$26,DATE($A52,Mes,1)>$L$25),0,VLOOKUP(DATE($A52,Mes,1),Calculo!$H$13:$AE$1273,24,FALSE))) ->  | F52: =+IF($A52="","",IF(OR(DATE($A52,Mes,1)<$E$26,DATE($A52,Mes,1)>$L$25),0,VLOOKUP(DATE($A52,Mes,1),Calculo!$H$13:$AE$1273,24,FALSE))) ->  | G52: =+IF($A52="","",IF(OR(DATE($A52,Mes,1)<$E$26,DATE($A52,Mes,1)>$L$25),0,VLOOKUP(DATE($A52,Mes,1),Calculo!$H$13:$AE$1273,24,FALSE))) ->  | H52: =+IF($A52="","",IF(OR(DATE($A52,Mes,1)<$E$26,DATE($A52,Mes,1)>$L$25),0,VLOOKUP(DATE($A52,Mes,1),Calculo!$H$13:$AE$1273,24,FALSE))) ->  | I52: =+IF($A52="","",IF(OR(DATE($A52,Mes,1)<$E$26,DATE($A52,Mes,1)>$L$25),0,VLOOKUP(DATE($A52,Mes,1),Calculo!$H$13:$AE$1273,24,FALSE))) ->  | J52: =+IF($A52="","",IF(OR(DATE($A52,Mes,1)<$E$26,DATE($A52,Mes,1)>$L$25),0,VLOOKUP(DATE($A52,Mes,1),Calculo!$H$13:$AE$1273,24,FALSE))) ->  | K52: =+IF($A52="","",IF(OR(DATE($A52,Mes,1)<$E$26,DATE($A52,Mes,1)>$L$25),0,VLOOKUP(DATE($A52,Mes,1),Calculo!$H$13:$AE$1273,24,FALSE))) ->  | L52: =+IF($A52="","",IF(OR(DATE($A52,Mes,1)<$E$26,DATE($A52,Mes,1)>$L$25),0,VLOOKUP(DATE($A52,Mes,1),Calculo!$H$13:$AE$1273,24,FALSE))) ->  | M52: =+IF($A52="","",IF(OR(DATE($A52,Mes,1)<$E$26,DATE($A52,Mes,1)>$L$25),0,VLOOKUP(DATE($A52,Mes,1),Calculo!$H$13:$AE$1273,24,FALSE))) -> 
A53: =+IF(OR(A52="",A52=YEAR(Calculo!$F$19)),"",A52+1) ->  | B53: =+IF($A53="","",IF(OR(DATE($A53,Mes,1)<$E$26,DATE($A53,Mes,1)>$L$25),0,VLOOKUP(DATE($A53,Mes,1),Calculo!$H$13:$AE$1273,24,FALSE))) ->  | C53: =+IF($A53="","",IF(OR(DATE($A53,Mes,1)<$E$26,DATE($A53,Mes,1)>$L$25),0,VLOOKUP(DATE($A53,Mes,1),Calculo!$H$13:$AE$1273,24,FALSE))) ->  | D53: =+IF($A53="","",IF(OR(DATE($A53,Mes,1)<$E$26,DATE($A53,Mes,1)>$L$25),0,VLOOKUP(DATE($A53,Mes,1),Calculo!$H$13:$AE$1273,24,FALSE))) ->  | E53: =+IF($A53="","",IF(OR(DATE($A53,Mes,1)<$E$26,DATE($A53,Mes,1)>$L$25),0,VLOOKUP(DATE($A53,Mes,1),Calculo!$H$13:$AE$1273,24,FALSE))) ->  | F53: =+IF($A53="","",IF(OR(DATE($A53,Mes,1)<$E$26,DATE($A53,Mes,1)>$L$25),0,VLOOKUP(DATE($A53,Mes,1),Calculo!$H$13:$AE$1273,24,FALSE))) ->  | G53: =+IF($A53="","",IF(OR(DATE($A53,Mes,1)<$E$26,DATE($A53,Mes,1)>$L$25),0,VLOOKUP(DATE($A53,Mes,1),Calculo!$H$13:$AE$1273,24,FALSE))) ->  | H53: =+IF($A53="","",IF(OR(DATE($A53,Mes,1)<$E$26,DATE($A53,Mes,1)>$L$25),0,VLOOKUP(DATE($A53,Mes,1),Calculo!$H$13:$AE$1273,24,FALSE))) ->  | I53: =+IF($A53="","",IF(OR(DATE($A53,Mes,1)<$E$26,DATE($A53,Mes,1)>$L$25),0,VLOOKUP(DATE($A53,Mes,1),Calculo!$H$13:$AE$1273,24,FALSE))) ->  | J53: =+IF($A53="","",IF(OR(DATE($A53,Mes,1)<$E$26,DATE($A53,Mes,1)>$L$25),0,VLOOKUP(DATE($A53,Mes,1),Calculo!$H$13:$AE$1273,24,FALSE))) ->  | K53: =+IF($A53="","",IF(OR(DATE($A53,Mes,1)<$E$26,DATE($A53,Mes,1)>$L$25),0,VLOOKUP(DATE($A53,Mes,1),Calculo!$H$13:$AE$1273,24,FALSE))) ->  | L53: =+IF($A53="","",IF(OR(DATE($A53,Mes,1)<$E$26,DATE($A53,Mes,1)>$L$25),0,VLOOKUP(DATE($A53,Mes,1),Calculo!$H$13:$AE$1273,24,FALSE))) ->  | M53: =+IF($A53="","",IF(OR(DATE($A53,Mes,1)<$E$26,DATE($A53,Mes,1)>$L$25),0,VLOOKUP(DATE($A53,Mes,1),Calculo!$H$13:$AE$1273,24,FALSE))) -> 
A54: =+IF(OR(A53="",A53=YEAR(Calculo!$F$19)),"",A53+1) ->  | B54: =+IF($A54="","",IF(OR(DATE($A54,Mes,1)<$E$26,DATE($A54,Mes,1)>$L$25),0,VLOOKUP(DATE($A54,Mes,1),Calculo!$H$13:$AE$1273,24,FALSE))) ->  | C54: =+IF($A54="","",IF(OR(DATE($A54,Mes,1)<$E$26,DATE($A54,Mes,1)>$L$25),0,VLOOKUP(DATE($A54,Mes,1),Calculo!$H$13:$AE$1273,24,FALSE))) ->  | D54: =+IF($A54="","",IF(OR(DATE($A54,Mes,1)<$E$26,DATE($A54,Mes,1)>$L$25),0,VLOOKUP(DATE($A54,Mes,1),Calculo!$H$13:$AE$1273,24,FALSE))) ->  | E54: =+IF($A54="","",IF(OR(DATE($A54,Mes,1)<$E$26,DATE($A54,Mes,1)>$L$25),0,VLOOKUP(DATE($A54,Mes,1),Calculo!$H$13:$AE$1273,24,FALSE))) ->  | F54: =+IF($A54="","",IF(OR(DATE($A54,Mes,1)<$E$26,DATE($A54,Mes,1)>$L$25),0,VLOOKUP(DATE($A54,Mes,1),Calculo!$H$13:$AE$1273,24,FALSE))) ->  | G54: =+IF($A54="","",IF(OR(DATE($A54,Mes,1)<$E$26,DATE($A54,Mes,1)>$L$25),0,VLOOKUP(DATE($A54,Mes,1),Calculo!$H$13:$AE$1273,24,FALSE))) ->  | H54: =+IF($A54="","",IF(OR(DATE($A54,Mes,1)<$E$26,DATE($A54,Mes,1)>$L$25),0,VLOOKUP(DATE($A54,Mes,1),Calculo!$H$13:$AE$1273,24,FALSE))) ->  | I54: =+IF($A54="","",IF(OR(DATE($A54,Mes,1)<$E$26,DATE($A54,Mes,1)>$L$25),0,VLOOKUP(DATE($A54,Mes,1),Calculo!$H$13:$AE$1273,24,FALSE))) ->  | J54: =+IF($A54="","",IF(OR(DATE($A54,Mes,1)<$E$26,DATE($A54,Mes,1)>$L$25),0,VLOOKUP(DATE($A54,Mes,1),Calculo!$H$13:$AE$1273,24,FALSE))) ->  | K54: =+IF($A54="","",IF(OR(DATE($A54,Mes,1)<$E$26,DATE($A54,Mes,1)>$L$25),0,VLOOKUP(DATE($A54,Mes,1),Calculo!$H$13:$AE$1273,24,FALSE))) ->  | L54: =+IF($A54="","",IF(OR(DATE($A54,Mes,1)<$E$26,DATE($A54,Mes,1)>$L$25),0,VLOOKUP(DATE($A54,Mes,1),Calculo!$H$13:$AE$1273,24,FALSE))) ->  | M54: =+IF($A54="","",IF(OR(DATE($A54,Mes,1)<$E$26,DATE($A54,Mes,1)>$L$25),0,VLOOKUP(DATE($A54,Mes,1),Calculo!$H$13:$AE$1273,24,FALSE))) -> 
A55: =+IF(OR(A54="",A54=YEAR(Calculo!$F$19)),"",A54+1) ->  | B55: =+IF($A55="","",IF(OR(DATE($A55,Mes,1)<$E$26,DATE($A55,Mes,1)>$L$25),0,VLOOKUP(DATE($A55,Mes,1),Calculo!$H$13:$AE$1273,24,FALSE))) ->  | C55: =+IF($A55="","",IF(OR(DATE($A55,Mes,1)<$E$26,DATE($A55,Mes,1)>$L$25),0,VLOOKUP(DATE($A55,Mes,1),Calculo!$H$13:$AE$1273,24,FALSE))) ->  | D55: =+IF($A55="","",IF(OR(DATE($A55,Mes,1)<$E$26,DATE($A55,Mes,1)>$L$25),0,VLOOKUP(DATE($A55,Mes,1),Calculo!$H$13:$AE$1273,24,FALSE))) ->  | E55: =+IF($A55="","",IF(OR(DATE($A55,Mes,1)<$E$26,DATE($A55,Mes,1)>$L$25),0,VLOOKUP(DATE($A55,Mes,1),Calculo!$H$13:$AE$1273,24,FALSE))) ->  | F55: =+IF($A55="","",IF(OR(DATE($A55,Mes,1)<$E$26,DATE($A55,Mes,1)>$L$25),0,VLOOKUP(DATE($A55,Mes,1),Calculo!$H$13:$AE$1273,24,FALSE))) ->  | G55: =+IF($A55="","",IF(OR(DATE($A55,Mes,1)<$E$26,DATE($A55,Mes,1)>$L$25),0,VLOOKUP(DATE($A55,Mes,1),Calculo!$H$13:$AE$1273,24,FALSE))) ->  | H55: =+IF($A55="","",IF(OR(DATE($A55,Mes,1)<$E$26,DATE($A55,Mes,1)>$L$25),0,VLOOKUP(DATE($A55,Mes,1),Calculo!$H$13:$AE$1273,24,FALSE))) ->  | I55: =+IF($A55="","",IF(OR(DATE($A55,Mes,1)<$E$26,DATE($A55,Mes,1)>$L$25),0,VLOOKUP(DATE($A55,Mes,1),Calculo!$H$13:$AE$1273,24,FALSE))) ->  | J55: =+IF($A55="","",IF(OR(DATE($A55,Mes,1)<$E$26,DATE($A55,Mes,1)>$L$25),0,VLOOKUP(DATE($A55,Mes,1),Calculo!$H$13:$AE$1273,24,FALSE))) ->  | K55: =+IF($A55="","",IF(OR(DATE($A55,Mes,1)<$E$26,DATE($A55,Mes,1)>$L$25),0,VLOOKUP(DATE($A55,Mes,1),Calculo!$H$13:$AE$1273,24,FALSE))) ->  | L55: =+IF($A55="","",IF(OR(DATE($A55,Mes,1)<$E$26,DATE($A55,Mes,1)>$L$25),0,VLOOKUP(DATE($A55,Mes,1),Calculo!$H$13:$AE$1273,24,FALSE))) ->  | M55: =+IF($A55="","",IF(OR(DATE($A55,Mes,1)<$E$26,DATE($A55,Mes,1)>$L$25),0,VLOOKUP(DATE($A55,Mes,1),Calculo!$H$13:$AE$1273,24,FALSE))) -> 
A56: =+IF(OR(A55="",A55=YEAR(Calculo!$F$19)),"",A55+1) ->  | B56: =+IF($A56="","",IF(OR(DATE($A56,Mes,1)<$E$26,DATE($A56,Mes,1)>$L$25),0,VLOOKUP(DATE($A56,Mes,1),Calculo!$H$13:$AE$1273,24,FALSE))) ->  | C56: =+IF($A56="","",IF(OR(DATE($A56,Mes,1)<$E$26,DATE($A56,Mes,1)>$L$25),0,VLOOKUP(DATE($A56,Mes,1),Calculo!$H$13:$AE$1273,24,FALSE))) ->  | D56: =+IF($A56="","",IF(OR(DATE($A56,Mes,1)<$E$26,DATE($A56,Mes,1)>$L$25),0,VLOOKUP(DATE($A56,Mes,1),Calculo!$H$13:$AE$1273,24,FALSE))) ->  | E56: =+IF($A56="","",IF(OR(DATE($A56,Mes,1)<$E$26,DATE($A56,Mes,1)>$L$25),0,VLOOKUP(DATE($A56,Mes,1),Calculo!$H$13:$AE$1273,24,FALSE))) ->  | F56: =+IF($A56="","",IF(OR(DATE($A56,Mes,1)<$E$26,DATE($A56,Mes,1)>$L$25),0,VLOOKUP(DATE($A56,Mes,1),Calculo!$H$13:$AE$1273,24,FALSE))) ->  | G56: =+IF($A56="","",IF(OR(DATE($A56,Mes,1)<$E$26,DATE($A56,Mes,1)>$L$25),0,VLOOKUP(DATE($A56,Mes,1),Calculo!$H$13:$AE$1273,24,FALSE))) ->  | H56: =+IF($A56="","",IF(OR(DATE($A56,Mes,1)<$E$26,DATE($A56,Mes,1)>$L$25),0,VLOOKUP(DATE($A56,Mes,1),Calculo!$H$13:$AE$1273,24,FALSE))) ->  | I56: =+IF($A56="","",IF(OR(DATE($A56,Mes,1)<$E$26,DATE($A56,Mes,1)>$L$25),0,VLOOKUP(DATE($A56,Mes,1),Calculo!$H$13:$AE$1273,24,FALSE))) ->  | J56: =+IF($A56="","",IF(OR(DATE($A56,Mes,1)<$E$26,DATE($A56,Mes,1)>$L$25),0,VLOOKUP(DATE($A56,Mes,1),Calculo!$H$13:$AE$1273,24,FALSE))) ->  | K56: =+IF($A56="","",IF(OR(DATE($A56,Mes,1)<$E$26,DATE($A56,Mes,1)>$L$25),0,VLOOKUP(DATE($A56,Mes,1),Calculo!$H$13:$AE$1273,24,FALSE))) ->  | L56: =+IF($A56="","",IF(OR(DATE($A56,Mes,1)<$E$26,DATE($A56,Mes,1)>$L$25),0,VLOOKUP(DATE($A56,Mes,1),Calculo!$H$13:$AE$1273,24,FALSE))) ->  | M56: =+IF($A56="","",IF(OR(DATE($A56,Mes,1)<$E$26,DATE($A56,Mes,1)>$L$25),0,VLOOKUP(DATE($A56,Mes,1),Calculo!$H$13:$AE$1273,24,FALSE))) -> 
A57: =+IF(OR(A56="",A56=YEAR(Calculo!$F$19)),"",A56+1) ->  | B57: =+IF($A57="","",IF(OR(DATE($A57,Mes,1)<$E$26,DATE($A57,Mes,1)>$L$25),0,VLOOKUP(DATE($A57,Mes,1),Calculo!$H$13:$AE$1273,24,FALSE))) ->  | C57: =+IF($A57="","",IF(OR(DATE($A57,Mes,1)<$E$26,DATE($A57,Mes,1)>$L$25),0,VLOOKUP(DATE($A57,Mes,1),Calculo!$H$13:$AE$1273,24,FALSE))) ->  | D57: =+IF($A57="","",IF(OR(DATE($A57,Mes,1)<$E$26,DATE($A57,Mes,1)>$L$25),0,VLOOKUP(DATE($A57,Mes,1),Calculo!$H$13:$AE$1273,24,FALSE))) ->  | E57: =+IF($A57="","",IF(OR(DATE($A57,Mes,1)<$E$26,DATE($A57,Mes,1)>$L$25),0,VLOOKUP(DATE($A57,Mes,1),Calculo!$H$13:$AE$1273,24,FALSE))) ->  | F57: =+IF($A57="","",IF(OR(DATE($A57,Mes,1)<$E$26,DATE($A57,Mes,1)>$L$25),0,VLOOKUP(DATE($A57,Mes,1),Calculo!$H$13:$AE$1273,24,FALSE))) ->  | G57: =+IF($A57="","",IF(OR(DATE($A57,Mes,1)<$E$26,DATE($A57,Mes,1)>$L$25),0,VLOOKUP(DATE($A57,Mes,1),Calculo!$H$13:$AE$1273,24,FALSE))) ->  | H57: =+IF($A57="","",IF(OR(DATE($A57,Mes,1)<$E$26,DATE($A57,Mes,1)>$L$25),0,VLOOKUP(DATE($A57,Mes,1),Calculo!$H$13:$AE$1273,24,FALSE))) ->  | I57: =+IF($A57="","",IF(OR(DATE($A57,Mes,1)<$E$26,DATE($A57,Mes,1)>$L$25),0,VLOOKUP(DATE($A57,Mes,1),Calculo!$H$13:$AE$1273,24,FALSE))) ->  | J57: =+IF($A57="","",IF(OR(DATE($A57,Mes,1)<$E$26,DATE($A57,Mes,1)>$L$25),0,VLOOKUP(DATE($A57,Mes,1),Calculo!$H$13:$AE$1273,24,FALSE))) ->  | K57: =+IF($A57="","",IF(OR(DATE($A57,Mes,1)<$E$26,DATE($A57,Mes,1)>$L$25),0,VLOOKUP(DATE($A57,Mes,1),Calculo!$H$13:$AE$1273,24,FALSE))) ->  | L57: =+IF($A57="","",IF(OR(DATE($A57,Mes,1)<$E$26,DATE($A57,Mes,1)>$L$25),0,VLOOKUP(DATE($A57,Mes,1),Calculo!$H$13:$AE$1273,24,FALSE))) ->  | M57: =+IF($A57="","",IF(OR(DATE($A57,Mes,1)<$E$26,DATE($A57,Mes,1)>$L$25),0,VLOOKUP(DATE($A57,Mes,1),Calculo!$H$13:$AE$1273,24,FALSE))) -> 
A58: =+IF(OR(A57="",A57=YEAR(Calculo!$F$19)),"",A57+1) ->  | B58: =+IF($A58="","",IF(OR(DATE($A58,Mes,1)<$E$26,DATE($A58,Mes,1)>$L$25),0,VLOOKUP(DATE($A58,Mes,1),Calculo!$H$13:$AE$1273,24,FALSE))) ->  | C58: =+IF($A58="","",IF(OR(DATE($A58,Mes,1)<$E$26,DATE($A58,Mes,1)>$L$25),0,VLOOKUP(DATE($A58,Mes,1),Calculo!$H$13:$AE$1273,24,FALSE))) ->  | D58: =+IF($A58="","",IF(OR(DATE($A58,Mes,1)<$E$26,DATE($A58,Mes,1)>$L$25),0,VLOOKUP(DATE($A58,Mes,1),Calculo!$H$13:$AE$1273,24,FALSE))) ->  | E58: =+IF($A58="","",IF(OR(DATE($A58,Mes,1)<$E$26,DATE($A58,Mes,1)>$L$25),0,VLOOKUP(DATE($A58,Mes,1),Calculo!$H$13:$AE$1273,24,FALSE))) ->  | F58: =+IF($A58="","",IF(OR(DATE($A58,Mes,1)<$E$26,DATE($A58,Mes,1)>$L$25),0,VLOOKUP(DATE($A58,Mes,1),Calculo!$H$13:$AE$1273,24,FALSE))) ->  | G58: =+IF($A58="","",IF(OR(DATE($A58,Mes,1)<$E$26,DATE($A58,Mes,1)>$L$25),0,VLOOKUP(DATE($A58,Mes,1),Calculo!$H$13:$AE$1273,24,FALSE))) ->  | H58: =+IF($A58="","",IF(OR(DATE($A58,Mes,1)<$E$26,DATE($A58,Mes,1)>$L$25),0,VLOOKUP(DATE($A58,Mes,1),Calculo!$H$13:$AE$1273,24,FALSE))) ->  | I58: =+IF($A58="","",IF(OR(DATE($A58,Mes,1)<$E$26,DATE($A58,Mes,1)>$L$25),0,VLOOKUP(DATE($A58,Mes,1),Calculo!$H$13:$AE$1273,24,FALSE))) ->  | J58: =+IF($A58="","",IF(OR(DATE($A58,Mes,1)<$E$26,DATE($A58,Mes,1)>$L$25),0,VLOOKUP(DATE($A58,Mes,1),Calculo!$H$13:$AE$1273,24,FALSE))) ->  | K58: =+IF($A58="","",IF(OR(DATE($A58,Mes,1)<$E$26,DATE($A58,Mes,1)>$L$25),0,VLOOKUP(DATE($A58,Mes,1),Calculo!$H$13:$AE$1273,24,FALSE))) ->  | L58: =+IF($A58="","",IF(OR(DATE($A58,Mes,1)<$E$26,DATE($A58,Mes,1)>$L$25),0,VLOOKUP(DATE($A58,Mes,1),Calculo!$H$13:$AE$1273,24,FALSE))) ->  | M58: =+IF($A58="","",IF(OR(DATE($A58,Mes,1)<$E$26,DATE($A58,Mes,1)>$L$25),0,VLOOKUP(DATE($A58,Mes,1),Calculo!$H$13:$AE$1273,24,FALSE))) -> 
A59: =+IF(OR(A58="",A58=YEAR(Calculo!$F$19)),"",A58+1) ->  | B59: =+IF($A59="","",IF(OR(DATE($A59,Mes,1)<$E$26,DATE($A59,Mes,1)>$L$25),0,VLOOKUP(DATE($A59,Mes,1),Calculo!$H$13:$AE$1273,24,FALSE))) ->  | C59: =+IF($A59="","",IF(OR(DATE($A59,Mes,1)<$E$26,DATE($A59,Mes,1)>$L$25),0,VLOOKUP(DATE($A59,Mes,1),Calculo!$H$13:$AE$1273,24,FALSE))) ->  | D59: =+IF($A59="","",IF(OR(DATE($A59,Mes,1)<$E$26,DATE($A59,Mes,1)>$L$25),0,VLOOKUP(DATE($A59,Mes,1),Calculo!$H$13:$AE$1273,24,FALSE))) ->  | E59: =+IF($A59="","",IF(OR(DATE($A59,Mes,1)<$E$26,DATE($A59,Mes,1)>$L$25),0,VLOOKUP(DATE($A59,Mes,1),Calculo!$H$13:$AE$1273,24,FALSE))) ->  | F59: =+IF($A59="","",IF(OR(DATE($A59,Mes,1)<$E$26,DATE($A59,Mes,1)>$L$25),0,VLOOKUP(DATE($A59,Mes,1),Calculo!$H$13:$AE$1273,24,FALSE))) ->  | G59: =+IF($A59="","",IF(OR(DATE($A59,Mes,1)<$E$26,DATE($A59,Mes,1)>$L$25),0,VLOOKUP(DATE($A59,Mes,1),Calculo!$H$13:$AE$1273,24,FALSE))) ->  | H59: =+IF($A59="","",IF(OR(DATE($A59,Mes,1)<$E$26,DATE($A59,Mes,1)>$L$25),0,VLOOKUP(DATE($A59,Mes,1),Calculo!$H$13:$AE$1273,24,FALSE))) ->  | I59: =+IF($A59="","",IF(OR(DATE($A59,Mes,1)<$E$26,DATE($A59,Mes,1)>$L$25),0,VLOOKUP(DATE($A59,Mes,1),Calculo!$H$13:$AE$1273,24,FALSE))) ->  | J59: =+IF($A59="","",IF(OR(DATE($A59,Mes,1)<$E$26,DATE($A59,Mes,1)>$L$25),0,VLOOKUP(DATE($A59,Mes,1),Calculo!$H$13:$AE$1273,24,FALSE))) ->  | K59: =+IF($A59="","",IF(OR(DATE($A59,Mes,1)<$E$26,DATE($A59,Mes,1)>$L$25),0,VLOOKUP(DATE($A59,Mes,1),Calculo!$H$13:$AE$1273,24,FALSE))) ->  | L59: =+IF($A59="","",IF(OR(DATE($A59,Mes,1)<$E$26,DATE($A59,Mes,1)>$L$25),0,VLOOKUP(DATE($A59,Mes,1),Calculo!$H$13:$AE$1273,24,FALSE))) ->  | M59: =+IF($A59="","",IF(OR(DATE($A59,Mes,1)<$E$26,DATE($A59,Mes,1)>$L$25),0,VLOOKUP(DATE($A59,Mes,1),Calculo!$H$13:$AE$1273,24,FALSE))) -> 
A60: =+IF(OR(A59="",A59=YEAR(Calculo!$F$19)),"",A59+1) ->  | B60: =+IF($A60="","",IF(OR(DATE($A60,Mes,1)<$E$26,DATE($A60,Mes,1)>$L$25),0,VLOOKUP(DATE($A60,Mes,1),Calculo!$H$13:$AE$1273,24,FALSE))) ->  | C60: =+IF($A60="","",IF(OR(DATE($A60,Mes,1)<$E$26,DATE($A60,Mes,1)>$L$25),0,VLOOKUP(DATE($A60,Mes,1),Calculo!$H$13:$AE$1273,24,FALSE))) ->  | D60: =+IF($A60="","",IF(OR(DATE($A60,Mes,1)<$E$26,DATE($A60,Mes,1)>$L$25),0,VLOOKUP(DATE($A60,Mes,1),Calculo!$H$13:$AE$1273,24,FALSE))) ->  | E60: =+IF($A60="","",IF(OR(DATE($A60,Mes,1)<$E$26,DATE($A60,Mes,1)>$L$25),0,VLOOKUP(DATE($A60,Mes,1),Calculo!$H$13:$AE$1273,24,FALSE))) ->  | F60: =+IF($A60="","",IF(OR(DATE($A60,Mes,1)<$E$26,DATE($A60,Mes,1)>$L$25),0,VLOOKUP(DATE($A60,Mes,1),Calculo!$H$13:$AE$1273,24,FALSE))) ->  | G60: =+IF($A60="","",IF(OR(DATE($A60,Mes,1)<$E$26,DATE($A60,Mes,1)>$L$25),0,VLOOKUP(DATE($A60,Mes,1),Calculo!$H$13:$AE$1273,24,FALSE))) ->  | H60: =+IF($A60="","",IF(OR(DATE($A60,Mes,1)<$E$26,DATE($A60,Mes,1)>$L$25),0,VLOOKUP(DATE($A60,Mes,1),Calculo!$H$13:$AE$1273,24,FALSE))) ->  | I60: =+IF($A60="","",IF(OR(DATE($A60,Mes,1)<$E$26,DATE($A60,Mes,1)>$L$25),0,VLOOKUP(DATE($A60,Mes,1),Calculo!$H$13:$AE$1273,24,FALSE))) ->  | J60: =+IF($A60="","",IF(OR(DATE($A60,Mes,1)<$E$26,DATE($A60,Mes,1)>$L$25),0,VLOOKUP(DATE($A60,Mes,1),Calculo!$H$13:$AE$1273,24,FALSE))) ->  | K60: =+IF($A60="","",IF(OR(DATE($A60,Mes,1)<$E$26,DATE($A60,Mes,1)>$L$25),0,VLOOKUP(DATE($A60,Mes,1),Calculo!$H$13:$AE$1273,24,FALSE))) ->  | L60: =+IF($A60="","",IF(OR(DATE($A60,Mes,1)<$E$26,DATE($A60,Mes,1)>$L$25),0,VLOOKUP(DATE($A60,Mes,1),Calculo!$H$13:$AE$1273,24,FALSE))) ->  | M60: =+IF($A60="","",IF(OR(DATE($A60,Mes,1)<$E$26,DATE($A60,Mes,1)>$L$25),0,VLOOKUP(DATE($A60,Mes,1),Calculo!$H$13:$AE$1273,24,FALSE))) -> 
A61: =+IF(OR(A60="",A60=YEAR(Calculo!$F$19)),"",A60+1) ->  | B61: =+IF($A61="","",IF(OR(DATE($A61,Mes,1)<$E$26,DATE($A61,Mes,1)>$L$25),0,VLOOKUP(DATE($A61,Mes,1),Calculo!$H$13:$AE$1273,24,FALSE))) ->  | C61: =+IF($A61="","",IF(OR(DATE($A61,Mes,1)<$E$26,DATE($A61,Mes,1)>$L$25),0,VLOOKUP(DATE($A61,Mes,1),Calculo!$H$13:$AE$1273,24,FALSE))) ->  | D61: =+IF($A61="","",IF(OR(DATE($A61,Mes,1)<$E$26,DATE($A61,Mes,1)>$L$25),0,VLOOKUP(DATE($A61,Mes,1),Calculo!$H$13:$AE$1273,24,FALSE))) ->  | E61: =+IF($A61="","",IF(OR(DATE($A61,Mes,1)<$E$26,DATE($A61,Mes,1)>$L$25),0,VLOOKUP(DATE($A61,Mes,1),Calculo!$H$13:$AE$1273,24,FALSE))) ->  | F61: =+IF($A61="","",IF(OR(DATE($A61,Mes,1)<$E$26,DATE($A61,Mes,1)>$L$25),0,VLOOKUP(DATE($A61,Mes,1),Calculo!$H$13:$AE$1273,24,FALSE))) ->  | G61: =+IF($A61="","",IF(OR(DATE($A61,Mes,1)<$E$26,DATE($A61,Mes,1)>$L$25),0,VLOOKUP(DATE($A61,Mes,1),Calculo!$H$13:$AE$1273,24,FALSE))) ->  | H61: =+IF($A61="","",IF(OR(DATE($A61,Mes,1)<$E$26,DATE($A61,Mes,1)>$L$25),0,VLOOKUP(DATE($A61,Mes,1),Calculo!$H$13:$AE$1273,24,FALSE))) ->  | I61: =+IF($A61="","",IF(OR(DATE($A61,Mes,1)<$E$26,DATE($A61,Mes,1)>$L$25),0,VLOOKUP(DATE($A61,Mes,1),Calculo!$H$13:$AE$1273,24,FALSE))) ->  | J61: =+IF($A61="","",IF(OR(DATE($A61,Mes,1)<$E$26,DATE($A61,Mes,1)>$L$25),0,VLOOKUP(DATE($A61,Mes,1),Calculo!$H$13:$AE$1273,24,FALSE))) ->  | K61: =+IF($A61="","",IF(OR(DATE($A61,Mes,1)<$E$26,DATE($A61,Mes,1)>$L$25),0,VLOOKUP(DATE($A61,Mes,1),Calculo!$H$13:$AE$1273,24,FALSE))) ->  | L61: =+IF($A61="","",IF(OR(DATE($A61,Mes,1)<$E$26,DATE($A61,Mes,1)>$L$25),0,VLOOKUP(DATE($A61,Mes,1),Calculo!$H$13:$AE$1273,24,FALSE))) ->  | M61: =+IF($A61="","",IF(OR(DATE($A61,Mes,1)<$E$26,DATE($A61,Mes,1)>$L$25),0,VLOOKUP(DATE($A61,Mes,1),Calculo!$H$13:$AE$1273,24,FALSE))) -> 
A62: =+IF(OR(A61="",A61=YEAR(Calculo!$F$19)),"",A61+1) ->  | B62: =+IF($A62="","",IF(OR(DATE($A62,Mes,1)<$E$26,DATE($A62,Mes,1)>$L$25),0,VLOOKUP(DATE($A62,Mes,1),Calculo!$H$13:$AE$1273,24,FALSE))) ->  | C62: =+IF($A62="","",IF(OR(DATE($A62,Mes,1)<$E$26,DATE($A62,Mes,1)>$L$25),0,VLOOKUP(DATE($A62,Mes,1),Calculo!$H$13:$AE$1273,24,FALSE))) ->  | D62: =+IF($A62="","",IF(OR(DATE($A62,Mes,1)<$E$26,DATE($A62,Mes,1)>$L$25),0,VLOOKUP(DATE($A62,Mes,1),Calculo!$H$13:$AE$1273,24,FALSE))) ->  | E62: =+IF($A62="","",IF(OR(DATE($A62,Mes,1)<$E$26,DATE($A62,Mes,1)>$L$25),0,VLOOKUP(DATE($A62,Mes,1),Calculo!$H$13:$AE$1273,24,FALSE))) ->  | F62: =+IF($A62="","",IF(OR(DATE($A62,Mes,1)<$E$26,DATE($A62,Mes,1)>$L$25),0,VLOOKUP(DATE($A62,Mes,1),Calculo!$H$13:$AE$1273,24,FALSE))) ->  | G62: =+IF($A62="","",IF(OR(DATE($A62,Mes,1)<$E$26,DATE($A62,Mes,1)>$L$25),0,VLOOKUP(DATE($A62,Mes,1),Calculo!$H$13:$AE$1273,24,FALSE))) ->  | H62: =+IF($A62="","",IF(OR(DATE($A62,Mes,1)<$E$26,DATE($A62,Mes,1)>$L$25),0,VLOOKUP(DATE($A62,Mes,1),Calculo!$H$13:$AE$1273,24,FALSE))) ->  | I62: =+IF($A62="","",IF(OR(DATE($A62,Mes,1)<$E$26,DATE($A62,Mes,1)>$L$25),0,VLOOKUP(DATE($A62,Mes,1),Calculo!$H$13:$AE$1273,24,FALSE))) ->  | J62: =+IF($A62="","",IF(OR(DATE($A62,Mes,1)<$E$26,DATE($A62,Mes,1)>$L$25),0,VLOOKUP(DATE($A62,Mes,1),Calculo!$H$13:$AE$1273,24,FALSE))) ->  | K62: =+IF($A62="","",IF(OR(DATE($A62,Mes,1)<$E$26,DATE($A62,Mes,1)>$L$25),0,VLOOKUP(DATE($A62,Mes,1),Calculo!$H$13:$AE$1273,24,FALSE))) ->  | L62: =+IF($A62="","",IF(OR(DATE($A62,Mes,1)<$E$26,DATE($A62,Mes,1)>$L$25),0,VLOOKUP(DATE($A62,Mes,1),Calculo!$H$13:$AE$1273,24,FALSE))) ->  | M62: =+IF($A62="","",IF(OR(DATE($A62,Mes,1)<$E$26,DATE($A62,Mes,1)>$L$25),0,VLOOKUP(DATE($A62,Mes,1),Calculo!$H$13:$AE$1273,24,FALSE))) -> 
A63: =+IF(OR(A62="",A62=YEAR(Calculo!$F$19)),"",A62+1) ->  | B63: =+IF($A63="","",IF(OR(DATE($A63,Mes,1)<$E$26,DATE($A63,Mes,1)>$L$25),0,VLOOKUP(DATE($A63,Mes,1),Calculo!$H$13:$AE$1273,24,FALSE))) ->  | C63: =+IF($A63="","",IF(OR(DATE($A63,Mes,1)<$E$26,DATE($A63,Mes,1)>$L$25),0,VLOOKUP(DATE($A63,Mes,1),Calculo!$H$13:$AE$1273,24,FALSE))) ->  | D63: =+IF($A63="","",IF(OR(DATE($A63,Mes,1)<$E$26,DATE($A63,Mes,1)>$L$25),0,VLOOKUP(DATE($A63,Mes,1),Calculo!$H$13:$AE$1273,24,FALSE))) ->  | E63: =+IF($A63="","",IF(OR(DATE($A63,Mes,1)<$E$26,DATE($A63,Mes,1)>$L$25),0,VLOOKUP(DATE($A63,Mes,1),Calculo!$H$13:$AE$1273,24,FALSE))) ->  | F63: =+IF($A63="","",IF(OR(DATE($A63,Mes,1)<$E$26,DATE($A63,Mes,1)>$L$25),0,VLOOKUP(DATE($A63,Mes,1),Calculo!$H$13:$AE$1273,24,FALSE))) ->  | G63: =+IF($A63="","",IF(OR(DATE($A63,Mes,1)<$E$26,DATE($A63,Mes,1)>$L$25),0,VLOOKUP(DATE($A63,Mes,1),Calculo!$H$13:$AE$1273,24,FALSE))) ->  | H63: =+IF($A63="","",IF(OR(DATE($A63,Mes,1)<$E$26,DATE($A63,Mes,1)>$L$25),0,VLOOKUP(DATE($A63,Mes,1),Calculo!$H$13:$AE$1273,24,FALSE))) ->  | I63: =+IF($A63="","",IF(OR(DATE($A63,Mes,1)<$E$26,DATE($A63,Mes,1)>$L$25),0,VLOOKUP(DATE($A63,Mes,1),Calculo!$H$13:$AE$1273,24,FALSE))) ->  | J63: =+IF($A63="","",IF(OR(DATE($A63,Mes,1)<$E$26,DATE($A63,Mes,1)>$L$25),0,VLOOKUP(DATE($A63,Mes,1),Calculo!$H$13:$AE$1273,24,FALSE))) ->  | K63: =+IF($A63="","",IF(OR(DATE($A63,Mes,1)<$E$26,DATE($A63,Mes,1)>$L$25),0,VLOOKUP(DATE($A63,Mes,1),Calculo!$H$13:$AE$1273,24,FALSE))) ->  | L63: =+IF($A63="","",IF(OR(DATE($A63,Mes,1)<$E$26,DATE($A63,Mes,1)>$L$25),0,VLOOKUP(DATE($A63,Mes,1),Calculo!$H$13:$AE$1273,24,FALSE))) ->  | M63: =+IF($A63="","",IF(OR(DATE($A63,Mes,1)<$E$26,DATE($A63,Mes,1)>$L$25),0,VLOOKUP(DATE($A63,Mes,1),Calculo!$H$13:$AE$1273,24,FALSE))) -> 
A64: =+IF(OR(A63="",A63=YEAR(Calculo!$F$19)),"",A63+1) ->  | B64: =+IF($A64="","",IF(OR(DATE($A64,Mes,1)<$E$26,DATE($A64,Mes,1)>$L$25),0,VLOOKUP(DATE($A64,Mes,1),Calculo!$H$13:$AE$1273,24,FALSE))) ->  | C64: =+IF($A64="","",IF(OR(DATE($A64,Mes,1)<$E$26,DATE($A64,Mes,1)>$L$25),0,VLOOKUP(DATE($A64,Mes,1),Calculo!$H$13:$AE$1273,24,FALSE))) ->  | D64: =+IF($A64="","",IF(OR(DATE($A64,Mes,1)<$E$26,DATE($A64,Mes,1)>$L$25),0,VLOOKUP(DATE($A64,Mes,1),Calculo!$H$13:$AE$1273,24,FALSE))) ->  | E64: =+IF($A64="","",IF(OR(DATE($A64,Mes,1)<$E$26,DATE($A64,Mes,1)>$L$25),0,VLOOKUP(DATE($A64,Mes,1),Calculo!$H$13:$AE$1273,24,FALSE))) ->  | F64: =+IF($A64="","",IF(OR(DATE($A64,Mes,1)<$E$26,DATE($A64,Mes,1)>$L$25),0,VLOOKUP(DATE($A64,Mes,1),Calculo!$H$13:$AE$1273,24,FALSE))) ->  | G64: =+IF($A64="","",IF(OR(DATE($A64,Mes,1)<$E$26,DATE($A64,Mes,1)>$L$25),0,VLOOKUP(DATE($A64,Mes,1),Calculo!$H$13:$AE$1273,24,FALSE))) ->  | H64: =+IF($A64="","",IF(OR(DATE($A64,Mes,1)<$E$26,DATE($A64,Mes,1)>$L$25),0,VLOOKUP(DATE($A64,Mes,1),Calculo!$H$13:$AE$1273,24,FALSE))) ->  | I64: =+IF($A64="","",IF(OR(DATE($A64,Mes,1)<$E$26,DATE($A64,Mes,1)>$L$25),0,VLOOKUP(DATE($A64,Mes,1),Calculo!$H$13:$AE$1273,24,FALSE))) ->  | J64: =+IF($A64="","",IF(OR(DATE($A64,Mes,1)<$E$26,DATE($A64,Mes,1)>$L$25),0,VLOOKUP(DATE($A64,Mes,1),Calculo!$H$13:$AE$1273,24,FALSE))) ->  | K64: =+IF($A64="","",IF(OR(DATE($A64,Mes,1)<$E$26,DATE($A64,Mes,1)>$L$25),0,VLOOKUP(DATE($A64,Mes,1),Calculo!$H$13:$AE$1273,24,FALSE))) ->  | L64: =+IF($A64="","",IF(OR(DATE($A64,Mes,1)<$E$26,DATE($A64,Mes,1)>$L$25),0,VLOOKUP(DATE($A64,Mes,1),Calculo!$H$13:$AE$1273,24,FALSE))) ->  | M64: =+IF($A64="","",IF(OR(DATE($A64,Mes,1)<$E$26,DATE($A64,Mes,1)>$L$25),0,VLOOKUP(DATE($A64,Mes,1),Calculo!$H$13:$AE$1273,24,FALSE))) -> 
A65: =+IF(OR(A64="",A64=YEAR(Calculo!$F$19)),"",A64+1) ->  | B65: =+IF($A65="","",IF(OR(DATE($A65,Mes,1)<$E$26,DATE($A65,Mes,1)>$L$25),0,VLOOKUP(DATE($A65,Mes,1),Calculo!$H$13:$AE$1273,24,FALSE))) ->  | C65: =+IF($A65="","",IF(OR(DATE($A65,Mes,1)<$E$26,DATE($A65,Mes,1)>$L$25),0,VLOOKUP(DATE($A65,Mes,1),Calculo!$H$13:$AE$1273,24,FALSE))) ->  | D65: =+IF($A65="","",IF(OR(DATE($A65,Mes,1)<$E$26,DATE($A65,Mes,1)>$L$25),0,VLOOKUP(DATE($A65,Mes,1),Calculo!$H$13:$AE$1273,24,FALSE))) ->  | E65: =+IF($A65="","",IF(OR(DATE($A65,Mes,1)<$E$26,DATE($A65,Mes,1)>$L$25),0,VLOOKUP(DATE($A65,Mes,1),Calculo!$H$13:$AE$1273,24,FALSE))) ->  | F65: =+IF($A65="","",IF(OR(DATE($A65,Mes,1)<$E$26,DATE($A65,Mes,1)>$L$25),0,VLOOKUP(DATE($A65,Mes,1),Calculo!$H$13:$AE$1273,24,FALSE))) ->  | G65: =+IF($A65="","",IF(OR(DATE($A65,Mes,1)<$E$26,DATE($A65,Mes,1)>$L$25),0,VLOOKUP(DATE($A65,Mes,1),Calculo!$H$13:$AE$1273,24,FALSE))) ->  | H65: =+IF($A65="","",IF(OR(DATE($A65,Mes,1)<$E$26,DATE($A65,Mes,1)>$L$25),0,VLOOKUP(DATE($A65,Mes,1),Calculo!$H$13:$AE$1273,24,FALSE))) ->  | I65: =+IF($A65="","",IF(OR(DATE($A65,Mes,1)<$E$26,DATE($A65,Mes,1)>$L$25),0,VLOOKUP(DATE($A65,Mes,1),Calculo!$H$13:$AE$1273,24,FALSE))) ->  | J65: =+IF($A65="","",IF(OR(DATE($A65,Mes,1)<$E$26,DATE($A65,Mes,1)>$L$25),0,VLOOKUP(DATE($A65,Mes,1),Calculo!$H$13:$AE$1273,24,FALSE))) ->  | K65: =+IF($A65="","",IF(OR(DATE($A65,Mes,1)<$E$26,DATE($A65,Mes,1)>$L$25),0,VLOOKUP(DATE($A65,Mes,1),Calculo!$H$13:$AE$1273,24,FALSE))) ->  | L65: =+IF($A65="","",IF(OR(DATE($A65,Mes,1)<$E$26,DATE($A65,Mes,1)>$L$25),0,VLOOKUP(DATE($A65,Mes,1),Calculo!$H$13:$AE$1273,24,FALSE))) ->  | M65: =+IF($A65="","",IF(OR(DATE($A65,Mes,1)<$E$26,DATE($A65,Mes,1)>$L$25),0,VLOOKUP(DATE($A65,Mes,1),Calculo!$H$13:$AE$1273,24,FALSE))) -> 
A66: =+IF(OR(A65="",A65=YEAR(Calculo!$F$19)),"",A65+1) ->  | B66: =+IF($A66="","",IF(OR(DATE($A66,Mes,1)<$E$26,DATE($A66,Mes,1)>$L$25),0,VLOOKUP(DATE($A66,Mes,1),Calculo!$H$13:$AE$1273,24,FALSE))) ->  | C66: =+IF($A66="","",IF(OR(DATE($A66,Mes,1)<$E$26,DATE($A66,Mes,1)>$L$25),0,VLOOKUP(DATE($A66,Mes,1),Calculo!$H$13:$AE$1273,24,FALSE))) ->  | D66: =+IF($A66="","",IF(OR(DATE($A66,Mes,1)<$E$26,DATE($A66,Mes,1)>$L$25),0,VLOOKUP(DATE($A66,Mes,1),Calculo!$H$13:$AE$1273,24,FALSE))) ->  | E66: =+IF($A66="","",IF(OR(DATE($A66,Mes,1)<$E$26,DATE($A66,Mes,1)>$L$25),0,VLOOKUP(DATE($A66,Mes,1),Calculo!$H$13:$AE$1273,24,FALSE))) ->  | F66: =+IF($A66="","",IF(OR(DATE($A66,Mes,1)<$E$26,DATE($A66,Mes,1)>$L$25),0,VLOOKUP(DATE($A66,Mes,1),Calculo!$H$13:$AE$1273,24,FALSE))) ->  | G66: =+IF($A66="","",IF(OR(DATE($A66,Mes,1)<$E$26,DATE($A66,Mes,1)>$L$25),0,VLOOKUP(DATE($A66,Mes,1),Calculo!$H$13:$AE$1273,24,FALSE))) ->  | H66: =+IF($A66="","",IF(OR(DATE($A66,Mes,1)<$E$26,DATE($A66,Mes,1)>$L$25),0,VLOOKUP(DATE($A66,Mes,1),Calculo!$H$13:$AE$1273,24,FALSE))) ->  | I66: =+IF($A66="","",IF(OR(DATE($A66,Mes,1)<$E$26,DATE($A66,Mes,1)>$L$25),0,VLOOKUP(DATE($A66,Mes,1),Calculo!$H$13:$AE$1273,24,FALSE))) ->  | J66: =+IF($A66="","",IF(OR(DATE($A66,Mes,1)<$E$26,DATE($A66,Mes,1)>$L$25),0,VLOOKUP(DATE($A66,Mes,1),Calculo!$H$13:$AE$1273,24,FALSE))) ->  | K66: =+IF($A66="","",IF(OR(DATE($A66,Mes,1)<$E$26,DATE($A66,Mes,1)>$L$25),0,VLOOKUP(DATE($A66,Mes,1),Calculo!$H$13:$AE$1273,24,FALSE))) ->  | L66: =+IF($A66="","",IF(OR(DATE($A66,Mes,1)<$E$26,DATE($A66,Mes,1)>$L$25),0,VLOOKUP(DATE($A66,Mes,1),Calculo!$H$13:$AE$1273,24,FALSE))) ->  | M66: =+IF($A66="","",IF(OR(DATE($A66,Mes,1)<$E$26,DATE($A66,Mes,1)>$L$25),0,VLOOKUP(DATE($A66,Mes,1),Calculo!$H$13:$AE$1273,24,FALSE))) -> 
A67: =+IF(OR(A66="",A66=YEAR(Calculo!$F$19)),"",A66+1) ->  | B67: =+IF($A67="","",IF(OR(DATE($A67,Mes,1)<$E$26,DATE($A67,Mes,1)>$L$25),0,VLOOKUP(DATE($A67,Mes,1),Calculo!$H$13:$AE$1273,24,FALSE))) ->  | C67: =+IF($A67="","",IF(OR(DATE($A67,Mes,1)<$E$26,DATE($A67,Mes,1)>$L$25),0,VLOOKUP(DATE($A67,Mes,1),Calculo!$H$13:$AE$1273,24,FALSE))) ->  | D67: =+IF($A67="","",IF(OR(DATE($A67,Mes,1)<$E$26,DATE($A67,Mes,1)>$L$25),0,VLOOKUP(DATE($A67,Mes,1),Calculo!$H$13:$AE$1273,24,FALSE))) ->  | E67: =+IF($A67="","",IF(OR(DATE($A67,Mes,1)<$E$26,DATE($A67,Mes,1)>$L$25),0,VLOOKUP(DATE($A67,Mes,1),Calculo!$H$13:$AE$1273,24,FALSE))) ->  | F67: =+IF($A67="","",IF(OR(DATE($A67,Mes,1)<$E$26,DATE($A67,Mes,1)>$L$25),0,VLOOKUP(DATE($A67,Mes,1),Calculo!$H$13:$AE$1273,24,FALSE))) ->  | G67: =+IF($A67="","",IF(OR(DATE($A67,Mes,1)<$E$26,DATE($A67,Mes,1)>$L$25),0,VLOOKUP(DATE($A67,Mes,1),Calculo!$H$13:$AE$1273,24,FALSE))) ->  | H67: =+IF($A67="","",IF(OR(DATE($A67,Mes,1)<$E$26,DATE($A67,Mes,1)>$L$25),0,VLOOKUP(DATE($A67,Mes,1),Calculo!$H$13:$AE$1273,24,FALSE))) ->  | I67: =+IF($A67="","",IF(OR(DATE($A67,Mes,1)<$E$26,DATE($A67,Mes,1)>$L$25),0,VLOOKUP(DATE($A67,Mes,1),Calculo!$H$13:$AE$1273,24,FALSE))) ->  | J67: =+IF($A67="","",IF(OR(DATE($A67,Mes,1)<$E$26,DATE($A67,Mes,1)>$L$25),0,VLOOKUP(DATE($A67,Mes,1),Calculo!$H$13:$AE$1273,24,FALSE))) ->  | K67: =+IF($A67="","",IF(OR(DATE($A67,Mes,1)<$E$26,DATE($A67,Mes,1)>$L$25),0,VLOOKUP(DATE($A67,Mes,1),Calculo!$H$13:$AE$1273,24,FALSE))) ->  | L67: =+IF($A67="","",IF(OR(DATE($A67,Mes,1)<$E$26,DATE($A67,Mes,1)>$L$25),0,VLOOKUP(DATE($A67,Mes,1),Calculo!$H$13:$AE$1273,24,FALSE))) ->  | M67: =+IF($A67="","",IF(OR(DATE($A67,Mes,1)<$E$26,DATE($A67,Mes,1)>$L$25),0,VLOOKUP(DATE($A67,Mes,1),Calculo!$H$13:$AE$1273,24,FALSE))) -> 
A68: =+IF(OR(A67="",A67=YEAR(Calculo!$F$19)),"",A67+1) ->  | B68: =+IF($A68="","",IF(OR(DATE($A68,Mes,1)<$E$26,DATE($A68,Mes,1)>$L$25),0,VLOOKUP(DATE($A68,Mes,1),Calculo!$H$13:$AE$1273,24,FALSE))) ->  | C68: =+IF($A68="","",IF(OR(DATE($A68,Mes,1)<$E$26,DATE($A68,Mes,1)>$L$25),0,VLOOKUP(DATE($A68,Mes,1),Calculo!$H$13:$AE$1273,24,FALSE))) ->  | D68: =+IF($A68="","",IF(OR(DATE($A68,Mes,1)<$E$26,DATE($A68,Mes,1)>$L$25),0,VLOOKUP(DATE($A68,Mes,1),Calculo!$H$13:$AE$1273,24,FALSE))) ->  | E68: =+IF($A68="","",IF(OR(DATE($A68,Mes,1)<$E$26,DATE($A68,Mes,1)>$L$25),0,VLOOKUP(DATE($A68,Mes,1),Calculo!$H$13:$AE$1273,24,FALSE))) ->  | F68: =+IF($A68="","",IF(OR(DATE($A68,Mes,1)<$E$26,DATE($A68,Mes,1)>$L$25),0,VLOOKUP(DATE($A68,Mes,1),Calculo!$H$13:$AE$1273,24,FALSE))) ->  | G68: =+IF($A68="","",IF(OR(DATE($A68,Mes,1)<$E$26,DATE($A68,Mes,1)>$L$25),0,VLOOKUP(DATE($A68,Mes,1),Calculo!$H$13:$AE$1273,24,FALSE))) ->  | H68: =+IF($A68="","",IF(OR(DATE($A68,Mes,1)<$E$26,DATE($A68,Mes,1)>$L$25),0,VLOOKUP(DATE($A68,Mes,1),Calculo!$H$13:$AE$1273,24,FALSE))) ->  | I68: =+IF($A68="","",IF(OR(DATE($A68,Mes,1)<$E$26,DATE($A68,Mes,1)>$L$25),0,VLOOKUP(DATE($A68,Mes,1),Calculo!$H$13:$AE$1273,24,FALSE))) ->  | J68: =+IF($A68="","",IF(OR(DATE($A68,Mes,1)<$E$26,DATE($A68,Mes,1)>$L$25),0,VLOOKUP(DATE($A68,Mes,1),Calculo!$H$13:$AE$1273,24,FALSE))) ->  | K68: =+IF($A68="","",IF(OR(DATE($A68,Mes,1)<$E$26,DATE($A68,Mes,1)>$L$25),0,VLOOKUP(DATE($A68,Mes,1),Calculo!$H$13:$AE$1273,24,FALSE))) ->  | L68: =+IF($A68="","",IF(OR(DATE($A68,Mes,1)<$E$26,DATE($A68,Mes,1)>$L$25),0,VLOOKUP(DATE($A68,Mes,1),Calculo!$H$13:$AE$1273,24,FALSE))) ->  | M68: =+IF($A68="","",IF(OR(DATE($A68,Mes,1)<$E$26,DATE($A68,Mes,1)>$L$25),0,VLOOKUP(DATE($A68,Mes,1),Calculo!$H$13:$AE$1273,24,FALSE))) -> 
A69: =+IF(OR(A68="",A68=YEAR(Calculo!$F$19)),"",A68+1) ->  | B69: =+IF($A69="","",IF(OR(DATE($A69,Mes,1)<$E$26,DATE($A69,Mes,1)>$L$25),0,VLOOKUP(DATE($A69,Mes,1),Calculo!$H$13:$AE$1273,24,FALSE))) ->  | C69: =+IF($A69="","",IF(OR(DATE($A69,Mes,1)<$E$26,DATE($A69,Mes,1)>$L$25),0,VLOOKUP(DATE($A69,Mes,1),Calculo!$H$13:$AE$1273,24,FALSE))) ->  | D69: =+IF($A69="","",IF(OR(DATE($A69,Mes,1)<$E$26,DATE($A69,Mes,1)>$L$25),0,VLOOKUP(DATE($A69,Mes,1),Calculo!$H$13:$AE$1273,24,FALSE))) ->  | E69: =+IF($A69="","",IF(OR(DATE($A69,Mes,1)<$E$26,DATE($A69,Mes,1)>$L$25),0,VLOOKUP(DATE($A69,Mes,1),Calculo!$H$13:$AE$1273,24,FALSE))) ->  | F69: =+IF($A69="","",IF(OR(DATE($A69,Mes,1)<$E$26,DATE($A69,Mes,1)>$L$25),0,VLOOKUP(DATE($A69,Mes,1),Calculo!$H$13:$AE$1273,24,FALSE))) ->  | G69: =+IF($A69="","",IF(OR(DATE($A69,Mes,1)<$E$26,DATE($A69,Mes,1)>$L$25),0,VLOOKUP(DATE($A69,Mes,1),Calculo!$H$13:$AE$1273,24,FALSE))) ->  | H69: =+IF($A69="","",IF(OR(DATE($A69,Mes,1)<$E$26,DATE($A69,Mes,1)>$L$25),0,VLOOKUP(DATE($A69,Mes,1),Calculo!$H$13:$AE$1273,24,FALSE))) ->  | I69: =+IF($A69="","",IF(OR(DATE($A69,Mes,1)<$E$26,DATE($A69,Mes,1)>$L$25),0,VLOOKUP(DATE($A69,Mes,1),Calculo!$H$13:$AE$1273,24,FALSE))) ->  | J69: =+IF($A69="","",IF(OR(DATE($A69,Mes,1)<$E$26,DATE($A69,Mes,1)>$L$25),0,VLOOKUP(DATE($A69,Mes,1),Calculo!$H$13:$AE$1273,24,FALSE))) ->  | K69: =+IF($A69="","",IF(OR(DATE($A69,Mes,1)<$E$26,DATE($A69,Mes,1)>$L$25),0,VLOOKUP(DATE($A69,Mes,1),Calculo!$H$13:$AE$1273,24,FALSE))) ->  | L69: =+IF($A69="","",IF(OR(DATE($A69,Mes,1)<$E$26,DATE($A69,Mes,1)>$L$25),0,VLOOKUP(DATE($A69,Mes,1),Calculo!$H$13:$AE$1273,24,FALSE))) ->  | M69: =+IF($A69="","",IF(OR(DATE($A69,Mes,1)<$E$26,DATE($A69,Mes,1)>$L$25),0,VLOOKUP(DATE($A69,Mes,1),Calculo!$H$13:$AE$1273,24,FALSE))) -> 
A70: =+IF(OR(A69="",A69=YEAR(Calculo!$F$19)),"",A69+1) ->  | B70: =+IF($A70="","",IF(OR(DATE($A70,Mes,1)<$E$26,DATE($A70,Mes,1)>$L$25),0,VLOOKUP(DATE($A70,Mes,1),Calculo!$H$13:$AE$1273,24,FALSE))) ->  | C70: =+IF($A70="","",IF(OR(DATE($A70,Mes,1)<$E$26,DATE($A70,Mes,1)>$L$25),0,VLOOKUP(DATE($A70,Mes,1),Calculo!$H$13:$AE$1273,24,FALSE))) ->  | D70: =+IF($A70="","",IF(OR(DATE($A70,Mes,1)<$E$26,DATE($A70,Mes,1)>$L$25),0,VLOOKUP(DATE($A70,Mes,1),Calculo!$H$13:$AE$1273,24,FALSE))) ->  | E70: =+IF($A70="","",IF(OR(DATE($A70,Mes,1)<$E$26,DATE($A70,Mes,1)>$L$25),0,VLOOKUP(DATE($A70,Mes,1),Calculo!$H$13:$AE$1273,24,FALSE))) ->  | F70: =+IF($A70="","",IF(OR(DATE($A70,Mes,1)<$E$26,DATE($A70,Mes,1)>$L$25),0,VLOOKUP(DATE($A70,Mes,1),Calculo!$H$13:$AE$1273,24,FALSE))) ->  | G70: =+IF($A70="","",IF(OR(DATE($A70,Mes,1)<$E$26,DATE($A70,Mes,1)>$L$25),0,VLOOKUP(DATE($A70,Mes,1),Calculo!$H$13:$AE$1273,24,FALSE))) ->  | H70: =+IF($A70="","",IF(OR(DATE($A70,Mes,1)<$E$26,DATE($A70,Mes,1)>$L$25),0,VLOOKUP(DATE($A70,Mes,1),Calculo!$H$13:$AE$1273,24,FALSE))) ->  | I70: =+IF($A70="","",IF(OR(DATE($A70,Mes,1)<$E$26,DATE($A70,Mes,1)>$L$25),0,VLOOKUP(DATE($A70,Mes,1),Calculo!$H$13:$AE$1273,24,FALSE))) ->  | J70: =+IF($A70="","",IF(OR(DATE($A70,Mes,1)<$E$26,DATE($A70,Mes,1)>$L$25),0,VLOOKUP(DATE($A70,Mes,1),Calculo!$H$13:$AE$1273,24,FALSE))) ->  | K70: =+IF($A70="","",IF(OR(DATE($A70,Mes,1)<$E$26,DATE($A70,Mes,1)>$L$25),0,VLOOKUP(DATE($A70,Mes,1),Calculo!$H$13:$AE$1273,24,FALSE))) ->  | L70: =+IF($A70="","",IF(OR(DATE($A70,Mes,1)<$E$26,DATE($A70,Mes,1)>$L$25),0,VLOOKUP(DATE($A70,Mes,1),Calculo!$H$13:$AE$1273,24,FALSE))) ->  | M70: =+IF($A70="","",IF(OR(DATE($A70,Mes,1)<$E$26,DATE($A70,Mes,1)>$L$25),0,VLOOKUP(DATE($A70,Mes,1),Calculo!$H$13:$AE$1273,24,FALSE))) -> 
A71: =+IF(OR(A70="",A70=YEAR(Calculo!$F$19)),"",A70+1) ->  | B71: =+IF($A71="","",IF(OR(DATE($A71,Mes,1)<$E$26,DATE($A71,Mes,1)>$L$25),0,VLOOKUP(DATE($A71,Mes,1),Calculo!$H$13:$AE$1273,24,FALSE))) ->  | C71: =+IF($A71="","",IF(OR(DATE($A71,Mes,1)<$E$26,DATE($A71,Mes,1)>$L$25),0,VLOOKUP(DATE($A71,Mes,1),Calculo!$H$13:$AE$1273,24,FALSE))) ->  | D71: =+IF($A71="","",IF(OR(DATE($A71,Mes,1)<$E$26,DATE($A71,Mes,1)>$L$25),0,VLOOKUP(DATE($A71,Mes,1),Calculo!$H$13:$AE$1273,24,FALSE))) ->  | E71: =+IF($A71="","",IF(OR(DATE($A71,Mes,1)<$E$26,DATE($A71,Mes,1)>$L$25),0,VLOOKUP(DATE($A71,Mes,1),Calculo!$H$13:$AE$1273,24,FALSE))) ->  | F71: =+IF($A71="","",IF(OR(DATE($A71,Mes,1)<$E$26,DATE($A71,Mes,1)>$L$25),0,VLOOKUP(DATE($A71,Mes,1),Calculo!$H$13:$AE$1273,24,FALSE))) ->  | G71: =+IF($A71="","",IF(OR(DATE($A71,Mes,1)<$E$26,DATE($A71,Mes,1)>$L$25),0,VLOOKUP(DATE($A71,Mes,1),Calculo!$H$13:$AE$1273,24,FALSE))) ->  | H71: =+IF($A71="","",IF(OR(DATE($A71,Mes,1)<$E$26,DATE($A71,Mes,1)>$L$25),0,VLOOKUP(DATE($A71,Mes,1),Calculo!$H$13:$AE$1273,24,FALSE))) ->  | I71: =+IF($A71="","",IF(OR(DATE($A71,Mes,1)<$E$26,DATE($A71,Mes,1)>$L$25),0,VLOOKUP(DATE($A71,Mes,1),Calculo!$H$13:$AE$1273,24,FALSE))) ->  | J71: =+IF($A71="","",IF(OR(DATE($A71,Mes,1)<$E$26,DATE($A71,Mes,1)>$L$25),0,VLOOKUP(DATE($A71,Mes,1),Calculo!$H$13:$AE$1273,24,FALSE))) ->  | K71: =+IF($A71="","",IF(OR(DATE($A71,Mes,1)<$E$26,DATE($A71,Mes,1)>$L$25),0,VLOOKUP(DATE($A71,Mes,1),Calculo!$H$13:$AE$1273,24,FALSE))) ->  | L71: =+IF($A71="","",IF(OR(DATE($A71,Mes,1)<$E$26,DATE($A71,Mes,1)>$L$25),0,VLOOKUP(DATE($A71,Mes,1),Calculo!$H$13:$AE$1273,24,FALSE))) ->  | M71: =+IF($A71="","",IF(OR(DATE($A71,Mes,1)<$E$26,DATE($A71,Mes,1)>$L$25),0,VLOOKUP(DATE($A71,Mes,1),Calculo!$H$13:$AE$1273,24,FALSE))) -> 
A72: =+IF(OR(A71="",A71=YEAR(Calculo!$F$19)),"",A71+1) ->  | B72: =+IF($A72="","",IF(OR(DATE($A72,Mes,1)<$E$26,DATE($A72,Mes,1)>$L$25),0,VLOOKUP(DATE($A72,Mes,1),Calculo!$H$13:$AE$1273,24,FALSE))) ->  | C72: =+IF($A72="","",IF(OR(DATE($A72,Mes,1)<$E$26,DATE($A72,Mes,1)>$L$25),0,VLOOKUP(DATE($A72,Mes,1),Calculo!$H$13:$AE$1273,24,FALSE))) ->  | D72: =+IF($A72="","",IF(OR(DATE($A72,Mes,1)<$E$26,DATE($A72,Mes,1)>$L$25),0,VLOOKUP(DATE($A72,Mes,1),Calculo!$H$13:$AE$1273,24,FALSE))) ->  | E72: =+IF($A72="","",IF(OR(DATE($A72,Mes,1)<$E$26,DATE($A72,Mes,1)>$L$25),0,VLOOKUP(DATE($A72,Mes,1),Calculo!$H$13:$AE$1273,24,FALSE))) ->  | F72: =+IF($A72="","",IF(OR(DATE($A72,Mes,1)<$E$26,DATE($A72,Mes,1)>$L$25),0,VLOOKUP(DATE($A72,Mes,1),Calculo!$H$13:$AE$1273,24,FALSE))) ->  | G72: =+IF($A72="","",IF(OR(DATE($A72,Mes,1)<$E$26,DATE($A72,Mes,1)>$L$25),0,VLOOKUP(DATE($A72,Mes,1),Calculo!$H$13:$AE$1273,24,FALSE))) ->  | H72: =+IF($A72="","",IF(OR(DATE($A72,Mes,1)<$E$26,DATE($A72,Mes,1)>$L$25),0,VLOOKUP(DATE($A72,Mes,1),Calculo!$H$13:$AE$1273,24,FALSE))) ->  | I72: =+IF($A72="","",IF(OR(DATE($A72,Mes,1)<$E$26,DATE($A72,Mes,1)>$L$25),0,VLOOKUP(DATE($A72,Mes,1),Calculo!$H$13:$AE$1273,24,FALSE))) ->  | J72: =+IF($A72="","",IF(OR(DATE($A72,Mes,1)<$E$26,DATE($A72,Mes,1)>$L$25),0,VLOOKUP(DATE($A72,Mes,1),Calculo!$H$13:$AE$1273,24,FALSE))) ->  | K72: =+IF($A72="","",IF(OR(DATE($A72,Mes,1)<$E$26,DATE($A72,Mes,1)>$L$25),0,VLOOKUP(DATE($A72,Mes,1),Calculo!$H$13:$AE$1273,24,FALSE))) ->  | L72: =+IF($A72="","",IF(OR(DATE($A72,Mes,1)<$E$26,DATE($A72,Mes,1)>$L$25),0,VLOOKUP(DATE($A72,Mes,1),Calculo!$H$13:$AE$1273,24,FALSE))) ->  | M72: =+IF($A72="","",IF(OR(DATE($A72,Mes,1)<$E$26,DATE($A72,Mes,1)>$L$25),0,VLOOKUP(DATE($A72,Mes,1),Calculo!$H$13:$AE$1273,24,FALSE))) -> 
A73: =+IF(OR(A72="",A72=YEAR(Calculo!$F$19)),"",A72+1) ->  | B73: =+IF($A73="","",IF(OR(DATE($A73,Mes,1)<$E$26,DATE($A73,Mes,1)>$L$25),0,VLOOKUP(DATE($A73,Mes,1),Calculo!$H$13:$AE$1273,24,FALSE))) ->  | C73: =+IF($A73="","",IF(OR(DATE($A73,Mes,1)<$E$26,DATE($A73,Mes,1)>$L$25),0,VLOOKUP(DATE($A73,Mes,1),Calculo!$H$13:$AE$1273,24,FALSE))) ->  | D73: =+IF($A73="","",IF(OR(DATE($A73,Mes,1)<$E$26,DATE($A73,Mes,1)>$L$25),0,VLOOKUP(DATE($A73,Mes,1),Calculo!$H$13:$AE$1273,24,FALSE))) ->  | E73: =+IF($A73="","",IF(OR(DATE($A73,Mes,1)<$E$26,DATE($A73,Mes,1)>$L$25),0,VLOOKUP(DATE($A73,Mes,1),Calculo!$H$13:$AE$1273,24,FALSE))) ->  | F73: =+IF($A73="","",IF(OR(DATE($A73,Mes,1)<$E$26,DATE($A73,Mes,1)>$L$25),0,VLOOKUP(DATE($A73,Mes,1),Calculo!$H$13:$AE$1273,24,FALSE))) ->  | G73: =+IF($A73="","",IF(OR(DATE($A73,Mes,1)<$E$26,DATE($A73,Mes,1)>$L$25),0,VLOOKUP(DATE($A73,Mes,1),Calculo!$H$13:$AE$1273,24,FALSE))) ->  | H73: =+IF($A73="","",IF(OR(DATE($A73,Mes,1)<$E$26,DATE($A73,Mes,1)>$L$25),0,VLOOKUP(DATE($A73,Mes,1),Calculo!$H$13:$AE$1273,24,FALSE))) ->  | I73: =+IF($A73="","",IF(OR(DATE($A73,Mes,1)<$E$26,DATE($A73,Mes,1)>$L$25),0,VLOOKUP(DATE($A73,Mes,1),Calculo!$H$13:$AE$1273,24,FALSE))) ->  | J73: =+IF($A73="","",IF(OR(DATE($A73,Mes,1)<$E$26,DATE($A73,Mes,1)>$L$25),0,VLOOKUP(DATE($A73,Mes,1),Calculo!$H$13:$AE$1273,24,FALSE))) ->  | K73: =+IF($A73="","",IF(OR(DATE($A73,Mes,1)<$E$26,DATE($A73,Mes,1)>$L$25),0,VLOOKUP(DATE($A73,Mes,1),Calculo!$H$13:$AE$1273,24,FALSE))) ->  | L73: =+IF($A73="","",IF(OR(DATE($A73,Mes,1)<$E$26,DATE($A73,Mes,1)>$L$25),0,VLOOKUP(DATE($A73,Mes,1),Calculo!$H$13:$AE$1273,24,FALSE))) ->  | M73: =+IF($A73="","",IF(OR(DATE($A73,Mes,1)<$E$26,DATE($A73,Mes,1)>$L$25),0,VLOOKUP(DATE($A73,Mes,1),Calculo!$H$13:$AE$1273,24,FALSE))) -> 
A74: =+IF(OR(A73="",A73=YEAR(Calculo!$F$19)),"",A73+1) ->  | B74: =+IF($A74="","",IF(OR(DATE($A74,Mes,1)<$E$26,DATE($A74,Mes,1)>$L$25),0,VLOOKUP(DATE($A74,Mes,1),Calculo!$H$13:$AE$1273,24,FALSE))) ->  | C74: =+IF($A74="","",IF(OR(DATE($A74,Mes,1)<$E$26,DATE($A74,Mes,1)>$L$25),0,VLOOKUP(DATE($A74,Mes,1),Calculo!$H$13:$AE$1273,24,FALSE))) ->  | D74: =+IF($A74="","",IF(OR(DATE($A74,Mes,1)<$E$26,DATE($A74,Mes,1)>$L$25),0,VLOOKUP(DATE($A74,Mes,1),Calculo!$H$13:$AE$1273,24,FALSE))) ->  | E74: =+IF($A74="","",IF(OR(DATE($A74,Mes,1)<$E$26,DATE($A74,Mes,1)>$L$25),0,VLOOKUP(DATE($A74,Mes,1),Calculo!$H$13:$AE$1273,24,FALSE))) ->  | F74: =+IF($A74="","",IF(OR(DATE($A74,Mes,1)<$E$26,DATE($A74,Mes,1)>$L$25),0,VLOOKUP(DATE($A74,Mes,1),Calculo!$H$13:$AE$1273,24,FALSE))) ->  | G74: =+IF($A74="","",IF(OR(DATE($A74,Mes,1)<$E$26,DATE($A74,Mes,1)>$L$25),0,VLOOKUP(DATE($A74,Mes,1),Calculo!$H$13:$AE$1273,24,FALSE))) ->  | H74: =+IF($A74="","",IF(OR(DATE($A74,Mes,1)<$E$26,DATE($A74,Mes,1)>$L$25),0,VLOOKUP(DATE($A74,Mes,1),Calculo!$H$13:$AE$1273,24,FALSE))) ->  | I74: =+IF($A74="","",IF(OR(DATE($A74,Mes,1)<$E$26,DATE($A74,Mes,1)>$L$25),0,VLOOKUP(DATE($A74,Mes,1),Calculo!$H$13:$AE$1273,24,FALSE))) ->  | J74: =+IF($A74="","",IF(OR(DATE($A74,Mes,1)<$E$26,DATE($A74,Mes,1)>$L$25),0,VLOOKUP(DATE($A74,Mes,1),Calculo!$H$13:$AE$1273,24,FALSE))) ->  | K74: =+IF($A74="","",IF(OR(DATE($A74,Mes,1)<$E$26,DATE($A74,Mes,1)>$L$25),0,VLOOKUP(DATE($A74,Mes,1),Calculo!$H$13:$AE$1273,24,FALSE))) ->  | L74: =+IF($A74="","",IF(OR(DATE($A74,Mes,1)<$E$26,DATE($A74,Mes,1)>$L$25),0,VLOOKUP(DATE($A74,Mes,1),Calculo!$H$13:$AE$1273,24,FALSE))) ->  | M74: =+IF($A74="","",IF(OR(DATE($A74,Mes,1)<$E$26,DATE($A74,Mes,1)>$L$25),0,VLOOKUP(DATE($A74,Mes,1),Calculo!$H$13:$AE$1273,24,FALSE))) -> 
A75: =+IF(OR(A74="",A74=YEAR(Calculo!$F$19)),"",A74+1) ->  | B75: =+IF($A75="","",IF(OR(DATE($A75,Mes,1)<$E$26,DATE($A75,Mes,1)>$L$25),0,VLOOKUP(DATE($A75,Mes,1),Calculo!$H$13:$AE$1273,24,FALSE))) ->  | C75: =+IF($A75="","",IF(OR(DATE($A75,Mes,1)<$E$26,DATE($A75,Mes,1)>$L$25),0,VLOOKUP(DATE($A75,Mes,1),Calculo!$H$13:$AE$1273,24,FALSE))) ->  | D75: =+IF($A75="","",IF(OR(DATE($A75,Mes,1)<$E$26,DATE($A75,Mes,1)>$L$25),0,VLOOKUP(DATE($A75,Mes,1),Calculo!$H$13:$AE$1273,24,FALSE))) ->  | E75: =+IF($A75="","",IF(OR(DATE($A75,Mes,1)<$E$26,DATE($A75,Mes,1)>$L$25),0,VLOOKUP(DATE($A75,Mes,1),Calculo!$H$13:$AE$1273,24,FALSE))) ->  | F75: =+IF($A75="","",IF(OR(DATE($A75,Mes,1)<$E$26,DATE($A75,Mes,1)>$L$25),0,VLOOKUP(DATE($A75,Mes,1),Calculo!$H$13:$AE$1273,24,FALSE))) ->  | G75: =+IF($A75="","",IF(OR(DATE($A75,Mes,1)<$E$26,DATE($A75,Mes,1)>$L$25),0,VLOOKUP(DATE($A75,Mes,1),Calculo!$H$13:$AE$1273,24,FALSE))) ->  | H75: =+IF($A75="","",IF(OR(DATE($A75,Mes,1)<$E$26,DATE($A75,Mes,1)>$L$25),0,VLOOKUP(DATE($A75,Mes,1),Calculo!$H$13:$AE$1273,24,FALSE))) ->  | I75: =+IF($A75="","",IF(OR(DATE($A75,Mes,1)<$E$26,DATE($A75,Mes,1)>$L$25),0,VLOOKUP(DATE($A75,Mes,1),Calculo!$H$13:$AE$1273,24,FALSE))) ->  | J75: =+IF($A75="","",IF(OR(DATE($A75,Mes,1)<$E$26,DATE($A75,Mes,1)>$L$25),0,VLOOKUP(DATE($A75,Mes,1),Calculo!$H$13:$AE$1273,24,FALSE))) ->  | K75: =+IF($A75="","",IF(OR(DATE($A75,Mes,1)<$E$26,DATE($A75,Mes,1)>$L$25),0,VLOOKUP(DATE($A75,Mes,1),Calculo!$H$13:$AE$1273,24,FALSE))) ->  | L75: =+IF($A75="","",IF(OR(DATE($A75,Mes,1)<$E$26,DATE($A75,Mes,1)>$L$25),0,VLOOKUP(DATE($A75,Mes,1),Calculo!$H$13:$AE$1273,24,FALSE))) ->  | M75: =+IF($A75="","",IF(OR(DATE($A75,Mes,1)<$E$26,DATE($A75,Mes,1)>$L$25),0,VLOOKUP(DATE($A75,Mes,1),Calculo!$H$13:$AE$1273,24,FALSE))) -> 
A76: =+IF(OR(A75="",A75=YEAR(Calculo!$F$19)),"",A75+1) ->  | B76: =+IF($A76="","",IF(OR(DATE($A76,Mes,1)<$E$26,DATE($A76,Mes,1)>$L$25),0,VLOOKUP(DATE($A76,Mes,1),Calculo!$H$13:$AE$1273,24,FALSE))) ->  | C76: =+IF($A76="","",IF(OR(DATE($A76,Mes,1)<$E$26,DATE($A76,Mes,1)>$L$25),0,VLOOKUP(DATE($A76,Mes,1),Calculo!$H$13:$AE$1273,24,FALSE))) ->  | D76: =+IF($A76="","",IF(OR(DATE($A76,Mes,1)<$E$26,DATE($A76,Mes,1)>$L$25),0,VLOOKUP(DATE($A76,Mes,1),Calculo!$H$13:$AE$1273,24,FALSE))) ->  | E76: =+IF($A76="","",IF(OR(DATE($A76,Mes,1)<$E$26,DATE($A76,Mes,1)>$L$25),0,VLOOKUP(DATE($A76,Mes,1),Calculo!$H$13:$AE$1273,24,FALSE))) ->  | F76: =+IF($A76="","",IF(OR(DATE($A76,Mes,1)<$E$26,DATE($A76,Mes,1)>$L$25),0,VLOOKUP(DATE($A76,Mes,1),Calculo!$H$13:$AE$1273,24,FALSE))) ->  | G76: =+IF($A76="","",IF(OR(DATE($A76,Mes,1)<$E$26,DATE($A76,Mes,1)>$L$25),0,VLOOKUP(DATE($A76,Mes,1),Calculo!$H$13:$AE$1273,24,FALSE))) ->  | H76: =+IF($A76="","",IF(OR(DATE($A76,Mes,1)<$E$26,DATE($A76,Mes,1)>$L$25),0,VLOOKUP(DATE($A76,Mes,1),Calculo!$H$13:$AE$1273,24,FALSE))) ->  | I76: =+IF($A76="","",IF(OR(DATE($A76,Mes,1)<$E$26,DATE($A76,Mes,1)>$L$25),0,VLOOKUP(DATE($A76,Mes,1),Calculo!$H$13:$AE$1273,24,FALSE))) ->  | J76: =+IF($A76="","",IF(OR(DATE($A76,Mes,1)<$E$26,DATE($A76,Mes,1)>$L$25),0,VLOOKUP(DATE($A76,Mes,1),Calculo!$H$13:$AE$1273,24,FALSE))) ->  | K76: =+IF($A76="","",IF(OR(DATE($A76,Mes,1)<$E$26,DATE($A76,Mes,1)>$L$25),0,VLOOKUP(DATE($A76,Mes,1),Calculo!$H$13:$AE$1273,24,FALSE))) ->  | L76: =+IF($A76="","",IF(OR(DATE($A76,Mes,1)<$E$26,DATE($A76,Mes,1)>$L$25),0,VLOOKUP(DATE($A76,Mes,1),Calculo!$H$13:$AE$1273,24,FALSE))) ->  | M76: =+IF($A76="","",IF(OR(DATE($A76,Mes,1)<$E$26,DATE($A76,Mes,1)>$L$25),0,VLOOKUP(DATE($A76,Mes,1),Calculo!$H$13:$AE$1273,24,FALSE))) -> 
A77: =+IF(OR(A76="",A76=YEAR(Calculo!$F$19)),"",A76+1) ->  | B77: =+IF($A77="","",IF(OR(DATE($A77,Mes,1)<$E$26,DATE($A77,Mes,1)>$L$25),0,VLOOKUP(DATE($A77,Mes,1),Calculo!$H$13:$AE$1273,24,FALSE))) ->  | C77: =+IF($A77="","",IF(OR(DATE($A77,Mes,1)<$E$26,DATE($A77,Mes,1)>$L$25),0,VLOOKUP(DATE($A77,Mes,1),Calculo!$H$13:$AE$1273,24,FALSE))) ->  | D77: =+IF($A77="","",IF(OR(DATE($A77,Mes,1)<$E$26,DATE($A77,Mes,1)>$L$25),0,VLOOKUP(DATE($A77,Mes,1),Calculo!$H$13:$AE$1273,24,FALSE))) ->  | E77: =+IF($A77="","",IF(OR(DATE($A77,Mes,1)<$E$26,DATE($A77,Mes,1)>$L$25),0,VLOOKUP(DATE($A77,Mes,1),Calculo!$H$13:$AE$1273,24,FALSE))) ->  | F77: =+IF($A77="","",IF(OR(DATE($A77,Mes,1)<$E$26,DATE($A77,Mes,1)>$L$25),0,VLOOKUP(DATE($A77,Mes,1),Calculo!$H$13:$AE$1273,24,FALSE))) ->  | G77: =+IF($A77="","",IF(OR(DATE($A77,Mes,1)<$E$26,DATE($A77,Mes,1)>$L$25),0,VLOOKUP(DATE($A77,Mes,1),Calculo!$H$13:$AE$1273,24,FALSE))) ->  | H77: =+IF($A77="","",IF(OR(DATE($A77,Mes,1)<$E$26,DATE($A77,Mes,1)>$L$25),0,VLOOKUP(DATE($A77,Mes,1),Calculo!$H$13:$AE$1273,24,FALSE))) ->  | I77: =+IF($A77="","",IF(OR(DATE($A77,Mes,1)<$E$26,DATE($A77,Mes,1)>$L$25),0,VLOOKUP(DATE($A77,Mes,1),Calculo!$H$13:$AE$1273,24,FALSE))) ->  | J77: =+IF($A77="","",IF(OR(DATE($A77,Mes,1)<$E$26,DATE($A77,Mes,1)>$L$25),0,VLOOKUP(DATE($A77,Mes,1),Calculo!$H$13:$AE$1273,24,FALSE))) ->  | K77: =+IF($A77="","",IF(OR(DATE($A77,Mes,1)<$E$26,DATE($A77,Mes,1)>$L$25),0,VLOOKUP(DATE($A77,Mes,1),Calculo!$H$13:$AE$1273,24,FALSE))) ->  | L77: =+IF($A77="","",IF(OR(DATE($A77,Mes,1)<$E$26,DATE($A77,Mes,1)>$L$25),0,VLOOKUP(DATE($A77,Mes,1),Calculo!$H$13:$AE$1273,24,FALSE))) ->  | M77: =+IF($A77="","",IF(OR(DATE($A77,Mes,1)<$E$26,DATE($A77,Mes,1)>$L$25),0,VLOOKUP(DATE($A77,Mes,1),Calculo!$H$13:$AE$1273,24,FALSE))) -> 
A78: =+IF(OR(A77="",A77=YEAR(Calculo!$F$19)),"",A77+1) ->  | B78: =+IF($A78="","",IF(OR(DATE($A78,Mes,1)<$E$26,DATE($A78,Mes,1)>$L$25),0,VLOOKUP(DATE($A78,Mes,1),Calculo!$H$13:$AE$1273,24,FALSE))) ->  | C78: =+IF($A78="","",IF(OR(DATE($A78,Mes,1)<$E$26,DATE($A78,Mes,1)>$L$25),0,VLOOKUP(DATE($A78,Mes,1),Calculo!$H$13:$AE$1273,24,FALSE))) ->  | D78: =+IF($A78="","",IF(OR(DATE($A78,Mes,1)<$E$26,DATE($A78,Mes,1)>$L$25),0,VLOOKUP(DATE($A78,Mes,1),Calculo!$H$13:$AE$1273,24,FALSE))) ->  | E78: =+IF($A78="","",IF(OR(DATE($A78,Mes,1)<$E$26,DATE($A78,Mes,1)>$L$25),0,VLOOKUP(DATE($A78,Mes,1),Calculo!$H$13:$AE$1273,24,FALSE))) ->  | F78: =+IF($A78="","",IF(OR(DATE($A78,Mes,1)<$E$26,DATE($A78,Mes,1)>$L$25),0,VLOOKUP(DATE($A78,Mes,1),Calculo!$H$13:$AE$1273,24,FALSE))) ->  | G78: =+IF($A78="","",IF(OR(DATE($A78,Mes,1)<$E$26,DATE($A78,Mes,1)>$L$25),0,VLOOKUP(DATE($A78,Mes,1),Calculo!$H$13:$AE$1273,24,FALSE))) ->  | H78: =+IF($A78="","",IF(OR(DATE($A78,Mes,1)<$E$26,DATE($A78,Mes,1)>$L$25),0,VLOOKUP(DATE($A78,Mes,1),Calculo!$H$13:$AE$1273,24,FALSE))) ->  | I78: =+IF($A78="","",IF(OR(DATE($A78,Mes,1)<$E$26,DATE($A78,Mes,1)>$L$25),0,VLOOKUP(DATE($A78,Mes,1),Calculo!$H$13:$AE$1273,24,FALSE))) ->  | J78: =+IF($A78="","",IF(OR(DATE($A78,Mes,1)<$E$26,DATE($A78,Mes,1)>$L$25),0,VLOOKUP(DATE($A78,Mes,1),Calculo!$H$13:$AE$1273,24,FALSE))) ->  | K78: =+IF($A78="","",IF(OR(DATE($A78,Mes,1)<$E$26,DATE($A78,Mes,1)>$L$25),0,VLOOKUP(DATE($A78,Mes,1),Calculo!$H$13:$AE$1273,24,FALSE))) ->  | L78: =+IF($A78="","",IF(OR(DATE($A78,Mes,1)<$E$26,DATE($A78,Mes,1)>$L$25),0,VLOOKUP(DATE($A78,Mes,1),Calculo!$H$13:$AE$1273,24,FALSE))) ->  | M78: =+IF($A78="","",IF(OR(DATE($A78,Mes,1)<$E$26,DATE($A78,Mes,1)>$L$25),0,VLOOKUP(DATE($A78,Mes,1),Calculo!$H$13:$AE$1273,24,FALSE))) -> 
A79: =+IF(OR(A78="",A78=YEAR(Calculo!$F$19)),"",A78+1) ->  | B79: =+IF($A79="","",IF(OR(DATE($A79,Mes,1)<$E$26,DATE($A79,Mes,1)>$L$25),0,VLOOKUP(DATE($A79,Mes,1),Calculo!$H$13:$AE$1273,24,FALSE))) ->  | C79: =+IF($A79="","",IF(OR(DATE($A79,Mes,1)<$E$26,DATE($A79,Mes,1)>$L$25),0,VLOOKUP(DATE($A79,Mes,1),Calculo!$H$13:$AE$1273,24,FALSE))) ->  | D79: =+IF($A79="","",IF(OR(DATE($A79,Mes,1)<$E$26,DATE($A79,Mes,1)>$L$25),0,VLOOKUP(DATE($A79,Mes,1),Calculo!$H$13:$AE$1273,24,FALSE))) ->  | E79: =+IF($A79="","",IF(OR(DATE($A79,Mes,1)<$E$26,DATE($A79,Mes,1)>$L$25),0,VLOOKUP(DATE($A79,Mes,1),Calculo!$H$13:$AE$1273,24,FALSE))) ->  | F79: =+IF($A79="","",IF(OR(DATE($A79,Mes,1)<$E$26,DATE($A79,Mes,1)>$L$25),0,VLOOKUP(DATE($A79,Mes,1),Calculo!$H$13:$AE$1273,24,FALSE))) ->  | G79: =+IF($A79="","",IF(OR(DATE($A79,Mes,1)<$E$26,DATE($A79,Mes,1)>$L$25),0,VLOOKUP(DATE($A79,Mes,1),Calculo!$H$13:$AE$1273,24,FALSE))) ->  | H79: =+IF($A79="","",IF(OR(DATE($A79,Mes,1)<$E$26,DATE($A79,Mes,1)>$L$25),0,VLOOKUP(DATE($A79,Mes,1),Calculo!$H$13:$AE$1273,24,FALSE))) ->  | I79: =+IF($A79="","",IF(OR(DATE($A79,Mes,1)<$E$26,DATE($A79,Mes,1)>$L$25),0,VLOOKUP(DATE($A79,Mes,1),Calculo!$H$13:$AE$1273,24,FALSE))) ->  | J79: =+IF($A79="","",IF(OR(DATE($A79,Mes,1)<$E$26,DATE($A79,Mes,1)>$L$25),0,VLOOKUP(DATE($A79,Mes,1),Calculo!$H$13:$AE$1273,24,FALSE))) ->  | K79: =+IF($A79="","",IF(OR(DATE($A79,Mes,1)<$E$26,DATE($A79,Mes,1)>$L$25),0,VLOOKUP(DATE($A79,Mes,1),Calculo!$H$13:$AE$1273,24,FALSE))) ->  | L79: =+IF($A79="","",IF(OR(DATE($A79,Mes,1)<$E$26,DATE($A79,Mes,1)>$L$25),0,VLOOKUP(DATE($A79,Mes,1),Calculo!$H$13:$AE$1273,24,FALSE))) ->  | M79: =+IF($A79="","",IF(OR(DATE($A79,Mes,1)<$E$26,DATE($A79,Mes,1)>$L$25),0,VLOOKUP(DATE($A79,Mes,1),Calculo!$H$13:$AE$1273,24,FALSE))) -> 
A80: =+IF(OR(A79="",A79=YEAR(Calculo!$F$19)),"",A79+1) ->  | B80: =+IF($A80="","",IF(OR(DATE($A80,Mes,1)<$E$26,DATE($A80,Mes,1)>$L$25),0,VLOOKUP(DATE($A80,Mes,1),Calculo!$H$13:$AE$1273,24,FALSE))) ->  | C80: =+IF($A80="","",IF(OR(DATE($A80,Mes,1)<$E$26,DATE($A80,Mes,1)>$L$25),0,VLOOKUP(DATE($A80,Mes,1),Calculo!$H$13:$AE$1273,24,FALSE))) ->  | D80: =+IF($A80="","",IF(OR(DATE($A80,Mes,1)<$E$26,DATE($A80,Mes,1)>$L$25),0,VLOOKUP(DATE($A80,Mes,1),Calculo!$H$13:$AE$1273,24,FALSE))) ->  | E80: =+IF($A80="","",IF(OR(DATE($A80,Mes,1)<$E$26,DATE($A80,Mes,1)>$L$25),0,VLOOKUP(DATE($A80,Mes,1),Calculo!$H$13:$AE$1273,24,FALSE))) ->  | F80: =+IF($A80="","",IF(OR(DATE($A80,Mes,1)<$E$26,DATE($A80,Mes,1)>$L$25),0,VLOOKUP(DATE($A80,Mes,1),Calculo!$H$13:$AE$1273,24,FALSE))) ->  | G80: =+IF($A80="","",IF(OR(DATE($A80,Mes,1)<$E$26,DATE($A80,Mes,1)>$L$25),0,VLOOKUP(DATE($A80,Mes,1),Calculo!$H$13:$AE$1273,24,FALSE))) ->  | H80: =+IF($A80="","",IF(OR(DATE($A80,Mes,1)<$E$26,DATE($A80,Mes,1)>$L$25),0,VLOOKUP(DATE($A80,Mes,1),Calculo!$H$13:$AE$1273,24,FALSE))) ->  | I80: =+IF($A80="","",IF(OR(DATE($A80,Mes,1)<$E$26,DATE($A80,Mes,1)>$L$25),0,VLOOKUP(DATE($A80,Mes,1),Calculo!$H$13:$AE$1273,24,FALSE))) ->  | J80: =+IF($A80="","",IF(OR(DATE($A80,Mes,1)<$E$26,DATE($A80,Mes,1)>$L$25),0,VLOOKUP(DATE($A80,Mes,1),Calculo!$H$13:$AE$1273,24,FALSE))) ->  | K80: =+IF($A80="","",IF(OR(DATE($A80,Mes,1)<$E$26,DATE($A80,Mes,1)>$L$25),0,VLOOKUP(DATE($A80,Mes,1),Calculo!$H$13:$AE$1273,24,FALSE))) ->  | L80: =+IF($A80="","",IF(OR(DATE($A80,Mes,1)<$E$26,DATE($A80,Mes,1)>$L$25),0,VLOOKUP(DATE($A80,Mes,1),Calculo!$H$13:$AE$1273,24,FALSE))) ->  | M80: =+IF($A80="","",IF(OR(DATE($A80,Mes,1)<$E$26,DATE($A80,Mes,1)>$L$25),0,VLOOKUP(DATE($A80,Mes,1),Calculo!$H$13:$AE$1273,24,FALSE))) -> 
A81: =+IF(OR(A80="",A80=YEAR(Calculo!$F$19)),"",A80+1) ->  | B81: =+IF($A81="","",IF(OR(DATE($A81,Mes,1)<$E$26,DATE($A81,Mes,1)>$L$25),0,VLOOKUP(DATE($A81,Mes,1),Calculo!$H$13:$AE$1273,24,FALSE))) ->  | C81: =+IF($A81="","",IF(OR(DATE($A81,Mes,1)<$E$26,DATE($A81,Mes,1)>$L$25),0,VLOOKUP(DATE($A81,Mes,1),Calculo!$H$13:$AE$1273,24,FALSE))) ->  | D81: =+IF($A81="","",IF(OR(DATE($A81,Mes,1)<$E$26,DATE($A81,Mes,1)>$L$25),0,VLOOKUP(DATE($A81,Mes,1),Calculo!$H$13:$AE$1273,24,FALSE))) ->  | E81: =+IF($A81="","",IF(OR(DATE($A81,Mes,1)<$E$26,DATE($A81,Mes,1)>$L$25),0,VLOOKUP(DATE($A81,Mes,1),Calculo!$H$13:$AE$1273,24,FALSE))) ->  | F81: =+IF($A81="","",IF(OR(DATE($A81,Mes,1)<$E$26,DATE($A81,Mes,1)>$L$25),0,VLOOKUP(DATE($A81,Mes,1),Calculo!$H$13:$AE$1273,24,FALSE))) ->  | G81: =+IF($A81="","",IF(OR(DATE($A81,Mes,1)<$E$26,DATE($A81,Mes,1)>$L$25),0,VLOOKUP(DATE($A81,Mes,1),Calculo!$H$13:$AE$1273,24,FALSE))) ->  | H81: =+IF($A81="","",IF(OR(DATE($A81,Mes,1)<$E$26,DATE($A81,Mes,1)>$L$25),0,VLOOKUP(DATE($A81,Mes,1),Calculo!$H$13:$AE$1273,24,FALSE))) ->  | I81: =+IF($A81="","",IF(OR(DATE($A81,Mes,1)<$E$26,DATE($A81,Mes,1)>$L$25),0,VLOOKUP(DATE($A81,Mes,1),Calculo!$H$13:$AE$1273,24,FALSE))) ->  | J81: =+IF($A81="","",IF(OR(DATE($A81,Mes,1)<$E$26,DATE($A81,Mes,1)>$L$25),0,VLOOKUP(DATE($A81,Mes,1),Calculo!$H$13:$AE$1273,24,FALSE))) ->  | K81: =+IF($A81="","",IF(OR(DATE($A81,Mes,1)<$E$26,DATE($A81,Mes,1)>$L$25),0,VLOOKUP(DATE($A81,Mes,1),Calculo!$H$13:$AE$1273,24,FALSE))) ->  | L81: =+IF($A81="","",IF(OR(DATE($A81,Mes,1)<$E$26,DATE($A81,Mes,1)>$L$25),0,VLOOKUP(DATE($A81,Mes,1),Calculo!$H$13:$AE$1273,24,FALSE))) ->  | M81: =+IF($A81="","",IF(OR(DATE($A81,Mes,1)<$E$26,DATE($A81,Mes,1)>$L$25),0,VLOOKUP(DATE($A81,Mes,1),Calculo!$H$13:$AE$1273,24,FALSE))) -> 
C94: =+"En Madrid a "&TEXT(DAY(TODAY()),"d")&" de "&TEXT(TODAY(),"mmmm")&" de "&TEXT(TODAY(),"aaaa") -> En Madrid a 9 de abril de 2026
H95: SEGUROS DE VIDA Y PENSIONES ANTARES

Sheet Proyecto (hidden)
A2: PLAN DE PENSIONES DE EMPLEADOS DE TELEFONICA DE ESPAÑA
A4: RENTA ASEGURADA
A6: DATOS DEL PARTICIPE BENEFICIARIO Y DEL BENEFICIARIO DE LA REVERSION
B7: Partícipe Beneficiario | F7: Beneficiario de la Reversión
A8: Nombre | B8: =+Calculo!C7 -> aaaa | F8: =+IF(Calculo!$F$17="","",Calculo!$F$17) -> 
A9: Apellidos | B9: =+Calculo!C6 -> aaaa | F9: =+IF(Calculo!$F$16="","",Calculo!$F$16) -> 
A10: NIF
A11: Fecha de Nacimiento | B11: =+Calculo!C10 -> 1978-09-05 | F11: =+Solicitud!F20 -> 
A12: Sexo | B12: =+IF(Calculo!C12=1,"Hombre","Mujer") -> Hombre | F12: =+Solicitud!F21 -> 
A14: RENTA ASEGURADA
A16: Prima: | C16: =+Calculo!C17 -> 100000
A17: El partícipe benficiario percibirá del Plan de Pensiones de Empleados de Telefónica de España de la renta que a continuación se especifica por la duración indicada y mientras sobreviva.
A18: En caso de Fallecimiento del Beneficiario partícipe, el Beneficiario de la reversión percibirá el porcentaje de la renta indicado hasta la fecha del último pago y siempre y cuando sobreviva.
A19: El pago de la renta cesará en caso de fallecimiento del beneficiario participe y del beneficario de la reversión si lo hubiere
A20: Periodicidad del pago: | C20: Mensual
A21: Duración: | C21: =+IF(Calculo!C19<960,Calculo!C19&" Meses","Vitalicia") -> 120 Meses
A22: Crecimiento (1): | C22: =+Calculo!C14 -> 0
A24: Reversión: | C24: =+Calculo!C13 -> 0
A25: Fecha de Efecto: | C25: =+DATE(YEAR(Calculo!$C$8),MONTH(Calculo!$C$8),1) -> 2023-04-01
A26: Fecha de 1er pago: | C26: =+DATE(YEAR(Calculo!$C$9),MONTH(Calculo!$C$9)+1,1-1) -> 2023-04-30
A27: =+IF(C21="Vitalicia","","Fecha de último pago:") -> Fecha de último pago: | C27: =+IF(C21="Vitalicia","",Calculo!F19) -> 2033-03-31
A28: Importe inicial de la renta: | C28: =+Calculo!C18 -> 933.3667289
A31: (1) El crecimiento de la renta es anual acumulativo a primeros de año

Sheet Generacion Tabla Produccion (hidden)
B1: Asegurado | C1: Beneficiario | H1: Asegurado | I1: Beneficiario
A2: Año Nacimiento | B2: =YEAR(Calculo!$C$10) -> 1978 | C2: =YEAR(Calculo!$C$11) -> 1993 | G2: Año Nacimiento | H2: =YEAR(Calculo!$C$10) -> 1978 | I2: =YEAR(Calculo!$C$11) -> 1993
B3: HOMBRES | D3: Asegurado | E3: Beneficiario | G3: MUJERES PRINCIPAL | I3: Asegurado | J3: Beneficiario | M3: ASEGURADO | Q3: BENEFICIARIO
A4: Año | B4: Qx | C4: Mejora Qx | D4: Conversion | E4: Conversion | G4: Qx | H4: Mejora Qx | I4: Conversion | J4: Conversion | L4: Edad | M4: Qx | N4: Qy | O4: Px | P4: Py | Q4: Qx | R4: Qy | S4: Px | T4: Py
A5: 2012 | B5: 1.9791825 | C5: 0.04 | D5: =+EXP(-$C5*($B$2-$A5)) -> 3.896193302 | E5: =+EXP(-$C5*($C$2-$A5)) -> 2.13827622 | G5: 1.96384 | H5: 0.04 | I5: =+EXP(-$H5*($H$2-$A5)) -> 3.896193302 | J5: =+EXP(-$H5*($I$2-$A5)) -> 2.13827622 | L5: =+$A$5-A5 -> 0 | M5: =+$B5*$D5/1000 -> 0.0077112776 | N5: =+$G5*$I5/1000 -> 0.007651500254 | O5: =+(1-M5)^(0.0833333333333333) -> 0.9993551111 | P5: =+(1-N5)^(0.0833333333333333) -> 0.9993601279 | Q5: =+B5*E5/1000 -> 0.004232038876 | R5: =+G5*J5/1000 -> 0.004199232373 | S5: =+(1-Q5)^(0.0833333333333333) -> 0.9996466442 | T5: =+(1-R5)^(0.0833333333333333) -> 0.9996493887
A6: 2011 | B6: 0.1254475 | C6: 0.04 | D6: 3.743421377 | E6: =+EXP(-$C6*($C$2-$A6)) -> 2.054433211 | G6: 0.1308625 | H6: 0.04 | I6: 3.743421377 | J6: 2.054433211 | L6: =+$A$5-A6 -> 1 | M6: 0.0004696028532 | N6: 0.00048987348 | O6: 0.999960858 | P6: 0.999959168 | Q6: =+B6*E6/1000 -> 0.0002577235102 | R6: =+G6*J6/1000 -> 0.000268848266 | S6: =+(1-Q6)^(0.0833333333333333) -> 0.9999785205 | T6: =+(1-R6)^(0.0833333333333333) -> 0.9999775932
A7: 2010 | B7: 0.1083 | C7: 0.04 | D7: 3.596639726 | E7: 1.973877732 | G7: 0.11191 | H7: 0.04 | I7: 3.596639726 | J7: 1.973877732 | L7: 2 | M7: 0.0003895160823 | N7: 0.0004024999517 | O7: 0.9999675345 | P7: 0.9999664521 | Q7: 0.0002137709584 | R7: 0.000220896657 | S7: 0.999982184 | T7: 0.9999815901
A8: 2009 | B8: 0.0929575 | C8: 0.04 | D8: 3.455613465 | E8: 1.896480879 | G8: 0.09386 | H8: 0.04 | I8: 3.455613465 | J8: 1.896480879 | L8: 3 | M8: 0.0003212251887 | N8: 0.0003243438798 | O8: 0.9999732273 | P8: 0.9999729673 | Q8: 0.0001762921213 | R8: 0.0001780036953 | S8: 0.9999853078 | T8: 0.9999851651
A9: 2008 | B9: 0.07942 | C9: 0.04 | D9: 3.320116923 | E9: 1.8221188 | G9: 0.0785175 | H9: 0.04 | I9: 3.320116923 | J9: 1.8221188 | L9: 4 | M9: 0.000263683686 | N9: 0.0002606872805 | O9: 0.9999780237 | P9: 0.9999782735 | Q9: 0.0001447126751 | R9: 0.0001430682129 | S9: 0.9999879398 | T9: 0.9999880769
A10: 2007 | B10: 0.06859 | C10: 0.04 | D10: 3.189933276 | E10: 1.7506725 | G10: 0.0658825 | H10: 0.04 | I10: 3.189933276 | J10: 1.7506725 | L10: 5 | M10: 0.0002187975234 | N10: 0.0002101607791 | O10: 0.999981765 | P10: 0.9999824849 | Q10: 0.0001200786268 | R10: 0.000115338681 | S10: 0.9999899929 | T10: 0.9999903879
A11: 2006 | B11: 0.0604675 | C11: 0.04 | D11: 3.064854203 | E11: 1.68202765 | G11: 0.0568575 | H11: 0.04 | I11: 3.064854203 | J11: 1.68202765 | L11: 6 | M11: 0.0001853240715 | N11: 0.0001742599479 | O11: 0.999984555 | P11: 0.9999854772 | Q11: 0.0001017080069 | R11: 9.563588709e-05 | S11: 0.9999915239 | T11: 0.99999203
A12: 2005 | B12: 0.055955 | C12: 0.04 | D12: 2.944679551 | E12: 1.616074402 | G12: 0.0514425 | H12: 0.04 | I12: 2.944679551 | J12: 1.616074402 | L12: 7 | M12: 0.0001647695443 | N12: 0.0001514816778 | O12: 0.9999862682 | P12: 0.9999873757 | Q12: 9.042744317e-05 | R12: 8.313490743e-05 | S12: 0.9999924641 | T12: 0.9999930718
A13: 2004 | B13: 0.0532475 | C13: 0.04 | D13: 2.829217014 | E13: 1.552707219 | G13: 0.0478325 | H13: 0.03952118143 | I13: 2.794213627 | J13: 1.544550602 | L13: 8 | M13: 0.000150648733 | N13: 0.0001336542233 | O13: 0.9999874451 | P13: 0.9999888615 | Q13: 8.267777762e-05 | R13: 7.387971668e-05 | S13: 0.9999931099 | T13: 0.9999938431
A14: 2003 | B14: 0.0532475 | C14: 0.04 | D14: 2.718281828 | E14: 1.491824698 | G14: 0.0478325 | H14: 0.03907702672 | I14: 2.656277398 | J14: 1.478118902 | L14: 9 | M14: 0.0001447417117 | N14: 0.0001270563886 | O14: 0.9999879374 | P14: 0.9999894114 | Q14: 7.943593559e-05 | R14: 7.070212238e-05 | S14: 0.9999933801 | T14: 0.999994108
A15: 2002 | B15: 0.055955 | C15: 0.04 | D15: 2.611696473 | E15: 1.433329415 | G15: 0.048735 | H15: 0.0388322871 | I15: 2.539519501 | J15: 1.418344837 | L15: 10 | M15: 0.0001461374762 | N15: 0.0001237634829 | O15: 0.9999878211 | P15: 0.9999896858 | Q15: 8.020194739e-05 | R15: 6.912303562e-05 | S15: 0.9999933163 | T15: 0.9999942396
A16: 2001 | B16: 0.06137 | C16: 0.04 | D16: 2.50929039 | E16: 1.377127764 | G16: 0.052345 | H16: 0.03871313303 | I16: 2.436108915 | J16: 1.363023051 | L16: 11 | M16: 0.0001539951512 | N16: 0.0001275181212 | O16: 0.9999871662 | P16: 0.9999893729 | Q16: 8.45143309e-05 | R16: 7.134744158e-05 | S16: 0.9999929569 | T16: 0.9999940542
A17: 2000 | B17: 0.0694925 | C17: 0.04 | D17: 2.410899706 | E17: 1.323129812 | G17: 0.05776 | H17: 0.03863634568 | I17: 2.339645928 | J17: 1.31055986 | L17: 12 | M17: 0.0001675394478 | N17: 0.0001351379488 | O17: 0.9999860373 | P17: 0.9999887378 | Q17: 9.194759848e-05 | R17: 7.56979375e-05 | S17: 0.9999923374 | T17: 0.9999936916
A18: 1999 | B18: 0.0821275 | C18: 0.04 | D18: 2.316366977 | E18: 1.27124915 | G18: 0.063175 | H18: 0.03853359534 | I18: 2.246122738 | J18: 1.260113217 | L18: 13 | M18: 0.0001902374289 | N18: 0.000141898804 | O18: 0.9999841455 | P18: 0.9999881743 | Q18: 0.0001044045146 | R18: 7.960765251e-05 | S18: 0.9999912992 | T18: 0.9999933658
A19: 1998 | B19: 0.09747 | C19: 0.04 | D19: 2.225540928 | E19: 1.221402758 | G19: 0.0694925 | H19: 0.03836645108 | I19: 2.154005262 | J19: 1.211467283 | L19: 14 | M19: 0.0002169234743 | N19: 0.0001496872107 | O19: 0.9999819212 | P19: 0.9999875252 | Q19: 0.0001190501268 | R19: 8.418789015e-05 | S19: 0.9999900786 | T19: 0.9999929841
A20: 1997 | B20: 0.11552 | C20: 0.04 | D20: 2.13827622 | E20: 1.173510871 | G20: 0.0767125 | H20: 0.03812929565 | I20: 2.063609465 | J20: 1.164762476 | L20: 15 | M20: 0.000247013669 | N20: 0.0001583046411 | O20: 0.9999794132 | P20: 0.999986807 | Q20: 0.0001355639758 | R20: 8.935184141e-05 | S20: 0.9999887023 | T20: 0.9999925537
A21: 1996 | B21: 0.135375 | C21: 0.04 | D21: 2.054433211 | E21: 1.127496852 | G21: 0.0839325 | H21: 0.03784247316 | I21: 1.976177685 | J21: 1.120222604 | L21: 16 | M21: 0.0002781188959 | N21: 0.0001658655336 | O21: 0.9999768205 | P21: 0.9999861768 | Q21: 0.0001526348863 | R21: 9.402308374e-05 | S21: 0.9999872795 | T21: 0.9999921644
A22: 1995 | B22: 0.1579375 | C22: 0.04 | D22: 1.973877732 | E22: 1.083287068 | G22: 0.092055 | H22: 0.03754108304 | I22: 1.893067277 | J22: 1.07797272 | L22: 17 | M22: 0.0003117493143 | N22: 0.0001742663082 | O22: 0.9999740172 | P22: 0.9999854766 | Q22: 0.0001710916513 | R22: 9.923277874e-05 | S22: 0.9999857412 | T22: 0.9999917302
A23: 1994 | B23: 0.1805 | C23: 0.04 | D23: 1.896480879 | E23: 1.040810774 | G23: 0.0983725 | H23: 0.03726414902 | I23: 1.815255782 | J23: 1.037967163 | L23: 18 | M23: 0.0003423147987 | N23: 0.0001785712494 | O23: 0.9999714693 | P23: 0.9999851178 | Q23: 0.0001878663447 | R23: 0.0001021074247 | S23: 0.9999843431 | T23: 0.9999914906
A24: 1993 | B24: 0.2012575 | C24: 0.04 | D24: 1.8221188 | E24: 1 | G24: 0.102885 | H24: 0.03704568068 | I24: 1.74313499 | J24: 1 | L24: 19 | M24: 0.0003667150745 | N24: 0.0001793424434 | O24: 0.9999694353 | P24: 0.9999850536 | Q24: 0.0002012575 | R24: 0.000102885 | S24: 0.999983227 | T24: 0.9999914258
A25: 1992 | B25: 0.2193075 | C25: 0.04 | D25: 1.7506725 | E25: 0.9607894392 | G25: 0.106495 | H25: 0.03690751455 | I25: 1.676494831 | J25: 0.9637652655 | L25: 20 | M25: 0.0003839356094 | N25: 0.000178538317 | O25: 0.9999679997 | P25: 0.9999851206 | Q25: 0.0002107083299 | R25: 0.0001026361819 | S25: 0.9999824393 | T25: 0.9999914466
A26: 1991 | B26: 0.232845 | C26: 0.04 | D26: 1.68202765 | E26: 0.9231163464 | G26: 0.1092025 | H26: 0.03685446198 | I26: 1.614633516 | J26: 0.9289420473 | L26: 21 | M26: 0.0003916517281 | N26: 0.0001763220165 | O26: 0.9999673565 | P26: 0.9999853053 | Q26: 0.0002149430257 | R26: 0.0001014427939 | S26: 0.9999820863 | T26: 0.999991546
A27: 1990 | B27: 0.243675 | C27: 0.04 | D27: 1.616074402 | E27: 0.8869204367 | G27: 0.1110075 | H27: 0.03687338431 | I27: 1.556563663 | J27: 0.8952787534 | L27: 22 | M27: 0.00039379693 | N27: 0.0001727902409 | O27: 0.9999671777 | P27: 0.9999855997 | Q27: 0.0002161203374 | R27: 9.938265621e-05 | S27: 0.9999819882 | T27: 0.9999917177
A28: 1989 | B28: 0.250895 | C28: 0.04 | D28: 1.552707219 | E28: 0.852143789 | G28: 0.113715 | H28: 0.03693714587 | I28: 1.501265779 | J28: 0.8626479716 | L28: 23 | M28: 0.0003895664776 | N28: 0.000170716438 | O28: 0.9999675303 | P28: 0.9999857725 | Q28: 0.0002137986159 | R28: 9.809601409e-05 | S28: 0.9999821817 | T28: 0.999991825
A29: 1988 | B29: 0.25631 | C29: 0.04 | D29: 1.491824698 | E29: 0.8187307531 | G29: 0.1164225 | H29: 0.03701265904 | I29: 1.447917896 | J29: 0.8310516806 | L29: 24 | M29: 0.0003823695883 | N29: 0.0001685702212 | O29: 0.9999681303 | P29: 0.9999859514 | Q29: 0.0002098488793 | R29: 9.675311429e-05 | S29: 0.9999825109 | T29: 0.9999919369
A30: 1987 | B30: 0.261725 | C30: 0.04 | D30: 1.433329415 | E30: 0.7866278611 | G30: 0.1200325 | H30: 0.03707031504 | I30: 1.396030476 | J30: 0.8005775372 | L30: 25 | M30: 0.000375138141 | N30: 0.0001675690282 | O30: 0.9999687331 | P30: 0.9999860348 | Q30: 0.0002058801769 | R30: 9.609532324e-05 | S30: 0.9999828417 | T30: 0.9999919917
A31: 1986 | B31: 0.2680425 | C31: 0.04 | D31: 1.377127764 | E31: 0.7557837415 | G31: 0.124545 | H31: 0.03709107617 | I31: 1.345450107 | J31: 0.7713311171 | L31: 26 | M31: 0.0003691287688 | N31: 0.0001675690836 | O31: 0.9999692341 | P31: 0.9999860348 | Q31: 0.0002025821635 | R31: 9.606543398e-05 | S31: 0.9999831166 | T31: 0.9999919942
A32: 1985 | B32: 0.27436 | C32: 0.04 | D32: 1.323129812 | E32: 0.7261490371 | G32: 0.1308625 | H32: 0.03706846162 | I32: 1.296254862 | J32: 0.7433801724 | L32: 27 | M32: 0.0003630138953 | N32: 0.0001696311519 | O32: 0.9999697438 | P32: 0.999985863 | Q32: 0.0001992262498 | R32: 9.728058781e-05 | S32: 0.9999833963 | T32: 0.9999918929
A33: 1984 | B33: 0.283385 | C33: 0.04 | D33: 1.27124915 | E33: 0.6976763261 | G33: 0.1380825 | H33: 0.03700448503 | I33: 1.248604978 | J33: 0.7167412621 | L33: 28 | M33: 0.0003602529405 | N33: 0.0001724104968 | O33: 0.999969974 | P33: 0.9999856313 | Q33: 0.0001977110057 | R33: 9.896942533e-05 | S33: 0.9999835226 | T33: 0.9999917522
A34: 1983 | B34: 0.294215 | C34: 0.04 | D34: 1.221402758 | E34: 0.670320046 | G34: 0.1471075 | H34: 0.0369010014 | I34: 1.202623003 | J34: 0.6914184865 | L34: 29 | M34: 0.0003593550125 | N34: 0.0001769148634 | O34: 0.9999700488 | P34: 0.9999852559 | Q34: 0.0001972182123 | R34: 0.000101712845 | S34: 0.9999835637 | T34: 0.9999915235
A35: 1982 | B35: 0.30685 | C35: 0.04 | D35: 1.173510871 | E35: 0.6440364211 | G35: 0.1579375 | H35: 0.03675040139 | I35: 1.158355823 | J35: 0.667474284 | L35: 30 | M35: 0.0003600918108 | N35: 0.0001829478228 | O35: 0.9999699874 | P35: 0.9999847531 | Q35: 0.0001976225758 | R35: 0.0001054192197 | S35: 0.99998353 | T35: 0.9999912146
A36: 1981 | B36: 0.3221925 | C36: 0.04 | D36: 1.127496852 | E36: 0.6187833918 | G36: 0.16967 | H36: 0.03653081641 | I36: 1.115823223 | J36: 0.6450871875 | L36: 31 | M36: 0.0003632710294 | N36: 0.0001893217263 | O36: 0.9999697224 | P36: 0.9999842218 | Q36: 0.000199367368 | R36: 0.0001094519431 | S36: 0.9999833845 | T36: 0.9999908785
A37: 1980 | B37: 0.33934 | C37: 0.04 | D37: =+EXP(-$C37*($B$2-$A37)) -> 1.083287068 | E37: 0.594520548 | G37: 0.18411 | H37: 0.03620962381 | I37: =+EXP(-$H37*($H$2-$A37)) -> 1.075105985 | J37: =+EXP(-$H37*($I$2-$A37)) -> 0.6245492375 | L37: 32 | M37: =+$B37*$D37/1000 -> 0.0003676026335 | N37: =+$G37*$I37/1000 -> 0.0001979377629 | O37: 0.9999693613 | P37: 0.9999835037 | Q37: 0.0002017446027 | R37: 0.0001149857601 | S37: 0.9999831864 | T37: 0.9999904173
A38: 1979 | B38: 0.359195 | C38: 0.04 | D38: 1.040810774 | E38: 0.5712090638 | G38: 0.2012575 | H38: 0.03575459034 | I38: 1.036401472 | J38: 0.6061885124 | L38: 33 | M38: 0.000373854026 | N38: 0.0002085835693 | O38: 0.9999688402 | P38: 0.9999826164 | Q38: 0.0002051754397 | R38: 0.0001219999845 | S38: 0.9999829004 | T38: 0.9999898328
A39: 1978 | B39: 0.3835625 | C39: 0.04 | D39: 1 | E39: 0.5488116361 | G39: 0.222015 | H39: 0.03514762076 | I39: 1 | J39: 0.5902469258 | L39: 34 | M39: 0.0003835625 | N39: 0.000222015 | O39: 0.9999680308 | P39: 0.9999814969 | Q39: 0.0002105035632 | R39: 0.0001310436712 | S39: 0.9999824563 | T39: 0.999989079
A40: 1977 | B40: 0.4124425 | C40: 0.04 | D40: 0.9607894392 | E40: 0.527292424 | G40: 0.2463825 | H40: 0.03439472248 | I40: 0.9661900524 | J40: 0.576767777 | L40: 35 | M40: 0.0003962703983 | N40: 0.0002380523206 | O40: 0.9999669715 | P40: 0.9999801601 | Q40: 0.0002174778056 | R40: 0.0001421054868 | S40: 0.999981875 | T40: 0.9999881571
A41: 1976 | B41: 0.44764 | C41: 0.04 | D41: 0.9231163464 | E41: 0.5066169924 | G41: 0.27436 | H41: 0.03352801453 | I41: 0.9351428047 | J41: 0.5655388717 | L41: 36 | M41: 0.0004132238013 | N41: 0.0002565657799 | O41: 0.9999655582 | P41: 0.999978617 | Q41: 0.0002267820305 | R41: 0.0001551612449 | S41: 0.9999810995 | T41: 0.999987069
A42: 1975 | B42: 0.49096 | C42: 0.04 | D42: 0.8869204367 | E42: 0.486752256 | G42: 0.30685 | H42: 0.03259926701 | I42: 0.9068322458 | J42: 0.5561113104 | L42: 37 | M42: 0.0004354424576 | N42: 0.0002782614746 | O42: 0.9999637059 | P42: 0.9999768086 | Q42: 0.0002389758876 | R42: 0.0001706427556 | S42: 0.9999800832 | T42: 0.9999857787
A43: 1974 | B43: 0.54511 | C43: 0.04 | D43: 0.852143789 | E43: 0.467666427 | G43: 0.34295 | H43: 0.03166721935 | I43: 0.8810253517 | J43: 0.5478919584 | L43: 38 | M43: 0.0004645121008 | N43: 0.0003021476444 | O43: 0.9999612824 | P43: 0.9999748175 | Q43: 0.000254929646 | R43: 0.0001878995471 | S43: 0.9999787534 | T43: 0.9999843404
A44: 1973 | B44: 0.61009 | C44: 0.04 | D44: 0.8187307531 | E44: 0.4493289641 | G44: 0.3835625 | H44: 0.03078239732 | I44: 0.8573474757 | J44: 0.5402907024 | L44: 39 | M44: 0.0004994994451 | N44: 0.0003288463412 | O44: 0.9999583655 | P44: 0.999972592 | Q44: 0.0002741311077 | R44: 0.0002072352525 | S44: 0.9999771529 | T44: 0.9999827288
A45: 1972 | B45: 0.687705 | C45: 0.04 | D45: 0.7866278611 | E45: 0.4317105234 | G45: 0.4286875 | H45: 0.02997385203 | I45: 0.8354012654 | J45: 0.5328843314 | L45: 40 | M45: 0.0005409679132 | N45: 0.00035812608 | O45: 0.9999549082 | P45: 0.9999701513 | Q45: 0.0002968894855 | R45: 0.0002284408518 | S45: 0.9999752558 | T45: 0.9999809613
A46: 1971 | B46: 0.7770525 | C46: 0.03918727895 | D46: 0.7600956847 | E46: 0.4222658712 | G46: 0.48013 | H46: 0.0292416779 | I46: 0.814898474 | J46: 0.5255463379 | L46: 41 | M46: 0.0005906342521 | N46: 0.0003912572043 | O46: 0.9999507671 | P46: 0.9999673894 | Q46: 0.0003281227508 | R46: 0.0002523305632 | S46: 0.9999726523 | T46: 0.99997897
A47: 1970 | B47: 0.88084 | C47: 0.03824710136 | D47: 0.7364036958 | E47: 0.4149142813 | G47: 0.53789 | H47: 0.028557732 | I47: 0.79575665 | J47: 0.5184934749 | L47: 42 | M47: 0.0006486538314 | N47: 0.0004280295444 | O47: 0.9999459294 | P47: 0.9999643239 | Q47: 0.0003654730955 | R47: 0.0002788924552 | S47: 0.9999695388 | T47: 0.999976756
A48: 1969 | B48: 0.9972625 | C48: 0.03716424385 | D48: 0.715711451 | E48: 0.4098590937 | G48: 0.601065 | H48: 0.02787448787 | I48: 0.7781232169 | J48: 0.5122268381 | L48: 43 | M48: 0.0007137521909 | N48: 0.0004677026314 | O48: 0.9999405012 | P48: 0.9999610164 | Q48: 0.0004087371044 | R48: 0.0003078816245 | S48: 0.9999659322 | T48: 0.9999743396
A49: 1968 | B49: 1.1290275 | C49: 0.03591824085 | D49: 0.6982469735 | E49: 0.4074015294 | G49: 0.67146 | H49: 0.02713922017 | I49: 0.7623174556 | J49: 0.5073873799 | L49: 44 | M49: 0.0007883400349 | N49: 0.0005118656787 | O49: 0.9999342812 | P49: 0.9999573345 | Q49: 0.0004599675302 | R49: 0.0003406903301 | S49: 0.9999616613 | T49: 0.9999716047
A50: 1967 | B50: 1.2752325 | C50: 0.03449584955 | D50: 0.6842346634 | E50: 0.4078352079 | G50: 0.74727 | H50: 0.0263089906 | I50: 0.7487134865 | J50: 0.5045775393 | L50: 45 | M50: 0.0008725582804 | N50: 0.0005594911271 | O50: 0.9999272577 | P50: 0.9999533638 | Q50: 0.0005200847118 | R50: 0.0003770556578 | S50: 0.9999566493 | T50: 0.9999685733
A51: 1966 | B51: 1.43678 | C51: 0.0328983671 | D51: 0.6738279921 | E51: 0.4113725976 | G51: 0.828495 | H51: 0.02536220672 | I51: 0.7376052562 | J51: 0.5042013526 | L51: 46 | M51: 0.0009681425825 | N51: 0.0006111022667 | O51: 0.9999192856 | P51: 0.9999490605 | Q51: 0.0005910519208 | R51: 0.0004177282996 | S51: 0.9999507323 | T51: 0.9999651826
A52: 1965 | B52: 1.61367 | C52: 0.03116203564 | D52: 0.6669058061 | E52: 0.4178900172 | G52: 0.91694 | H52: 0.02430450036 | I52: 0.7290897034 | J52: 0.5063505768 | L52: 47 | M52: 0.001076165892 | N52: 0.0006685315126 | O52: 0.9999102752 | P52: 0.999944272 | Q52: 0.0006743365841 | R52: 0.0004642930979 | S52: 0.9999437879 | T52: 0.9999613007
A53: 1964 | B53: 1.8077075 | C53: 0.02938631974 | D53: 0.6627161724 | E53: 0.426474257 | G53: 1.0108 | H53: 0.02316872316 | I53: 0.7229883834 | J53: 0.5107408443 | L53: 48 | M53: 0.001197996995 | N53: 0.0007307966579 | O53: 0.9999001121 | P53: 0.9999390799 | Q53: 0.000770940713 | R53: 0.0005162568454 | S53: 0.9999357322 | T53: 0.9999569684
A54: 1963 | B54: 2.0170875 | C54: 0.02769469524 | D54: 0.6600627132 | E54: 0.4356827853 | G54: 1.110075 | H54: 0.02201001096 | I54: 0.7188157848 | J54: 0.5166961325 | L54: 49 | M54: 0.001331404248 | N54: 0.0007979394323 | O54: 0.9998889819 | P54: 0.9999334807 | Q54: 0.0008788103002 | R54: 0.0005735714593 | S54: 0.9999267363 | T54: 0.9999521898
A55: 1962 | B55: 2.243615 | C55: 0.02618214199 | D55: 0.6577605814 | E55: 0.4441262537 | G55: 1.214765 | H55: 0.020897262 | I55: 0.715798775 | J55: 0.5231876301 | L55: 50 | M55: 0.001475761507 | N55: 0.000869527299 | O55: 0.9998769366 | P55: 0.9999275105 | Q55: 0.0009964483247 | R55: 0.0006355500215 | S55: 0.9999169247 | T55: 0.9999470221
A56: 1961 | B56: 2.4863875 | C56: 0.02491808174 | D56: 0.654680866 | E56: 0.4505083732 | G56: 1.323065 | H56: 0.01990246167 | I56: 0.7129515249 | J56: 0.5289407943 | L56: 51 | M56: 0.001627790322 | N56: 0.0009432812093 | O56: 0.9998642495 | P56: 0.9999213592 | Q56: 0.001120138388 | R56: 0.000699823052 | S56: 0.9999066072 | T56: 0.9999416627
A57: 1960 | B57: 2.745405 | C57: 0.02394010369 | D57: 0.6499096886 | E57: 0.4538341656 | G57: 1.4358775 | H57: 0.01908945614 | I57: 0.709205315 | J57: 0.532617338 | L57: 52 | M57: 0.001784265309 | N57: 0.001018331955 | O57: 0.9998511895 | P57: 0.9999150994 | Q57: 0.001245958587 | R57: 0.0007647732518 | S57: 0.9998961108 | T57: 0.9999362465
A58: 1959 | B58: 3.0188625 | C58: 0.02324205211 | D58: 0.6430074361 | E58: 0.4537405265 | G58: 1.5513975 | H58: 0.0185043023 | I58: 0.7035743348 | J58: 0.5330466803 | L58: 53 | M58: 0.001941151036 | N58: 0.001091523464 | O58: 0.9998380933 | P58: 0.9999089942 | Q58: 0.00136978026 | R58: 0.0008269672872 | S58: 0.9998857799 | T58: 0.9999310599
A59: 1958 | B59: 3.3076625 | C59: 0.02277141776 | D59: 0.6341762571 | E59: 0.4506791456 | G59: 1.6687225 | H59: 0.01816934356 | I59: 0.6953173832 | J59: 0.5294444527 | L59: 54 | M59: 0.002097641024 | N59: 0.001160291762 | O59: 0.9998250283 | P59: 0.9999032576 | Q59: 0.00149069451 | R59: 0.0008834958707 | S59: 0.9998756905 | T59: 0.9999263455
A60: 1957 | B60: 3.61 | C60: 0.02245343649 | D60: 0.6240516345 | E60: 0.445604401 | G60: 1.7878525 | H60: 0.01808227243 | I60: 0.6840476357 | J60: 0.5215439107 | L60: 55 | M60: 0.002252826401 | N60: 0.001222976276 | O60: 0.9998120703 | P60: 0.9998980281 | Q60: 0.001608631888 | R60: 0.0009324435845 | S60: 0.9998658484 | T60: 0.9999222631
A61: 1956 | B61: 3.9231675 | C61: 0.02221640748 | D61: 0.6133859304 | E61: 0.4395485609 | G61: 1.9069825 | H61: 0.01822001615 | I61: 0.6697569756 | J61: 0.5095941789 | L61: 56 | M61: 0.002406415747 | N61: 0.001277214832 | O61: 0.9997992438 | P61: 0.9998935031 | Q61: 0.001724422629 | R61: 0.0009717871812 | S61: 0.9998561844 | T61: 0.9999189816
A62: 1955 | B62: 4.243555 | C62: 0.02201931577 | D62: 0.6026345839 | E62: 0.4331227953 | G62: 2.0243075 | H62: 0.01854603887 | I62: 0.6527514213 | J62: 0.4942323753 | L62: 57 | M62: 0.002557313002 | N62: 0.001321369598 | O62: 0.9997866404 | P62: 0.9998898191 | Q62: 0.001837980403 | R62: 0.001000478304 | S62: 0.9998467058 | T62: 0.9999165886
A63: 1954 | B63: 4.564845 | C63: 0.0218430894 | D63: 0.5920085832 | E63: 0.4266119392 | G63: 2.1398275 | H63: 0.01901913504 | I63: 0.6335228307 | J63: 0.4762814745 | L63: 58 | M63: 0.002702427421 | N63: 0.001355629575 | O63: 0.9997745183 | P63: 0.9998869606 | Q63: 0.001947417378 | R63: 0.001019160197 | S63: 0.9998375702 | T63: 0.9999150303
A64: 1953 | B64: 4.88794 | C64: 0.02168983513 | D64: 0.5814409393 | E64: 0.41996101 | G64: 2.25264 | H64: 0.01960173761 | I64: 0.612599782 | J64: 0.4565443166 | L64: 59 | M64: 0.002842048425 | N64: 0.001379966773 | O64: 0.9997628536 | P64: 0.99988493 | Q64: 0.002052744219 | R64: 0.001028429989 | S64: 0.9998287768 | T64: 0.9999142571
A65: 1952 | B65: 5.214492627 | C65: 0.02158174237 | D65: 0.5705666429 | E65: 0.4127754919 | G65: 2.27157449 | H65: 0.02026597829 | I65: 0.5904233627 | J65: 0.4356547924 | L65: 60 | M65: 0.002975215553 | N65: 0.001341190649 | O65: 0.9997517266 | P65: 0.9998881653 | Q65: 0.002152414759 | R65: 0.0009896223129 | S65: 0.9998204549 | T65: 0.999917494
A66: 1951 | B66: 5.963965076 | C66: 0.02155272045 | D66: 0.5588224639 | E66: 0.4044552176 | G66: 2.719273681 | H66: 0.02099623715 | I66: 0.5672821936 | J66: 0.4140196012 | L66: 61 | M66: 0.003332797658 | N66: 0.001542595539 | O66: 0.9997218417 | P66: 0.9998713594 | Q66: 0.002412156793 | R66: 0.001125832605 | S66: 0.9997987644 | T66: 0.9999061322
A67: 1950 | B67: 6.702620131 | C67: 0.02163391139 | D67: 0.5456652868 | E67: 0.3944518537 | G67: 3.177724676 | H67: 0.02178780475 | I67: 0.5433190661 | J67: 0.39185022 | L67: 62 | M67: 0.003657387136 | N67: 0.001726518403 | O67: 0.9996947056 | P67: 0.9998560095 | Q67: 0.002643860936 | R67: 0.001245192113 | S67: 0.9997794108 | T67: 0.9998961747
A68: 1949 | B68: 7.425796135 | C68: 0.02183927251 | D68: 0.5308164942 | E68: 0.3825377298 | G68: 3.612342304 | H68: 0.02264239491 | I68: 0.5185963457 | J68: 0.3692559012 | L68: 63 | M68: 0.003941735071 | N68: 0.001873347518 | O68: 0.9996709271 | P68: 0.9998437535 | Q68: 0.002840647196 | R68: 0.001333878713 | S68: 0.9997629706 | T68: 0.9998887754
A69: 1948 | B69: 8.091977124 | C69: 0.0221772481 | D69: =+EXP(-$C69*($B$2-$A69)) -> 0.514110301 | E69: 0.3686247225 | G69: 3.992017091 | H69: 0.02356204001 | I69: =+EXP(-$H69*($H$2-$A69)) -> 0.4931897945 | J69: =+EXP(-$H69*($I$2-$A69)) -> 0.3463547291 | L69: 64 | M69: =+$B69*$D69/1000 -> 0.004160168795 | N69: =+$G69*$I69/1000 -> 0.001968822089 | O69: =+(1-M69)^(0.0833333333333333) -> 0.9996526565 | P69: =+(1-N69)^(0.0833333333333333) -> 0.9998357833 | Q69: 0.002982902822 | R69: 0.001382653998 | S69: 0.9997510843 | T69: 0.9998847058
A70: 1947 | B70: 8.675108407 | C70: 0.022631596 | D70: 0.4958015784 | E70: =+EXP(-$C70*($C$2-$A70)) -> 0.3530825433 | G70: 4.326657805 | H70: 0.02454318241 | I70: 0.4672743807 | J70: 0.3233608518 | L70: =+$A$5-A70 -> 65 | M70: 0.004301132441 | N70: 0.002021736346 | O70: 0.9996408638 | P70: 0.9998313657 | Q70: =+B70*E70/1000 -> 0.00306302934 | R70: =+G70*J70/1000 -> 0.001399071753 | S70: =+(1-Q70)^(0.0833333333333333) -> 0.9997443885 | T70: =+(1-R70)^(0.0833333333333333) -> 0.9998833359
A71: 1946 | B71: 9.178520071 | C71: 0.02306542904 | D71: 0.4780242913 | E71: 0.3382144339 | G71: 4.659864451 | H71: 0.02547270803 | I71: 0.4425832675 | J71: 0.302033519 | L71: 66 | M71: 0.004387555552 | N71: 0.002062378035 | O71: 0.999633633 | P71: 0.9998279725 | Q71: 0.00310430797 | R71: 0.001407435258 | S71: 0.9997409389 | T71: 0.999882638
A72: 1945 | B72: 9.647874616 | C72: 0.02353176742 | D72: 0.4599910138 | E72: 0.3231867866 | G72: 5.049489172 | H72: 0.02642706551 | I72: 0.418075533 | J72: 0.2812534259 | L72: 67 | M72: 0.004437935625 | N72: 0.002111067877 | O72: 0.9996294176 | P72: 0.9998239072 | Q72: 0.003118065595 | R72: 0.001420186129 | S72: 0.9997397891 | T72: 0.9998815741
A73: 1944 | B73: 10.14981038 | C73: 0.02398279299 | D73: 0.442455687 | E73: 0.3087705431 | G73: 5.507987483 | H73: 0.02737448032 | I73: 0.3942648722 | J73: 0.2614925368 | L73: 68 | M73: 0.004490841324 | N73: 0.002171605981 | O73: 0.9996249907 | P73: 0.9998188525 | Q73: 0.003133962463 | R73: 0.00144029762 | S73: 0.9997384606 | T73: 0.9998798959
A74: 1943 | B74: 10.75460918 | C74: 0.02428809455 | D74: 0.4273793258 | E74: 0.2968866902 | G74: 6.051551294 | H74: 0.02817922396 | I74: 0.3729642015 | J74: 0.2443970315 | L74: 69 | M74: 0.004596297622 | N74: 0.002257011996 | O74: 0.9996161659 | P74: 0.9998117208 | Q74: 0.003192900324 | R74: 0.001478981172 | S74: 0.9997335348 | T74: 0.9998766679
A75: 1942 | B75: 11.59327334 | C75: 0.02451494685 | D75: 0.4137314917 | E75: 0.2864296596 | G75: 6.669949679 | H75: 0.02890633728 | I75: 0.353232732 | J75: 0.2289565112 | L75: 70 | M75: 0.004796502273 | N75: 0.002356044547 | O75: 0.9995994101 | P75: 0.9998034506 | Q75: 0.003320657337 | R75: 0.001527128408 | S75: 0.9997228565 | T75: 0.9998726501
A76: 1941 | B76: 12.76552076 | C76: 0.0247409437 | D76: 0.4003504794 | E76: 0.2762278881 | G76: 7.383954395 | H76: 0.02962528143 | I76: 0.334159982 | J76: 0.214270802 | L76: 71 | M76: 0.005110682358 | N76: 0.002467422067 | O76: 0.9995731089 | P76: 0.9997941486 | Q76: 0.003526192841 | R76: 0.00158216583 | S76: 0.9997056746 | T76: 0.9998680571
A77: 1940 | B77: 14.34800397 | C77: 0.02466599839 | D77: 0.3916808462 | E77: 0.2705501191 | G77: 8.257076823 | H77: 0.03001163585 | I77: 0.3196776412 | J77: 0.2037998896 | L77: 72 | M77: 0.005619838337 | N77: 0.002639602842 | O77: 0.9995304695 | P77: 0.9997797665 | Q77: 0.003881854184 | R77: 0.001682791345 | S77: 0.9996759352 | T77: 0.9998596591
A78: 1939 | B78: 16.35576563 | C78: 0.0245981266 | D78: 0.3831506836 | E78: 0.2649275633 | G78: 9.327298621 | H78: 0.03034682861 | I78: 0.306197085 | J78: 0.1942267973 | L78: 73 | M78: 0.006266722781 | N78: 0.002855991649 | O78: 0.9994762671 | P78: 0.9997616886 | Q78: 0.004333093133 | R78: 0.001811611338 | S78: 0.9996381898 | T78: 0.9998489069
A79: 1938 | B79: 18.74485292 | C79: 0.02445158925 | D79: 0.3760385667 | E79: 0.2605820728 | G79: 10.61803727 | H79: 0.03051664843 | I79: 0.2950336277 | J79: 0.1866694892 | L79: 74 | M79: 0.007048787623 | N79: 0.003132678056 | O79: 0.9994106947 | P79: 0.9997385679 | Q79: 0.004884572627 | R79: 0.001982063594 | S79: 0.9995920381 | T79: 0.9998346778
A80: 1937 | B80: 21.50499955 | C80: 0.02423886393 | D80: 0.3701698143 | E80: 0.2573350414 | G80: 12.17933531 | H80: 0.03050956199 | I80: 0.2862493367 | J80: 0.1811308698 | L80: 75 | M80: 0.007960501691 | N80: 0.003486326652 | O80: 0.9993341921 | P80: 0.9997090075 | Q80: 0.005533989951 | R80: 0.002206053598 | S80: 0.9995376603 | T80: 0.9998159761
A81: 1936 | B81: 24.66175103 | C81: 0.02386457713 | D81: 0.3670297985 | E81: 0.2565886921 | G81: 14.0724785 | H81: 0.03021574739 | I81: 0.2810953367 | J81: 0.1786551976 | L81: 76 | M81: 0.009051597514 | N81: 0.003955708082 | O81: 0.9992425527 | P81: 0.9996697585 | Q81: 0.006327926441 | R81: 0.002514121426 | S81: 0.9994711372 | T81: 0.9997902481
A82: 1935 | B82: 28.33171756 | C82: 0.02352331179 | D82: 0.3636721852 | E82: 0.2555461948 | G82: 16.34037856 | H82: 0.02982738293 | I82: 0.2773215916 | J82: 0.1772865002 | L82: 77 | M82: 0.01030345764 | N82: 0.004531539788 | O82: 0.9991372969 | P82: 0.9996215851 | Q82: 0.007240062614 | R82: 0.002896928526 | S82: 0.99939465 | T82: 0.9997582682
A83: 1934 | B83: 32.61185585 | C83: 0.02309944001 | D83: 0.3619043385 | E83: 0.2559259945 | G83: 18.99759411 | H83: 0.02924013238 | I83: 0.2762177363 | J83: 0.178143155 | L83: 78 | M83: 0.01180237212 | N83: 0.005247472439 | O83: 0.9990111082 | P83: 0.9995616554 | Q83: 0.00834622164 | R83: 0.003384291352 | S83: 0.9993018067 | T83: 0.9997175373
A84: 1933 | B84: 37.56804896 | C84: 0.02257283726 | D84: 0.3621207075 | E84: 0.2581097917 | G84: 22.10124542 | H84: 0.02845526261 | I84: 0.27790198 | J84: 0.1813519326 | L84: 79 | M84: 0.01360416847 | N84: 0.006141979861 | O84: 0.9988591885 | P84: 0.9994867218 | Q84: 0.009696681293 | R84: 0.004008103568 | S84: 0.9991883296 | T84: 0.9996653762
A85: 1932 | B85: 43.12551206 | C85: 0.02202422716 | D85: 0.3630864027 | E85: 0.2609365887 | G85: 25.65798362 | H85: 0.02758161258 | I85: 0.2811817058 | J85: 0.1859126447 | L85: 80 | M85: 0.01565828704 | N85: 0.007214555602 | O85: 0.9986856834 | P85: 0.9993967898 | Q85: 0.011253024 | R85: 0.004770143594 | S85: 0.9990573764 | T85: 0.9996016163
A86: 1931 | B86: 49.29428081 | C86: 0.02123548822 | D86: 0.3685908911 | E86: 0.2680450356 | G86: 29.76179378 | H86: 0.02643661692 | I86: 0.2886556005 | J86: 0.1941604792 | L86: 81 | M86: 0.01816942289 | N86: 0.008590908455 | O86: 0.998473124 | P86: 0.9992812565 | Q86: 0.01321308725 | R86: 0.005778564144 | S86: 0.9988921844 | T86: 0.9995171729
A87: 1930 | B87: 56.04780789 | C87: 0.02050446312 | D87: 0.3737327798 | E87: 0.2747809137 | G87: 34.43291664 | H87: 0.02534585052 | I87: 0.2962354135 | J87: 0.2025459342 | L87: 82 | M87: 0.02094690304 | N87: 0.0102002493 | O87: 0.9982374383 | P87: 0.9991459792 | Q87: 0.01540086786 | R87: 0.00697424727 | S87: 0.998707445 | T87: 0.9994169466
A88: 1929 | B88: 63.32721275 | C88: 0.01954456052 | D88: 0.3837808988 | E88: 0.286260835 | G88: 39.78912742 | H88: 0.02404102813 | I88: 0.3078907157 | J88: 0.2146759064 | L88: 83 | M88: 0.02430377462 | N88: 0.01225070292 | O88: 0.9979517684 | P88: 0.9989733306 | Q88: 0.0181281008 | R88: 0.008541766994 | S88: 0.9984766258 | T88: 0.999285384
A89: 1928 | B89: 71.01651774 | C89: 0.01858192769 | D89: 0.3949103963 | E89: 0.2988464747 | G89: 45.76252663 | H89: 0.02275695765 | I89: 0.3205080511 | J89: 0.2278193595 | L89: 84 | M89: 0.02804516116 | N89: 0.01466725822 | O89: 0.9976323126 | P89: 0.9987694339 | Q89: 0.02122303597 | R89: 0.0104255895 | S89: 0.9982139733 | T89: 0.9991270215
A90: 1927 | B90: 78.93344155 | C90: 0.01755773503 | D90: 0.4084260184 | E90: 0.3138592908 | G90: 52.37305615 | H90: 0.02142826714 | I90: 0.3352624489 | J90: 0.2431040759 | L90: 85 | M90: 0.03223847125 | N90: 0.01755871906 | O90: 0.9972729272 | P90: 0.9985248639 | Q90: 0.02477399399 | R90: 0.01273210342 | S90: 0.9979116808 | T90: 0.998932749
A91: 1926 | B91: 86.96453706 | C91: 0.01651095757 | D91: 0.4237677244 | E91: 0.3308023681 | G91: 59.5269627 | H91: 0.0200866805 | I91: 0.3518651103 | J91: 0.2603293826 | L91: 86 | M91: 0.03685276398 | N91: 0.0209454613 | O91: 0.9968758083 | P91: 0.9982375608 | Q91: 0.0287680748 | R91: 0.01549661745 | S91: 0.9975704572 | T91: 0.9986993512
A92: 1925 | B92: 94.97787631 | C92: 0.01546466779 | D92: 0.440595793 | E92: 0.3493792013 | G92: 66.99388121 | H92: 0.01875926153 | I92: 0.3700042226 | J92: 0.2792550425 | L92: 87 | M92: 0.04184685273 | N92: 0.02478801893 | O92: 0.9964440331 | P92: 0.9979104848 | Q92: 0.03318329457 | R92: 0.01870837914 | S92: 0.9971917546 | T92: 0.9984274382
A93: 1924 | B93: 102.8314427 | C93: 0.01443181213 | D93: 0.4587188175 | E93: 0.3694296177 | G93: 74.70611483 | H93: 0.0174676069 | I93: 0.3893600549 | J93: 0.2996126288 | L93: 88 | M93: 0.04717071781 | N93: 0.02908757697 | O93: 0.9959814686 | P93: 0.9975431058 | Q93: 0.03798898057 | R93: 0.02238289546 | S93: 0.9967777548 | T93: 0.9981153453
A94: 1923 | B94: 110.3991576 | C94: 0.01342443689 | D94: 0.4779046568 | E94: 0.3907409062 | G94: 82.71529587 | H94: 0.01622766179 | I94: 0.4096216302 | J94: 0.3211213065 | L94: 89 | M94: 0.05276027152 | N94: 0.03388197433 | O94: 0.9954932632 | P94: 0.9971316821 | Q94: 0.04313746688 | R94: 0.02656164387 | S94: 0.9963321147 | T94: 0.9977591164
A95: 1922 | B95: 117.5683023 | C95: 0.01245393241 | D95: 0.4978680411 | E95: 0.4130324156 | G95: 91.00055777 | H95: 0.01504979281 | I95: 0.4305084197 | J95: 0.3435112937 | L95: 90 | M95: 0.05853350036 | N95: 0.03917650632 | O95: 0.994986235 | P95: 0.9966751599 | Q95: 0.0485595199 | R95: 0.03125971933 | S95: 0.9958604128 | T95: 0.9973569381
A96: 1921 | B96: 124.3955484 | C96: 0.01132556412 | D96: 0.5243703051 | E96: 0.4424443359 | G96: 99.28453306 | H96: 0.01373893973 | I96: 0.4569782124 | J96: 0.3718727101 | L96: 91 | M96: 0.06522933167 | N96: 0.04537086843 | O96: 0.994394598 | P96: 0.9961381132 | Q96: 0.0550381058 | R96: 0.03692120838 | S96: 0.9952935539 | T96: 0.9968699047
A97: 1920 | B97: 133.0974965 | C97: 0.01023765935 | D97: 0.5522335401 | E97: 0.473620395 | G97: 107.459584 | H97: 0.01249493214 | I97: 0.4844669503 | J97: 0.4016677414 | L97: 92 | M97: 0.07350090167 | N97: 0.05206061694 | O97: 0.9936583432 | P97: 0.9955545172 | Q97: 0.06303768887 | R97: 0.0431630484 | S97: 0.9945886759 | T97: 0.996329895
A98: 1919 | B98: 142.6859348 | C98: 0.00918763405 | D98: 0.5815429733 | E98: 0.5066752973 | G98: 115.6873039 | H98: 0.0113131831 | I98: 0.5130008366 | J98: 0.4329315921 | L98: 93 | M98: 0.08297800277 | N98: 0.0593476837 | O98: 0.9928073403 | P98: 0.9949145009 | Q98: 0.07229543844 | R98: 0.05008468867 | S98: 0.993766016 | T98: 0.9957272838
A99: 1918 | B99: 154.9583241 | C99: 0.008176969819 | D99: 0.6122477922 | E99: 0.5415755316 | G99: 127.7386836 | H99: 0.01018589743 | I99: 0.5427242874 | J99: 0.4658263715 | L99: 94 | M99: 0.09487289183 | N99: 0.06932688603 | O99: 0.9917277471 | P99: 0.9940306233 | Q99: 0.08392163676 | R99: 0.05950404749 | S99: 0.9927221653 | T99: 0.9949007179
A100: 1917 | B100: 166.5600749 | C100: 0.007208722466 | D100: 0.6442090006 | E100: 0.578184124 | G100: 138.7554836 | H100: 0.009103698622 | I100: 0.5738853645 | J100: 0.5006334435 | L100: 95 | M100: 0.1072994994 | N100: 0.07962974131 | O100: 0.9905859143 | P100: 0.9931089169 | Q100: 0.09630239102 | R100: 0.06946563559 | S100: 0.99159713 | T100: 0.9940182728
A101: 1916 | B101: 179.0365306 | C101: 0.006281341428 | D101: =+EXP(-$C101*($B$2-$A101)) -> 0.677433986 | E101: 0.6165207557 | G101: 150.532217 | H101: 0.008057359793 | I101: =+EXP(-$H101*($H$2-$A101)) -> 0.6067998327 | J101: =+EXP(-$H101*($I$2-$A101)) -> 0.5377203207 | L101: 96 | M101: =+$B101*$D101/1000 -> 0.1212854305 | N101: =+$G101*$I101/1000 -> 0.09134292409 | O101: 0.9892832417 | P101: 0.9920494814 | Q101: 0.1103797371 | R101: 0.08094423199 | S101: 0.9903006304 | T101: 0.9929906414
A102: 1915 | B102: 192.4257965 | C102: 0.005581341428 | D102: 0.7035442462 | E102: 0.6470416378 | G102: 163.1481052 | H102: 0.007039250276 | I102: 0.6418037115 | J102: 0.5774915195 | L102: 97 | M102: 0.1353800619 | N102: 0.1047090594 | O102: 0.9879510728 | P102: 0.9908251366 | Q102: 0.1245075025 | R102: 0.09421664716 | S102: 0.9889804404 | T102: 0.9917876466
A103: 1914 | B103: 206.9396905 | C103: 0.004881341428 | D103: 0.7316845128 | E103: 0.6800248259 | G103: 176.7120372 | H103: 0.006044165386 | I103: 0.6792088699 | J103: 0.6203390687 | L103: 98 | M103: 0.1514145666 | N103: 0.1200243831 | O103: 0.9864111311 | P103: 0.9894014744 | Q103: 0.140724127 | R103: 0.1096213806 | S103: 0.9874407628 | T103: 0.9903709514
A104: 1913 | B104: 222.5991268 | C104: 0.004181341428 | D104: 0.7620164064 | E104: 0.7156906101 | G104: 191.2903424 | H104: 0.005344165386 | I104: 0.7065433287 | J104: 0.6521157313 | L104: 99 | M104: 0.1696241866 | N104: 0.1351549153 | O104: 0.9846296079 | P104: 0.9879725088 | Q104: 0.1593121048 | R104: 0.1247434415 | S104: 0.9856428281 | T104: 0.9889582274
A105: 1912 | B105: 239.5389285 | C105: 0.003481341428 | D105: 0.7947175311 | E105: 0.7542822413 | G105: 206.9956576 | H105: 0.004644165386 | I105: 0.7360075402 | J105: 0.6864805432 | L105: 100 | M105: 0.1903657859 | N105: 0.1523503648 | O105: 0.982556209 | P105: 0.9863204362 | Q105: 0.1806799599 | R105: 0.1420984915 | S105: 0.9835304227 | T105: 0.9873090531
A106: 1911 | B106: 257.9148547 | C106: 0.002981341428 | D106: 0.8189355631 | E106: 0.7831194838 | G106: 223.9572017 | H106: 0.004144165386 | I106: 0.7575550425 | J106: 0.7118973412 | L106: 101 | M106: 0.2112156468 | N106: 0.1696599074 | O106: 0.980422322 | P106: 0.9846260781 | Q106: 0.2019781479 | R106: 0.1594345364 | S106: 0.9813740395 | T106: 0.9856308655
A107: 1910 | B107: 277.9074627 | C107: 0.002481341428 | D107: 0.8447359234 | E107: 0.8138726795 | G107: 242.3237194 | H107: 0.003644165386 | I107: 0.7805134971 | J107: 0.7389938153 | L107: 102 | M107: 0.2347584171 | N107: 0.1891369337 | O107: 0.9779497653 | P107: 0.9826803985 | Q107: 0.2261812913 | R107: 0.17907573 | S107: 0.9788585429 | T107: 0.9836907584
A108: 1909 | B108: 299.7266938 | C108: 0.001981341428 | D108: 0.8722209025 | E108: 0.8466798135 | G108: 262.2669857 | H108: 0.003144165386 | I108: 0.8049723004 | J108: 0.7678891498 | L108: 103 | M108: 0.2614278874 | N108: 0.2111176588 | O108: 0.9750631464 | P108: 0.980432471 | Q108: 0.2537725412 | R108: 0.2013919726 | S108: 0.9759013875 | T108: 0.9814340904
A109: 1908 | B109: 323.6172424 | C109: 0.001481341428 | D109: 0.9015012047 | E109: 0.88169065 | G109: 283.9859471 | H109: 0.002644165386 | I109: 0.8310281773 | J109: 0.7987126317 | L109: 104 | M109: 0.2917413339 | N109: 0.236000324 | O109: 0.9716637292 | P109: 0.9778174076 | Q109: 0.2853302969 | R109: 0.2268231632 | S109: 0.9723936504 | T109: 0.9787908547
A110: 1907 | B110: 349.8646839 | C110: 0.0009813414284 | D110: 0.932696672 | E110: 0.919067819 | G110: 307.7115571 | H110: 0.002144165386 | I110: 0.8587858046 | J110: 0.8316045736 | L110: 105 | M110: 0.3263176264 | N110: 0.2642583172 | O110: 0.9676194706 | P110: 0.9747512036 | Q110: 0.321549372 | R110: 0.2558943383 | S110: 0.9681883533 | T110: 0.9756698486
A111: 1906 | B111: 378.8021251 | C111: 0.0004813414284 | D111: 0.9659370787 | E111: 0.9589880124 | G111: 333.7122882 | H111: 0.001644165386 | I111: 0.8883584942 | J111: 0.8667173292 | L111: 106 | M111: 0.3658990181 | N111: 0.2964561458 | O111: 0.9627492792 | P111: 0.9711230546 | Q111: 0.3632666971 | R111: 0.2892342232 | S111: 0.9630816994 | T111: 0.9719498917
A112: 1905 | B112: 410.8166832 | C112: 0 | D112: 1 | E112: 1 | G112: 362.3001402 | H112: 0.001144165386 | I112: 0.9198689422 | J112: 0.9042164115 | L112: 107 | M112: 0.4108166832 | N112: 0.3332686468 | O112: 0.9568727865 | P112: 0.9667835226 | Q112: 0.4108166832 | R112: 0.3275977327 | S112: 0.9568727865 | T112: 0.9674661174
A113: 1904 | B113: 446.3541052 | C113: 0 | D113: 1 | E113: 1 | G113: 393.8366072 | H113: 0.0006441653861 | I113: 0.9534500526 | J113: 0.9442817255 | L113: 108 | M113: 0.4463541052 | N113: 0.3755035338 | O113: 0.9519248707 | P113: 0.961525557 | Q113: 0.4463541052 | R113: 0.371892711 | S113: 0.9519248707 | T113: 0.9619876268
A114: 1903 | B114: 485.9177294 | C114: 0 | D114: 1 | E114: 1 | G114: 428.7373041 | H114: 0.0001441653861 | I114: 0.98924584 | J114: 0.9871089262 | L114: 109 | M114: 0.4859177294 | N114: 0.4241265945 | O114: 0.9460615356 | P114: 0.9550525135 | Q114: 0.4859177294 | R114: 0.4232104198 | S114: 0.9460615356 | T114: 0.9551790398
A115: 1902 | B115: 530.053478 | C115: 0 | D115: 1 | E115: 1 | G115: 467.4723748 | H115: 0 | I115: 1 | J115: 1 | L115: 110 | M115: 0.530053478 | N115: 0.4674723748 | O115: 0.9390110508 | P115: 0.9488447927 | Q115: 0.530053478 | R115: 0.4674723748 | S115: 0.9390110508 | T115: 0.9488447927
A116: 1901 | B116: 579.3028235 | C116: 0 | D116: 1 | E116: 1 | G116: 510.5564862 | H116: 0 | I116: 1 | J116: 1 | L116: 111 | M116: 0.5793028235 | N116: 0.5105564862 | O116: 0.9303880703 | P116: 0.9421973566 | Q116: 0.5793028235 | R116: 0.5105564862 | S116: 0.9303880703 | T116: 0.9421973566
A117: 1900 | B117: 634.0843676 | C117: 0 | D117: 1 | E117: 1 | G117: 558.5152106 | H117: 0 | I117: 1 | J117: 1 | L117: 112 | M117: 0.6340843676 | N117: 0.5585152106 | O117: 0.9196341292 | P117: 0.9341350021 | Q117: 0.6340843676 | R117: 0.5585152106 | S117: 0.9196341292 | T117: 0.9341350021
A118: 1899 | B118: 694.417984 | C118: 0 | D118: 1 | E118: 1 | G118: 611.7996277 | H118: 0 | I118: 1 | J118: 1 | L118: 113 | M118: 0.694417984 | N118: 0.6117996277 | O118: 0.9059286254 | P118: 0.9241759494 | Q118: 0.694417984 | R118: 0.6117996277 | S118: 0.9059286254 | T118: 0.9241759494
A119: 1898 | B119: 759.3062472 | C119: 0 | D119: 1 | E119: 1 | G119: 670.5887689 | H119: 0 | I119: 1 | J119: 1 | L119: 114 | M119: 0.7593062472 | N119: 0.6705887689 | O119: 0.8880867724 | P119: 0.9116151489 | Q119: 0.7593062472 | R119: 0.6705887689 | S119: 0.8880867724 | T119: 0.9116151489
A120: 1897 | B120: 825.4087903 | C120: 0 | D120: 1 | E120: 1 | G120: 734.3513224 | H120: 0 | I120: 1 | J120: 1 | L120: 115 | M120: 0.8254087903 | N120: 0.7343513224 | O120: 0.8646397508 | P120: 0.8954176242 | Q120: 0.8254087903 | R120: 0.7343513224 | S120: 0.8646397508 | T120: 0.8954176242
A121: 1896 | B121: 884.5799335 | C121: 0 | D121: 1 | E121: 1 | G121: 800.9065865 | H121: 0 | I121: 1 | J121: 1 | L121: =+$A$5-A121 -> 116 | M121: 0.8845799335 | N121: 0.8009065865 | O121: =+(1-M121)^(0.0833333333333333) -> 0.8353274953 | P121: 0.8741542521 | Q121: =+B121*E121/1000 -> 0.8845799335 | R121: =+G121*J121/1000 -> 0.8009065865 | S121: =+(1-Q121)^(0.0833333333333333) -> 0.8353274953 | T121: 0.8741542521
A122: 1895 | B122: 922.0103792 | C122: 0 | D122: 1 | E122: 1 | G122: 864.5744447 | H122: 0 | I122: 1 | J122: 1 | L122: =+$A$5-A122 -> 117 | M122: 0.9220103792 | N122: 0.8645744447 | O122: 0.8084808436 | P122: 0.8465287626 | Q122: =+B122*E122/1000 -> 0.9220103792 | R122: =+G122*J122/1000 -> 0.8645744447 | S122: 0.8084808436 | T122: 0.8465287626
A123: 1894 | B123: 930 | C123: 0 | D123: 1 | E123: 1 | G123: 935 | H123: 0 | I123: 1 | J123: 1 | L123: =+$A$5-A123 -> 118 | M123: 0.93 | N123: 0.935 | O123: 0.8012317859 | P123: 0.796298895 | Q123: =+B123*E123/1000 -> 0.93 | R123: =+G123*J123/1000 -> 0.935 | S123: 0.8012317859 | T123: 0.796298895
A124: 1893 | B124: 1000 | C124: 0 | D124: 1 | E124: 1 | G124: 1000 | H124: 0 | I124: 1 | J124: 1 | L124: =+$A$5-A124 -> 119 | M124: 1 | N124: 1 | O124: 0 | P124: 0 | Q124: =+B124*E124/1000 -> 1 | R124: =+G124*J124/1000 -> 1 | S124: 0 | T124: 0
A125: 1892 | B125: 1000 | C125: 0 | D125: 1 | E125: 1 | G125: 1000 | H125: 0 | I125: 1 | J125: 1 | L125: =+$A$5-A125 -> 120 | M125: 1 | N125: 1 | O125: 0 | P125: 0 | Q125: =+B125*E125/1000 -> 1 | R125: =+G125*J125/1000 -> 1 | S125: 0 | T125: 0
